{"text_format":"1","workbook":"xlsx","n_sheets":1,"sheets":["Sheet1"],"not_rendered":{"charts":0,"images":0,"macros":1,"external_links":0,"defined_names":0,"comments":0,"pivot_tables":0},"unopened":[],"bounds":{"document_bytes":16777216,"sheet_cells":100000,"rows_first":2000,"rows_last":500,"rows_between":2000,"halvings":0,"cell_chars":16384,"cell_head_chars":4096},"cells_cut":0,"cells_raw":0,"read":"whole","date_system":"1900"}

{"sheet":"Sheet1","index":0,"n_rows":995,"n_cols":30,"rows_kept":995,"cut":false,"hidden":false,"merged":[]}
["SL No.","Unique code","NAME OF CO-OPERATIVE SOCIETY\n(Full Name With Ltd No)\n","               RULE 15","District","Taluk","AREA OF OPERATION\n(Taluk / Morethan One Taluk / Morethan one Taluk but less than a District / A District / Morethan a District )","Type (Rule 15)","DATE OF REGISTRATION","Status",null,null,null,null,null,null,null,null,null,null,null,null,null,null,null,null,null,null,{"$f":"PROPER(U1)","v":""},""]
[null,null,"Primary Credit Society",null,null,null,null,null,null,null,null,null,null,null,null,null,null,null,null,null,null,null,null,null,null,null,null,{"$f":"PROPER(T2)","v":""},"",""]
[1,"KL0101P01412","Peroorkada Service Co-Operative Bank 1412","Primary Credit Society","Thiruvananthapuram","Thiruvananthapuram","Taluk","Primary Agricultural Credit Societies","14.11.1926","WORKING",null,null,null,null,null,null,null,null,null,null,null,null,null,null,null,null,null,"","",""]
[2,"KL0101P01243","Kalliyoor Service Co-Operative Bank 1243","Primary Credit Society","Thiruvananthapuram","Thiruvananthapuram","Taluk","Primary Agricultural Credit Societies","20.08.1926","WORKING",null,null,null,null,null,null,null,null,null,null,null,null,null,null,null,null,null,"","",""]
[3,"KL0101P00287","Kovalam Service Co-Operative Bank Ltd No.T 287","Primary Credit Society","Thiruvananthapuram","Thiruvananthapuram","Taluk","Primary Agricultural Credit Societies","27.01.1966","WORKING",null,null,null,null,null,null,null,null,null,null,null,null,null,null,null,null,null,"","",""]
[4,"KL0101P01230","Ulloor Service Co-Operative Bank 1230","Primary Credit Society","Thiruvananthapuram","Thiruvananthapuram","Taluk","Primary Agricultural Credit Societies","14.08.1926","WORKING",null,null,null,null,null,null,null,null,null,null,null,null,null,null,null,null,null,"","",""]
[5,"KL0101P01754","Thonnakkal Service Co-Operative Bank 1754","Primary Credit Society","Thiruvananthapuram","Thiruvananthapuram","Taluk","Primary Agricultural Credit Societies","4.09.1928","WORKING",null,null,null,null,null,null,null,null,null,null,null,null,null,null,null,null,null,"","",""]
[6,"KL0101P01652","Vattiyoorkavu Service Co-Operative Bank 1652","Primary Credit Society","Thiruvananthapuram","Thiruvananthapuram","Taluk","Primary Agricultural Credit Societies","05.10.1927","WORKING",null,null,null,null,null,null,null,null,null,null,null,null,null,null,null,null,null,"","",""]
[7,"KL0101P03127","Andoorkonam Service Co-Operative Bank 3127","Primary Credit Society","Thiruvananthapuram","Thiruvananthapuram","Taluk","Primary Agricultural Credit Societies","22.01.1951","WORKING",null,null,null,null,null,null,null,null,null,null,null,null,null,null,null,null,null,"","",""]
[8,"KL0101P02350","Chempazhanthy Service Co-Operative Bank 2350","Primary Credit Society","Thiruvananthapuram","Thiruvananthapuram","Taluk","Primary Agricultural Credit Societies","06.06.1934","WORKING",null,null,null,null,null,null,null,null,null,null,null,null,null,null,null,null,null,"","",""]
[9,"KL0101P01347","Madhavavilasom Scb 1347","Primary Credit Society","Thiruvananthapuram","Thiruvananthapuram","Taluk","Primary Agricultural Credit Societies","17-08-1926","WORKING",null,null,null,null,null,null,null,null,null,null,null,null,null,null,null,null,null,"","",""]
[10,"KL0101P03150","Nemom Service Co-Operative Bank 3150","Primary Credit Society","Thiruvananthapuram","Thiruvananthapuram","Taluk","Primary Agricultural Credit Societies","4.05.1955","WORKING",null,null,null,null,null,null,null,null,null,null,null,null,null,null,null,null,null,"","",""]
[11,"KL0101P01108","Pappanamcode Service Co-Operative Bank 1108","Primary Credit Society","Thiruvananthapuram","Thiruvananthapuram","Taluk","Primary Agricultural Credit Societies","25.04.1926","WORKING",null,null,null,null,null,null,null,null,null,null,null,null,null,null,null,null,null,"","",""]
[12,"KL0101P03515","Kadakampally Service Co-Operative Bank 3515","Primary Credit Society","Thiruvananthapuram","Thiruvananthapuram","Taluk","Primary Agricultural Credit Societies","27.01.1955","WORKING",null,null,null,null,null,null,null,null,null,null,null,null,null,null,null,null,null,"","",""]
[13,"KL0101P00413","Muttathara Service Co-Operative Bank T 413","Primary Credit Society","Thiruvananthapuram","Thiruvananthapuram","Taluk","Primary Agricultural Credit Societies","5.02.1974","WORKING",null,null,null,null,null,null,null,null,null,null,null,null,null,null,null,null,null,"","",""]
[14,"KL0101P00131","Thiruvananthapuram Service Co-Operative Bank T 131","Primary Credit Society","Thiruvananthapuram","Thiruvananthapuram","Taluk","Primary Agricultural Credit Societies","5.12.1959","WORKING",null,null,null,null,null,null,null,null,null,null,null,null,null,null,null,null,null,"","",""]
[15,"KL0101P00254","Kadinamkulam Service Co-Operative Bank T 254","Primary Credit Society","Thiruvananthapuram","Thiruvananthapuram","Taluk","Primary Agricultural Credit Societies","18.09.1964","WORKING",null,null,null,null,null,null,null,null,null,null,null,null,null,null,null,null,null,"","",""]
[16,"KL0101P00847","Mudavanmughal Service Co-Operative T 847","Primary Credit Society","Thiruvananthapuram","Thiruvananthapuram","Taluk","Primary Agricultural Credit Societies","06.02.1984","WORKING",null,null,null,null,null,null,null,null,null,null,null,null,null,null,null,null,null,"","",""]
[17,"KL0101P01353","Vazhuthacaud Service Co-Operative Bank T 1353","Primary Credit Society","Thiruvananthapuram","Thiruvananthapuram","Taluk","Primary Agricultural Credit Societies","5.04.1997","WORKING",null,null,null,null,null,null,null,null,null,null,null,null,null,null,null,null,null,"","",""]
[18,"KL0101P01457","Kazhakkuttam Service Co-Operative Bank 1457","Primary Credit Society","Thiruvananthapuram","Thiruvananthapuram","Taluk","Primary Agricultural Credit Societies","5.06.1927","WORKING",null,null,null,null,null,null,null,null,null,null,null,null,null,null,null,null,null,"","",""]
[19,"KL0101P01444","Thirumala Service Co-Operative Bank T 1444","Primary Credit Society","Thiruvananthapuram","Thiruvananthapuram","Taluk","Primary Agricultural Credit Societies","15.12.1999","WORKING",null,null,null,null,null,null,null,null,null,null,null,null,null,null,null,null,null,"","",""]
[20,"KL0101P02665","Koliyoor Service Co-Operative Bank 2665","Primary Credit Society","Thiruvananthapuram","Thiruvananthapuram","Taluk","Primary Agricultural Credit Societies","7.5.1947","WORKING",null,null,null,null,null,null,null,null,null,null,null,null,null,null,null,null,null,"","",""]
[21,"KL0101P01318","Pattom Service Co-Operative Bank T 1318","Primary Credit Society","Thiruvananthapuram","Thiruvananthapuram","Taluk","Primary Agricultural Credit Societies","16.05.1996","WORKING",null,null,null,null,null,null,null,null,null,null,null,null,null,null,null,null,null,"","",""]
[22,"KL0101P01501","Thycaud Service Co-Operative Society T 1501","Primary Credit Society","Thiruvananthapuram","Thiruvananthapuram","Taluk","Primary Agricultural Credit Societies","11.11.2002","WORKING",null,null,null,null,null,null,null,null,null,null,null,null,null,null,null,null,null,"","",""]
[23,"KL0101P02154","Ayiroorpara Farmers Service Co-Operative Bank 2154","Primary Credit Society","Thiruvananthapuram","Thiruvananthapuram","Taluk","Primary Agricultural Credit Societies","15.07.1941","WORKING",null,null,null,null,null,null,null,null,null,null,null,null,null,null,null,null,null,"","",""]
[24,"KL0106P01103","Amachal Service Co-Operative Bank Ltd No.1103","Primary Credit Society","Thiruvananthapuram","Kattakkada","Kattakkada Panchayath","Primary Agricultural Credit Societies","08.12.1925","WORKING",null,null,null,null,null,null,null,null,null,null,null,null,null,null,null,null,null,"","",""]
[25,"KL0106P00274","Amboori Service Co-Operative Bank Ltd No T.274","Primary Credit Society","Thiruvananthapuram","Kattakkada","Amboori Panchayath","Primary Agricultural Credit Societies","29.03.1965","WORKING",null,null,null,null,null,null,null,null,null,null,null,null,null,null,null,null,null,"","",""]
[26,"KL0106P00668","Kallikadu Service Co-Operative Bank Ltd No.668","Primary Credit Society","Thiruvananthapuram","Kattakkada","Kallikkadu Panchayath","Primary Agricultural Credit Societies","09.04.1924","WORKING",null,null,null,null,null,null,null,null,null,null,null,null,null,null,null,null,null,"","",""]
[27,"KL0106P00197","Kandala Service Co-Operative Bank Ltd No.T.197","Primary Credit Society","Thiruvananthapuram","Kattakkada","Maranalloor Panchayath","Primary Agricultural Credit Societies","09.06.1961","WORKING",null,null,null,null,null,null,null,null,null,null,null,null,null,null,null,null,null,"","",""]
[28,"KL0106P00547","Kuttichal Service Co-Operative Bank Ltd No.547","Primary Credit Society","Thiruvananthapuram","Kattakkada","Kuttichal Panchayath","Primary Agricultural Credit Societies","15.03.1099 (ME)","WORKING",null,null,null,null,null,null,null,null,null,null,null,null,null,null,null,null,null,"","",""]
[29,"KL0106P00145","Kattakode Service Co-Operative Bank Ltd No.T.145","Primary Credit Society","Thiruvananthapuram","Kattakkada","Kattakkada Panchayath","Primary Agricultural Credit Societies","15.04.1960","WORKING",null,null,null,null,null,null,null,null,null,null,null,null,null,null,null,null,null,"","",""]
[30,"KL0106P00683","Mylachal Service Co-Operative Bank Ltd No.683","Primary Credit Society","Thiruvananthapuram","Kattakkada","Aryancode Panchayath","Primary Agricultural Credit Societies","01.04.1924","WORKING",null,null,null,null,null,null,null,null,null,null,null,null,null,null,null,null,null,{"$f":"PROPER(T32)","v":""},"",""]
[31,"KL0106P00605","Malayinkil Service Co-Operative Bank Ltd No.605","Primary Credit Society","Thiruvananthapuram","Kattakkada","Malayinkeezhu Panchayath","Primary Agricultural Credit Societies","19.01.1924","WORKING",null,null,null,null,null,null,null,null,null,null,null,null,null,null,null,null,null,"","",""]
[32,"KL0106P00916","Ooruttambalam Service Co-Operative Bank Ltd No.916","Primary Credit Society","Thiruvananthapuram","Kattakkada","Maranalloor Panchayath","Primary Agricultural Credit Societies","21.03.1925","WORKING",null,null,null,null,null,null,null,null,null,null,null,null,null,null,null,null,null,"","",""]
[33,"KL0106P00872","Ottasekharamangalam Service Co-Operative Bank Ltd No.T.872","Primary Credit Society","Thiruvananthapuram","Kattakkada","Ottasekharamangalam Panchayath","Primary Agricultural Credit Societies","08.03.1968","WORKING",null,null,null,null,null,null,null,null,null,null,null,null,null,null,null,null,null,"","",""]
[34,"KL0106P02522","Vilappil Service Co-Operative Bank Ltd No.2522","Primary Credit Society","Thiruvananthapuram","Kattakkada","Vilappil Panchayath","Primary Agricultural Credit Societies","05.02.1946","WORKING",null,null,null,null,null,null,null,null,null,null,null,null,null,null,null,null,null,"","",""]
[35,"KL0106P01427","Vilavoorkal Service Co-Operative Bank Ltd No.T.1427","Primary Credit Society","Thiruvananthapuram","Kattakkada","Vilavoorkal Panchayath","Primary Agricultural Credit Societies","13.07.1999","WORKING",null,null,null,null,null,null,null,null,null,null,null,null,null,null,null,null,null,"","",""]
[36,"KL0106P00516","Veeranakavu Service Co-Operative Bank Ltd No.516","Primary Credit Society","Thiruvananthapuram","Kattakkada","Poovachal Panchayath","Primary Agricultural Credit Societies","30.05.1922","WORKING",null,null,null,null,null,null,null,null,null,null,null,null,null,null,null,null,null,"","",""]
[37,"KL0106P02077","Poovachal Service Co-Operative Bank Ltd No.2077","Primary Credit Society","Thiruvananthapuram","Kattakkada","Poovachal Panchayath","Primary Agricultural Credit Societies","27.5.1938","WORKING",null,null,null,null,null,null,null,null,null,null,null,null,null,null,null,null,null,"","",""]
[38,"KL0106P01624","Vilappil Panchayath Primary Agricultural Credit Co-Operative Society Ltd No. T.1624","Primary Credit Society","Thiruvananthapuram","Kattakkada","Taluk","Primary Agricultural Credit Societies","5.5.2006","WORKING",null,null,null,null,null,null,null,null,null,null,null,null,null,null,null,null,null,"","",""]
[39,"KL0102P01006","Ancode Service Co Operative Bank Ltd No. 1006, Perumkadavila. P O","Primary Credit Society","Thiruvananthapuram","Neyyattinkara","Taluk","Primary Agricultural Credit Societies","08.07.1925","WORKING",null,null,null,null,null,null,null,null,null,null,null,null,null,null,null,null,null,"","",""]
[40,"KL0102P01166","Anthiyoor Service Co Operative Bank Ltd No 1166,Balaramapuram.P.O","Primary Credit Society","Thiruvananthapuram","Neyyattinkara","Taluk","Primary Agricultural Credit Societies","20.05.1926","WORKING",null,null,null,null,null,null,null,null,null,null,null,null,null,null,null,null,null,"","",""]
[41,"KL0102P00692","Arayoor Service Co Operative Bank Ltd No 692,Arayoor.P.O","Primary Credit Society","Thiruvananthapuram","Neyyattinkara","Taluk","Primary Agricultural Credit Societies","09.03.1924","WORKING",null,null,null,null,null,null,null,null,null,null,null,null,null,null,null,null,null,"","",""]
[42,"KL0102P02387","Avanakuzhy Service Co Operative Bank Ltd No. 2387,Thannomoodu .P.O","Primary Credit Society","Thiruvananthapuram","Neyyattinkara","Taluk","Primary Agricultural Credit Societies","05.02.1944","WORKING",null,null,null,null,null,null,null,null,null,null,null,null,null,null,null,null,null,"","",""]
[43,"KL0102P00014","Balaramapuram Service Co Operative Bank Ltd No T 14, Balaramapuram.P.O","Primary Credit Society","Thiruvananthapuram","Neyyattinkara","Taluk","Primary Agricultural Credit Societies","13.05.1958","WORKING",null,null,null,null,null,null,null,null,null,null,null,null,null,null,null,null,null,"","",""]
[44,"KL0102P01258","Chenkal Service Co Operative Bank Ltd No 1258, Chenkal.P.O","Primary Credit Society","Thiruvananthapuram","Neyyattinkara","Taluk","Primary Agricultural Credit Societies","09.09.1926","WORKING",null,null,null,null,null,null,null,null,null,null,null,null,null,null,null,null,null,"","",""]
[45,"KL0102P03619","Cheruvarakonam Service Co Operative Bank Ltd No 3619, Cheruvarakonam.P.O","Primary Credit Society","Thiruvananthapuram","Neyyattinkara","Taluk","Primary Agricultural Credit Societies","03.06.1955","WORKING",null,null,null,null,null,null,null,null,null,null,null,null,null,null,null,null,null,"","",""]
[46,"KL0102P03970","Kanjiramkulam Service Co Operative Bank Ltd No 3970, Kanjiramkulam.P.O","Primary Credit Society","Thiruvananthapuram","Neyyattinkara","Taluk","Primary Agricultural Credit Societies","29.05.1956","WORKING",null,null,null,null,null,null,null,null,null,null,null,null,null,null,null,null,null,"","",""]
[47,"KL0102P01119","Karikkamancode Service Co Operative Bank Ltd No 1119, Kudayal.P.O","Primary Credit Society","Thiruvananthapuram","Neyyattinkara","Taluk","Primary Agricultural Credit Societies","02.05.1926","WORKING",null,null,null,null,null,null,null,null,null,null,null,null,null,null,null,null,null,"","",""]
[48,"KL0102P04055","Karumkulam Service Co Operative Bank Ltd No. 4055, Puthuyathura.P.O","Primary Credit Society","Thiruvananthapuram","Neyyattinkara","Taluk","Primary Agricultural Credit Societies","26.12.1956","WORKING",null,null,null,null,null,null,null,null,null,null,null,null,null,null,null,null,null,"","",""]
[49,"KL0102P01118","Kollayil Service Co Operative Bank Ltd No. 1118","Primary Credit Society","Thiruvananthapuram","Neyyattinkara","Taluk","Primary Agricultural Credit Societies","16.12.1925","WORKING",null,null,null,null,null,null,null,null,null,null,null,null,null,null,null,null,null,"","",""]
[50,"KL0102P00196","Kottukal Service Co Operative Bank Ltd No T 196, Punnakulam.P.O","Primary Credit Society","Thiruvananthapuram","Neyyattinkara","Taluk","Primary Agricultural Credit Societies","18.08.1960","WORKING",null,null,null,null,null,null,null,null,null,null,null,null,null,null,null,null,null,"","",""]
[51,"KL0102P00706","Kulathoor Service Co Operative Bank Ltd No. T 706,Uchakkada.P.O","Primary Credit Society","Thiruvananthapuram","Neyyattinkara","Taluk","Primary Agricultural Credit Societies","24.04.1978","WORKING",null,null,null,null,null,null,null,null,null,null,null,null,null,null,null,null,null,"","",""]
[52,"KL0102P01101","Kunnathukal Service Co Operative Bank Ltd No 1101, Kunnathukal P.O","Primary Credit Society","Thiruvananthapuram","Neyyattinkara","Taluk","Primary Agricultural Credit Societies","11.12.1925","WORKING",null,null,null,null,null,null,null,null,null,null,null,null,null,null,null,null,null,"","",""]
[53,"KL0102P00984","Marayamootam Service Co Operative Bank Ltd No. 984, Marayamuttam.P.O","Primary Credit Society","Thiruvananthapuram","Neyyattinkara","Taluk","Primary Agricultural Credit Societies","03.06.1925","WORKING",null,null,null,null,null,null,null,null,null,null,null,null,null,null,null,null,null,"","",""]
[54,"KL0102P00160","Naruvamoodu Service Co Operative Bank Ltd No. T 160,Naruvamoodu.P.O","Primary Credit Society","Thiruvananthapuram","Neyyattinkara","Taluk","Primary Agricultural Credit Societies","08.07.1960","WORKING",null,null,null,null,null,null,null,null,null,null,null,null,null,null,null,null,null,"","",""]
[55,"KL0102P02639","Nellimoodu Service Co Operative Bank Ltd No. 2639, Nellimoodu. P.O","Primary Credit Society","Thiruvananthapuram","Neyyattinkara","Taluk","Primary Agricultural Credit Societies","14.03.1947","WORKING",null,null,null,null,null,null,null,null,null,null,null,null,null,null,null,null,null,"","",""]
[56,"KL0102P00170","Neyyattinkara Service Co Operative Bank Ltd No  170, Neyyattinkara.P.O","Primary Credit Society","Thiruvananthapuram","Neyyattinkara","Taluk","Primary Agricultural Credit Societies","12.08.1986","WORKING",null,null,null,null,null,null,null,null,null,null,null,null,null,null,null,null,null,"","",""]
[57,"KL0102P00126","Panachamoodu Service Co Operative Bank Ltd No T 126, Panachamoodu P.O","Primary Credit Society","Thiruvananthapuram","Neyyattinkara","Taluk","Primary Agricultural Credit Societies","17.08.1959","WORKING",null,null,null,null,null,null,null,null,null,null,null,null,null,null,null,null,null,"","",""]
[58,"KL0102P00779","Parasala Service Co Operative Bank Ltd No  779, Parassala.P.O","Primary Credit Society","Thiruvananthapuram","Neyyattinkara","Taluk","Primary Agricultural Credit Societies","01.09.1924","WORKING",null,null,null,null,null,null,null,null,null,null,null,null,null,null,null,null,null,"","",""]
[59,"KL0102P00663","Parasuviakal Service Co Operative Bank Ltd No. 663, Parasuvaikkal.P.O","Primary Credit Society","Thiruvananthapuram","Neyyattinkara","Taluk","Primary Agricultural Credit Societies","13.04.1924","WORKING",null,null,null,null,null,null,null,null,null,null,null,null,null,null,null,null,null,"","",""]
[60,"KL0102P00262","Perumbazhathoor Service Co Operative Bankltd No T 262, Perumpazhuthoor.P.O","Primary Credit Society","Thiruvananthapuram","Neyyattinkara","Taluk","Primary Agricultural Credit Societies","09.12.1964","WORKING",null,null,null,null,null,null,null,null,null,null,null,null,null,null,null,null,null,"","",""]
[61,"KL0102P00985","Ponvila Service Co Operative Bank Ltd No 985, Ayira.P.O","Primary Credit Society","Thiruvananthapuram","Neyyattinkara","Taluk","Primary Agricultural Credit Societies","10.06.1924","WORKING",null,null,null,null,null,null,null,null,null,null,null,null,null,null,null,null,null,"","",""]
[62,"KL0102P03966","Poovar Service Co Operative Bankltd No T 3966","Primary Credit Society","Thiruvananthapuram","Neyyattinkara","Taluk","Primary Agricultural Credit Societies","03.05.1956","WORKING",null,null,null,null,null,null,null,null,null,null,null,null,null,null,null,null,null,{"$f":"PROPER(T64)","v":""},"",""]
[63,"KL0102P03296","Thirupuram Service Co Operative Bank Ltd No. 3296, Thirupuram.P.O","Primary Credit Society","Thiruvananthapuram","Neyyattinkara","Taluk","Primary Agricultural Credit Societies","31.03.1953","WORKING",null,null,null,null,null,null,null,null,null,null,null,null,null,null,null,null,null,"","",""]
[64,"KL0102P01446","Vengannor Service Co Operative Bank Ltd No 1446, Venganoor.P.O","Primary Credit Society","Thiruvananthapuram","Neyyattinkara","Taluk","Primary Agricultural Credit Societies","07.12.1926","WORKING",null,null,null,null,null,null,null,null,null,null,null,null,null,null,null,null,null,"","",""]
[65,"KL0102P00155","Venpakal Service Co Operative Bankltd No T155,Venpakal.P.O","Primary Credit Society","Thiruvananthapuram","Neyyattinkara","Taluk","Primary Agricultural Credit Societies","24.08.1960","WORKING",null,null,null,null,null,null,null,null,null,null,null,null,null,null,null,null,null,"","",""]
[66,"KL0102P02516","Kidarakuzhy Service Co Operative Bank Ltd No  2516, Kidarakuzhy.P.O","Primary Credit Society","Thiruvananthapuram","Neyyattinkara","Taluk","Primary Agricultural Credit Societies","13.01.1946","WORKING",null,null,null,null,null,null,null,null,null,null,null,null,null,null,null,null,null,"","",""]
[67,"KL0102P01664","Chenkal Panchayath Agriculturecredit Co Operative Societyltd No T 1664, Maryapuram.P.O","Primary Credit Society","Thiruvananthapuram","Neyyattinkara","Taluk","Primary Agricultural Credit Societies","10.05.2006","WORKING",null,null,null,null,null,null,null,null,null,null,null,null,null,null,null,null,null,"","",""]
[68,"KL0102P01658","Vellarada Panchayath Primary Agriculture Co Operative Society Ltd No T 1658, Aarattukuzhy,Vellarada.P.O","Primary Credit Society","Thiruvananthapuram","Neyyattinkara","Taluk","Primary Agricultural Credit Societies","10.05.2006","WORKING",null,null,null,null,null,null,null,null,null,null,null,null,null,null,null,null,null,"","",""]
[69,"KL0102P00677","Pallichal Farmers Service Co Opertaive Bank Ltd No.T.677,Vedivachancoil.P.O ","Primary Credit Society","Thiruvananthapuram","Neyyattinkara","Taluk","Primary Agricultural Credit Societies","13.05.1970","WORKING",null,null,null,null,null,null,null,null,null,null,null,null,null,null,null,null,null,"","",""]
[70,"KL0103P00593","Aryanadu Service Co-Operative Bank  Ltd.No.593, Aryanad, Aryanad P.O","Primary Credit Society","Thiruvananthapuram","Nedumangad","Taluk","Primary Agricultural Credit Societies","5.10.1924","WORKING",null,null,null,null,null,null,null,null,null,null,null,null,null,null,null,null,null,"","",""]
[71,"KL0103P01514","Chayam Service Co-Operative Bank Ltd.No1514, Chettachal P.O","Primary Credit Society","Thiruvananthapuram","Nedumangad","Taluk","Primary Agricultural Credit Societies","2.11.1927","WORKING",null,null,null,null,null,null,null,null,null,null,null,null,null,null,null,null,null,"","",""]
[72,"KL0103P03064","Karakulam Service Co-Operative Bank Ltd.No 3064, Karakulam, Karakulam P.O","Primary Credit Society","Thiruvananthapuram","Nedumangad","Taluk","Primary Agricultural Credit Societies","31-07-1950","WORKING",null,null,null,null,null,null,null,null,null,null,null,null,null,null,null,null,null,"","",""]
[73,"KL0103P01910","Manickal Service Co-Operative Bank Ltd.No T.1910, Pirappancode P.O","Primary Credit Society","Thiruvananthapuram","Nedumangad","Taluk","Primary Agricultural Credit Societies","10.24.1930","WORKING",null,null,null,null,null,null,null,null,null,null,null,null,null,null,null,null,null,"","",""]
[74,"KL0103P02452","Mithirmala Service Co-Operative Bank Ltd.No 2452, Mithirmala P.O.","Primary Credit Society","Thiruvananthapuram","Nedumangad","Taluk","Primary Agricultural Credit Societies","6.27.1945","WORKING",null,null,null,null,null,null,null,null,null,null,null,null,null,null,null,null,null,"","",""]
[75,"KL0103P02433","Mundela Service Co-Operative Bank Ltd.No 2433, Mundela P.O","Primary Credit Society","Thiruvananthapuram","Nedumangad","Taluk","Primary Agricultural Credit Societies","10.12.1944","WORKING",null,null,null,null,null,null,null,null,null,null,null,null,null,null,null,null,null,"","",""]
[76,"KL0103P01161","Nanniyodu Service Co-Operative Bank Ltd.No 1161, Pacha P.O","Primary Credit Society","Thiruvananthapuram","Nedumangad","Taluk","Primary Agricultural Credit Societies","6.5.1926","WORKING",null,null,null,null,null,null,null,null,null,null,null,null,null,null,null,null,null,"","",""]
[77,"KL0103P00448","Nedumangad Service Co-Operative Bank Ltd.No 448, Nedumangad P.O","Primary Credit Society","Thiruvananthapuram","Nedumangad","Taluk","Primary Agricultural Credit Societies","5.30.1958","WORKING",null,null,null,null,null,null,null,null,null,null,null,null,null,null,null,null,null,"","",""]
[78,"KL0103P00792","Palode Service Co-Operative Bank Ltd.No 792, Karimangod P.O","Primary Credit Society","Thiruvananthapuram","Nedumangad","Taluk","Primary Agricultural Credit Societies","10.2.1924","WORKING",null,null,null,null,null,null,null,null,null,null,null,null,null,null,null,null,null,"","",""]
[79,"KL0103P00700","Panackode Service Co-Operative Bank Ltd.No T .700, Panackode P.O","Primary Credit Society","Thiruvananthapuram","Nedumangad","Taluk","Primary Agricultural Credit Societies","25-02-1978","WORKING",null,null,null,null,null,null,null,null,null,null,null,null,null,null,null,null,null,"","",""]
[80,"KL0103P00212","Pangode Service Co-Operative Bank Ltd.No T.212, Pangode P.O","Primary Credit Society","Thiruvananthapuram","Nedumangad","Taluk","Primary Agricultural Credit Societies","6.30.1962","WORKING",null,null,null,null,null,null,null,null,null,null,null,null,null,null,null,null,null,"","",""]
[81,"KL0103P02429","Pullampara Service Co-Operative Bank Ltd.No 2429, Mukkudil P.O","Primary Credit Society","Thiruvananthapuram","Nedumangad","Taluk","Primary Agricultural Credit Societies","12.7.1945","WORKING",null,null,null,null,null,null,null,null,null,null,null,null,null,null,null,null,null,"","",""]
[82,"KL0103P00298","Uzhamalackal Service Co-Operative Bank Ltd.No T.298, Puthukulangara P.O","Primary Credit Society","Thiruvananthapuram","Nedumangad","Taluk","Primary Agricultural Credit Societies","26-06-1966","WORKING",null,null,null,null,null,null,null,null,null,null,null,null,null,null,null,null,null,"","",""]
[83,"KL0103P00927","Vamanapuram Service Co-Operative Bank Ltd.No 927, Vamanapuram P.O","Primary Credit Society","Thiruvananthapuram","Nedumangad","Taluk","Primary Agricultural Credit Societies","8.26.1925","WORKING",null,null,null,null,null,null,null,null,null,null,null,null,null,null,null,null,null,"","",""]
[84,"KL0103P02379","Vellanadu Service Co-Operative Bank Ltd.No 2379, Vellanad P.O","Primary Credit Society","Thiruvananthapuram","Nedumangad","Taluk","Primary Agricultural Credit Societies","6.26.1929","WORKING",null,null,null,null,null,null,null,null,null,null,null,null,null,null,null,null,null,"","",""]
[85,"KL0103P03121","Vembayam Service Co-Operative Bank Ltd.No 3121, Konchira P.O","Primary Credit Society","Thiruvananthapuram","Nedumangad","Taluk","Primary Agricultural Credit Societies","2.18.1950","WORKING",null,null,null,null,null,null,null,null,null,null,null,null,null,null,null,null,null,"","",""]
[86,"KL0103P02419","Venjaramoodu Service Co-Operative Bank Ltd.No 2419, Venjaramoodu P.O","Primary Credit Society","Thiruvananthapuram","Nedumangad","Taluk","Primary Agricultural Credit Societies","10.1.1944","WORKING",null,null,null,null,null,null,null,null,null,null,null,null,null,null,null,null,null,"","",""]
[87,"KL0103P01048","Vithura Service Co-Operative Bank Ltd.No 1048, Vithura P.O","Primary Credit Society","Thiruvananthapuram","Nedumangad","Taluk","Primary Agricultural Credit Societies","11.8.1925","WORKING",null,null,null,null,null,null,null,null,null,null,null,null,null,null,null,null,null,"","",""]
[88,"KL0103P00603","Aruvikkara Farmers Service Co-Operativeerative Bank. Ltd.No 603, Aruvikkara P.O","Primary Credit Society","Thiruvananthapuram","Nedumangad","Taluk","Farmers Service Co-operative Bank","1.16.1924","WORKING",null,null,null,null,null,null,null,null,null,null,null,null,null,null,null,null,null,"","",""]
[89,"KL0103P00919","Anad Farmers Service Co-Operativeerative Bank. Ltd.No 919 Anad P.O","Primary Credit Society","Thiruvananthapuram","Nedumangad","Taluk","Farmers Service Co-operative Bank","8.9.1925","WORKING",null,null,null,null,null,null,null,null,null,null,null,null,null,null,null,null,null,"","",""]
[90,"KL0104P03166","Anjuthengu Scb Ltd.No.3166 Anchuthengu Po Pin 695309","Primary Credit Society","Thiruvananthapuram","Chirayinkeezhu","Taluk","Primary Agricultural Credit Societies","31.05.1959","WORKING",null,null,null,null,null,null,null,null,null,null,null,null,null,null,null,null,null,"","",""]
[91,"KL0104P00437","Attingal Muncipal Towm Scb Ltd.T 437 Kuzhiyilmukk ,Attingal P.O. Pin 695101","Primary Credit Society","Thiruvananthapuram","Chirayinkeezhu","Taluk","Primary Agricultural Credit Societies","18.02.1974","WORKING",null,null,null,null,null,null,null,null,null,null,null,null,null,null,null,null,null,"","",""]
[92,"KL0106P00197","Chemboor Scb Ltd.No.T.202 Mudakkal Po Pin 695 103","Primary Credit Society","Thiruvananthapuram","Chirayinkeezhu","Taluk","Primary Agricultural Credit Societies","08.01.1962","WORKING",null,null,null,null,null,null,null,null,null,null,null,null,null,null,null,null,null,{"$f":"PROPER(T94)","v":""},"",""]
[93,"KL0104P01155","Chirayinkeezhu Scb Ltd. No.1155 , Chirayinkeezhu Po Pin 691304","Primary Credit Society","Thiruvananthapuram","Chirayinkeezhu","Taluk","Primary Agricultural Credit Societies","26.01.1926","WORKING",null,null,null,null,null,null,null,null,null,null,null,null,null,null,null,null,null,"","",""]
[94,"KL0104P02523","Edakkodu Scb Ltd. No.2523  Edakkode Po, Attingal 695104","Primary Credit Society","Thiruvananthapuram","Chirayinkeezhu","Taluk","Primary Agricultural Credit Societies","09.02.1946","WORKING",null,null,null,null,null,null,null,null,null,null,null,null,null,null,null,null,null,"","",""]
[95,"KL0104P01063","Kadakkavoor Service Co-Operative Bank  Ltd.No.1063 Kadakkavoor Po Pin 695306","Primary Credit Society","Thiruvananthapuram","Chirayinkeezhu","Taluk","Primary Agricultural Credit Societies",1926,"WORKING",null,null,null,null,null,null,null,null,null,null,null,null,null,null,null,null,null,"","",""]
[96,"KL0104P00681"," Kasthoorba Scb Ltd No. 681 Choottayil, Kilimanoor Po Pin 695 601","Primary Credit Society","Thiruvananthapuram","Chirayinkeezhu","Taluk","Primary Agricultural Credit Societies","23.03.1924","WORKING",null,null,null,null,null,null,null,null,null,null,null,null,null,null,null,null,null,"","",""]
[97,"KL0104P02405","Kizhuvilam Service Co-Operative Bank  Ltd.No.2405 Mudapuram  Po Chirayinkeezhu  Pin 695 304 ","Primary Credit Society","Thiruvananthapuram","Chirayinkeezhu","Taluk","Primary Agricultural Credit Societies",1944,"WORKING",null,null,null,null,null,null,null,null,null,null,null,null,null,null,null,null,null,"","",""]
[98,"KL0104P03144","Koduvazhanoor Service Co-Operative Bank  Ltd.No.3144  Koduvazhanoor Po Pin 695 612","Primary Credit Society","Thiruvananthapuram","Chirayinkeezhu","Taluk","Primary Agricultural Credit Societies","12.08.1951","WORKING",null,null,null,null,null,null,null,null,null,null,null,null,null,null,null,null,null,"","",""]
[99,"KL0104P00219","Nagaroor Service Co-Operative Bank  Ltd.No.T.219 Altharamoodu Po Pin 695 102","Primary Credit Society","Thiruvananthapuram","Chirayinkeezhu","Taluk","Primary Agricultural Credit Societies","31.12.1962","WORKING",null,null,null,null,null,null,null,null,null,null,null,null,null,null,null,null,null,"","",""]
[100,"KL0104P01517","Pazhayakunnumel Service Co-Operative Bank .Ltd.1517 Kilimanoor Po Pin 695 601","Primary Credit Society","Thiruvananthapuram","Chirayinkeezhu","Taluk","Primary Agricultural Credit Societies","13.02.1927","WORKING",null,null,null,null,null,null,null,null,null,null,null,null,null,null,null,null,null,"","",""]
[101,"KL0104P02403","Perunguzhy Service Co-Operative Bank .Ltd.No2403.  Perunguzhy Po Pin 695305","Primary Credit Society","Thiruvananthapuram","Chirayinkeezhu","Taluk","Primary Agricultural Credit Societies",1944,"WORKING",null,null,null,null,null,null,null,null,null,null,null,null,null,null,null,null,null,"","",""]
[102,"KL0104P00542","Vakkom Farmers Service Co-Operative Bank Ltd.No. 542 Vakkom Po 695 308","Primary Credit Society","Thiruvananthapuram","Chirayinkeezhu","Taluk","Primary Agricultural Credit Societies","27.10.1923","WORKING",null,null,null,null,null,null,null,null,null,null,null,null,null,null,null,null,null,"","",""]
[103,"KL0105P04267","Ayiroor Village  Service Co -Operative Bank Ltd 4267, Elakamon Po, Varkala","Primary Credit Society","Thiruvananthapuram","Varkala","Elakamon Panchayath","Primary Agricultural Credit Societies","10.05.1958","WORKING",null,null,null,null,null,null,null,null,null,null,null,null,null,null,null,null,null,"","",""]
[104,"KL0105P00728","Vettoor Service Co-Operative Bank Ltd 728, Vettoor Po,Varkala","Primary Credit Society","Thiruvananthapuram","Varkala","Vettoor Panchayath","Primary Agricultural Credit Societies","21.06.1979","WORKING",null,null,null,null,null,null,null,null,null,null,null,null,null,null,null,null,null,"","",""]
[105,"KL0105P00726","Cherunniyoor Service Cooperative Bank Ltd 726,Cherunniyoor Po,Varkala","Primary Credit Society","Thiruvananthapuram","Varkala","Cherunniyoor Panchayath","Primary Agricultural Credit Societies","28.09.1924","WORKING",null,null,null,null,null,null,null,null,null,null,null,null,null,null,null,null,null,"","",""]
[106,"KL0105P00976","Ottoor Service Cooperative Bank Ltd 976, Vadaserikonam Po, Varkala ","Primary Credit Society","Thiruvananthapuram","Varkala","Ottoor Panchayath","Primary Agricultural Credit Societies","08.10.1935","WORKING",null,null,null,null,null,null,null,null,null,null,null,null,null,null,null,null,null,"","",""]
[107,"KL0105P00328","Chemmaruthy Service Cooperative Bank Ltd 328, Panayara Po,Varkala","Primary Credit Society","Thiruvananthapuram","Varkala","Chemmaruthy Panchayath","Primary Agricultural Credit Societies","13.11.1968","WORKING",null,null,null,null,null,null,null,null,null,null,null,null,null,null,null,null,null,"","",""]
[108,"KL0105P00161","Varkala Service Cooperative Bank Ltd T 161, Varkala Po,Varkala ","Primary Credit Society","Thiruvananthapuram","Varkala","Municipality Varkala","Primary Agricultural Credit Societies","11.07.1960","WORKING",null,null,null,null,null,null,null,null,null,null,null,null,null,null,null,null,null,"","",""]
[109,"KL0105P03782","Edava Service Cooperative Bank Ltd 3782, Edava Po, Varkala","Primary Credit Society","Thiruvananthapuram","Varkala","Edava Panchayath","Primary Agricultural Credit Societies","20.07.1955","WORKING",null,null,null,null,null,null,null,null,null,null,null,null,null,null,null,null,null,"","",""]
[110,"KL0105P00964","Navaikulam Service Cooperative Bank Ltd 964,Navayikulampo,Varkala","Primary Credit Society","Thiruvananthapuram","Varkala","Navaikulam Panchayath","Primary Agricultural Credit Societies","07.05.1925","WORKING",null,null,null,null,null,null,null,null,null,null,null,null,null,null,null,null,null,"","",""]
[111,"KL0101P01230","Pallickal Farmers Service Cooperative Bank Ltd  T 230, Pallickal Po,Varkala","Primary Credit Society","Thiruvananthapuram","Varkala","Pallickal Panchayath","Primary Agricultural Credit Societies","20.06.1963","WORKING",null,null,null,null,null,null,null,null,null,null,null,null,null,null,null,null,null,"","",""]
[112,"KL0105P00231","Madavoor Service Cooperative Bank Ltd T 231,Madavoor Po, Varkala ","Primary Credit Society","Thiruvananthapuram","Varkala","Madavoor Panchayath","Primary Agricultural Credit Societies","11.11.1963","WORKING",null,null,null,null,null,null,null,null,null,null,null,null,null,null,null,null,null,""]
[113,"KL0105P02825","Manamboor Service Cooperative Bank Ltd 2825, Manamboor Po, Varkala ","Primary Credit Society","Thiruvananthapuram","Varkala","Manamboor Panchayath","Primary Agricultural Credit Societies","29.09.1948","WORKING"]
[null,null,"Apex Credit Society"]
[null,null,"NIL"]
[null,null,"Primary Insured Credit Co-operative Bank"]
[114,"KL0101B01761","Karamana Co-Operative Bank 1761","Primary Insured Credit Co-operative Bank","Thiruvananthapuram","Thiruvananthapuram","Taluk"," Co-operative Urban Bank","12.05.1928","WORKING"]
[115,"KL0102B00931","Neyyattinkara Taluk Cooperative Urban Bankltd No  931, Neyyattinkara.P.O","Primary Insured Credit Co operative Society","Thiruvananthapuram","Neyyattinkara","More Than One Taluk But Less Than A District"," Co-operative Urban Bank","8.4.1925","WORKING"]
[116,"KL0103B03193","Nedumangad Co Operative Urban Bank 3193","Primary Insured Credit Co-operative Bank","Thiruvananthapuram","Nedumangad","Within Nedumasngad Taluk","Co-operative Urban Bank","3.9.1951","WORKING"]
[null,null,"Long Term Primary Credit Society"]
[117,"KL0106D02037","Kattakada Prathamika Sahakarana Karshika Vikasana Bank (PCARDB) Ltd No T.2037","Long Term Primary Credit Society","Thiruvananthapuram","Kattakkada","Taluk","Primary Co-operative Agricultural and Rural Development Bank","17.02.2016","WORKING"]
[118,"KL0103D00862","Palode Co-operative Agricultural And Rural Development Bank.T 862, Palod P.O","Long Term Primary Credit Society","Thiruvananthapuram","Nedumangad","Taluk","Primary Co-operative Agricultural and Rural Development Bank","6.11.1984","WORKING"]
[null,null,"Long Term APEX Credit Society"]
[null,"not in cima","NIL"]
[null,null,"Other Primary Credit Society "]
[119,"KL0101E04340","Hantex Employees Staff Credit  Co-operative Society 4340","Other Primary Credit Society","Thiruvananthapuram","Thiruvananthapuram","Taluk","Employees Credit Society","13.07.1977","WORKING"]
[120,"KL0101E00331","Ayurveda College Employees Co-operative Society T 331","Other Primary Credit Society","Thiruvananthapuram","Thiruvananthapuram","Taluk","Employees Credit Society","30.11.1976","WORKING"]
[121,"KL0101E04374","Union Bank of India Employees Co-operative Society Ltd No. 4374","Other Primary Credit Society","Thiruvananthapuram","Thiruvananthapuram","Taluk","Employees Credit Society","11.01.1988","WORKING"]
[122,"KL0101E00984","Thiruvananthapuram  District Rural Development Employees Co-Operative Society T 984","Other Primary Credit Society","Thiruvananthapuram","Thiruvananthapuram","District","Employees Credit Society","29.06.1988","WORKING"]
[123,"KL0101E00715","Revenue Department Employees Co-operative Society T 715","Other Primary Credit Society","Thiruvananthapuram","Thiruvananthapuram","Taluk","Employees Credit Society","20.10.1978","WORKING"]
[124,"KL0101E00952","National Employment Department  Employees Co-operative Society T 952","Other Primary Credit Society","Thiruvananthapuram","Thiruvananthapuram","Taluk","Employees Credit Society","22.02.1987","WORKING"]
[125,"KL0101E00992","Tvpm District Forest Department Employes Co-operative Society Ltd  T 992","Other Primary Credit Society","Thiruvananthapuram","Thiruvananthapuram","District","Employees Credit Society","16.09.1988","WORKING"]
[126,"KL0101E00638","PWD Irrigation  &  LSGD Employees Co-operative Society Ltd No.T638","Employees Credit","Thiruvananthapuram","Thiruvananthapuram","Taluk","Employees Credit Society","25.08.1976","WORKING"]
[127,"KL0101E01988","Malayala Manorama Employees Co-operative Society T 996","Other Primary Credit Society","Thiruvananthapuram","Thiruvananthapuram","Taluk","Employees Credit Society","03.12.1988","WORKING"]
[128,"KL0101E00764","Tvpm City Co-operation Employees Co-operative Society T 764","Other Primary Credit Society","Thiruvananthapuram","Thiruvananthapuram","Taluk","Employees Credit Society","16.01.1981","WORKING"]
[129,"KL0101E00836","Kerala State Film Development Co.operative Employees Co-operative Society T 836","Other Primary Credit Society","Thiruvananthapuram","Thiruvananthapuram","More Than A District","Employees Credit Society","7.09.1883","WORKING"]
[130,"KL0101E00768","Akasavani Employees Co-operative Soceity T 768","Other Primary Credit Society","Thiruvananthapuram","Thiruvananthapuram","Taluk","Employees Credit Society","21.04.1981","WORKING"]
[131,"KL0101E00752"," Kerala Water Authority Employees Credit Co-operative Society T 752","Other Primary Credit Society","Thiruvananthapuram","Thiruvananthapuram","Taluk","Employees Credit Society","16.07.1980","WORKING"]
[132,"KL0101E10300","Government Press Employees Co-operative Society Ltd.No.300","Other Primary Credit Society","Thiruvananthapuram","Thiruvananthapuram","District","Employees Credit Society","1.10.1978","WORKING"]
[133,"KL0101E00929","Central Bank of India Employees Co-operative Society T 929","Other Primary Credit Society","Thiruvananthapuram","Thiruvananthapuram","Taluk","Employees Credit Society","05.05.1986","WORKING"]
[134,"KL0101E00696","Thiruvananthapuram Police Employees Co-operative Society T 696","Other Primary Credit Society","Thiruvananthapuram","Thiruvananthapuram","Taluk","Employees Credit Society","27.01.1978","WORKING"]
[135,"KL0101E00233","Kerala University Employees Co-operative Society T 233","Other Primary Credit Society","Thiruvananthapuram","Thiruvananthapuram","More Than One District","Employees Credit Society","17.02.1963","WORKING"]
[136,"KL0101E00335","Thiruvananthapuram District Industries Department Employees Co-operative Society T 335","Other Primary Credit Society","Thiruvananthapuram","Thiruvananthapuram","District","Employees Credit Society","9.07.1969","WORKING"]
[137,"KL0101E00394"," The Central Government  Gazetted Officers  Co-operative Society Ltd  T 394","Other Primary Credit Society","Thiruvananthapuram","Thiruvananthapuram","Taluk","Employees Credit Society","24.01.1973","WORKING"]
[138,"KL0101E00450","Kerala State Housing Board Employees Co Operative Society 450","Other Primary Credit Society","Thiruvananthapuram","Thiruvananthapuram","District","Employees Credit Society","10.06.1975","WORKING"]
[139,"KL0101E00327","Kerala State Co.operative Bank Employees Co.operative Society T327","Other Primary Credit Society","Thiruvananthapuram","Thiruvananthapuram","District","Employees Credit Society","9.09.1968","WORKING"]
[140,"KL0101E00135","D.P.I. Employees Co-operative Society T 135 (Thiruvananthapuram district education Department emplouees cs Ltd no T 135) ","Other Primary Credit Society","Thiruvananthapuram","Thiruvananthapuram","District","Employees Credit Society","16.02.1960","WORKING"]
[141,"KL0101E00398","Postal Audit Employees Co-operative Society T 398","Other Primary Credit Society","Thiruvananthapuram","Thiruvananthapuram","Taluk","Employees Credit Society","27.06.1973","WORKING"]
[142,"KL0104E00312","Thiruvananthapuram District Graduate Teachers Co-operative Society T 403","Other Primary Credit Society","Thiruvananthapuram","Thiruvananthapuram","District","Employees Credit Society","12.12.1963","WORKING"]
[143,"KL0101E03039","Thiruvananthapuram District Electricty Board Employees Co-operative Society 3039","Other Primary Credit Society","Thiruvananthapuram","Thiruvananthapuram","District","Employees Credit Society","22.02.1950","WORKING"]
[144,"KL0101E00911","Survey of India Employees Co-operative Society T 911","Other Primary Credit Society","Thiruvananthapuram","Thiruvananthapuram","Taluk","Employees Credit Society","22.02.1185","WORKING"]
[145,"KL0101E00333","Public Office Co-operative Society T 421","Other Primary Credit Society","Thiruvananthapuram","Thiruvananthapuram","Taluk","Employees Credit Society","05.03.1974","WORKING"]
[146,"KL0101E00902","Trivandrum City Corporation Contingent Employees Co-operative Society T 902","Other Primary Credit Society","Thiruvananthapuram","Thiruvananthapuram","Taluk","Employees Credit Society","13.09.1985","WORKING"]
[147,"KL0101E00167","Bank Employees Co-operative Society  Ltd T 167","Other Primary Credit Society","Thiruvananthapuram","Thiruvananthapuram","Taluk","Employees Credit Society","6.08.1960","WORKING"]
[148,"KL0101E00277","T.V.S. Employees Co-operative Society T 277","Other Primary Credit Society","Thiruvananthapuram","Thiruvananthapuram","Taluk","Employees Credit Society","03.05.1965","WORKING"]
[149,"KL0101E00043","FCI Employees Co-operative Society T 378","Other Primary Credit Society","Thiruvananthapuram","Thiruvananthapuram","Taluk","Employees Credit Society","19.08.1972","WORKING"]
[150,"KL0101E00133","kerala state transport Workers Co-operative Society T 133","Other Primary Credit Society","Thiruvananthapuram","Thiruvananthapuram","Taluk","Employees Credit Society","4.01.1960","WORKING"]
[151,"KL0101E00303","Trivandrum ITI employees Co-operative Society( Craftsman Training Scheme Employees Co-operative Society T 303)","Other Primary Credit Society","Thiruvananthapuram","Thiruvananthapuram","Taluk","Employees Credit Society","28.09.1966","WORKING"]
[152,"KL0101E00327","Kerala State Co-operative Agricultural and Rural Development Bank Employees Co-operative Society Ltd.No.T.325","Other Primary Credit Society","Thiruvananthapuram","Thiruvananthapuram","More Than A District","Employees Credit Society","27.07.1968","WORKING"]
[153,"KL0101E00955","Bank of Baroda Employees Co-operative Society T 955","Other Primary Credit Society","Thiruvananthapuram","Thiruvananthapuram","More Than A District","Employees Credit Society","26.03.1987","WORKING"]
[154,"KL0101E00724","Technical Education Department Employees Co-operative Society T 724","Other Primary Credit Society","Thiruvananthapuram","Thiruvananthapuram","Taluk","Employees Credit Society","21.04.1979","WORKING"]
[155,"KL0101E00043","Thiruvananthapuram District Government Employees Co-operative Society 43","Other Primary Credit Society","Thiruvananthapuram","Thiruvananthapuram","District","Employees Credit Society","08.02.1918","WORKING"]
[156,"KL0101E02620","Government Secretariate Staff Employees Co-operative Society 2620","Other Primary Credit Society","Thiruvananthapuram","Thiruvananthapuram","Taluk","Employees Credit Society","22.1.1947","WORKING"]
[157,"KL0101E01388","Spaces Centre Employees Co-operative Society T 1388","Other Primary Credit Society","Thiruvananthapuram","Thiruvananthapuram","Taluk","Employees Credit Society","01.01.1998","WORKING"]
[158,"KL0101E00206","Titanium Labour Co-operative Society T 206","Other Primary Credit Society","Thiruvananthapuram","Thiruvananthapuram","Taluk","Employees Credit Society","24.06.1980","WORKING"]
[159,"KL0101E00431","Health Service Staff Co-operative Society T 431","Other Primary Credit Society","Thiruvananthapuram","Thiruvananthapuram","Taluk","Employees Credit Society","9.05.1974","WORKING"]
[160,"KL0101E00721","Medical College Employees Co-operative Society T 721","Other Primary Credit Society","Thiruvananthapuram","Thiruvananthapuram","Taluk","Employees Credit Society","22.03.1979","WORKING"]
[161,"KL0101E00716","Commercial Taxes Employees Co-operative Society T 716","Other Primary Credit Society","Thiruvananthapuram","Thiruvananthapuram","Taluk","Employees Credit Society","2.11.1978","WORKING"]
[162,"KL0101E04342","Kerala State Co-operative Union Employees Co-operative Society 4342","Other Primary Credit Society","Thiruvananthapuram","Thiruvananthapuram","More Than A District","Employees Credit Society","12.07.1979","WORKING"]
[163,"KL0101E04344","Kerala Tourism Development Co-operative Employees Co-operative Society 4344","Other Primary Credit Society","Thiruvananthapuram","Thiruvananthapuram","More Than A District","Employees Credit Society","4.01.1980","WORKING"]
[164,"KL0101E00799","Sree Chithira Tirunal Institute for Medical Sciences and Technology Employees Co-operative Society T 799","Other Primary Credit Society","Thiruvananthapuram","Thiruvananthapuram","Taluk","Employees Credit Society","26.05.1982","WORKING"]
[165,"KL0104E00416","College Of Fine-arts Employees Co-operative Society T 412","Other Primary Credit Society","Thiruvananthapuram","Thiruvananthapuram","Taluk","Employees Credit Society","17.06.1099","WORKING"]
[166,"KL0101E00133","Kerala Gazetted Officers' Co-operative Society T 424","Other Primary Credit Society","Thiruvananthapuram","Thiruvananthapuram","State","Employees Credit Society","14.03.1974","WORKING"]
[167,"KL0101E00679","Keltron Employees Co-operative Society T 679","Other Primary Credit Society","Thiruvananthapuram","Thiruvananthapuram","District","Employees Credit Society","20.05.1977","WORKING"]
[168,"KL0101E00387","Kerala Kaumudi Employees Co-operative Society T 387","Other Primary Credit Society","Thiruvananthapuram","Thiruvananthapuram","District","Employees Credit Society","9.10.1972","WORKING"]
[169,"KL0102E00023","Centre Tubercrops Employees Co-operative Society T 436","Other Primary Credit Society","Thiruvananthapuram","Thiruvananthapuram","Taluk","Employees Credit Society","23.11.1974","WORKING"]
[170,"KL0101E00873","Mathrubhoomi Thiruvananthapuram Edition  Employees Co-operative Society T 873","Other Primary Credit Society","Thiruvananthapuram","Thiruvananthapuram","Taluk","Employees Credit Society","14.11.1984","WORKING"]
[171,"KL0101E00887","English Indian Clay Employees Co-operative Society T 887","Other Primary Credit Society","Thiruvananthapuram","Thiruvananthapuram","Taluk","Employees Credit Society","12.03.1985","WORKING"]
[172,"KL0101E00344","Local Fund & Audit Employees Co-operative Society T 344","Other Primary Credit Society","Thiruvananthapuram","Thiruvananthapuram","Taluk","Employees Credit Society","21.03.1970","WORKING"]
[173,"KL0101E00918","Doordarsan Employees Credit Co-operative Society Ltd.No. T 918","Other Primary Credit Society","Thiruvananthapuram","Thiruvananthapuram","Taluk","Employees Credit Society","7.01.1986","WORKING"]
[174,"KL0101E00291","AG’s Office Employees Co-operative Society T 291","Other Primary Credit Society","Thiruvananthapuram","Thiruvananthapuram","State","Employees Credit Society","07.02.1996","WORKING"]
[175,"KL0101E00111","Thiruvananthapuram Taluk Teachers Employees Co-operative Society T 111","Other Primary Credit Society","Thiruvananthapuram","Thiruvananthapuram","Taluk","Employees Credit Society","16.05.1959","WORKING"]
[176,"KL0101E00279","Survey & Land Record Employees Co-operative Society T 279","Other Primary Credit Society","Thiruvananthapuram","Thiruvananthapuram","District","Employees Credit Society","19.06.1965","WORKING"]
[177,"KL0101E00323","Thiruvananthapuram District Co-operative Department Employees Co-operative Society Ltd.No.T.323","Other Primary Credit Society","Thiruvananthapuram","Thiruvananthapuram","District","Employees Credit Society","08.07.1969","WORKING"]
[178,"KL0101E00290","Khadi & Village Industries Commission(kerala) Employees Co-operative Society T 290","Other Primary Credit Society","Thiruvananthapuram","Thiruvananthapuram","Taluk","Employees Credit Society","13.01.1966","WORKING"]
[179,"KL0101E00375","Kerala Public Service Commission Staff Co-operative Society T 375","Other Primary Credit Society","Thiruvananthapuram","Thiruvananthapuram","Taluk","Employees Credit Society","09.08.1972","WORKING"]
[180,"KL0101E01940","Postal, Telecom , BSNL Employees Co-opeartive Society  1940","Other Primary Credit Society","Thiruvananthapuram","Thiruvananthapuram","Taluk","Employees Credit Society","30.06.1106 ME(1931)","WORKING"]
[181,"KL0101E02138","Planning Board Employees Co-operative Society 4362","Other Primary Credit Society","Thiruvananthapuram","Thiruvananthapuram","Taluk","Employees Credit Society","21.08.1981","WORKING"]
[182,"KL0101E01607","Museum Employees Co-operative Society 1607","Other Primary Credit Society","Thiruvananthapuram","Thiruvananthapuram","Taluk","Employees Credit Society","02.11.1927","WORKING"]
[183,"KL0101E00400","Thiruvananthapuram  Dairy Employess Co-operative Society Ltd T 400","Other Primary Credit Society","Thiruvananthapuram","Thiruvananthapuram","Taluk","Employees Credit Society","14.08.1973","WORKING"]
[184,"KL0101E00891","Census Employees Co-operative Society T 891","Other Primary Credit Society","Thiruvananthapuram","Thiruvananthapuram","Taluk","Employees Credit Society","12.04.1985","WORKING"]
[185,"KL0101E01384","Meterological Employees Co-operative Society T 306","Other Primary Credit Society","Thiruvananthapuram","Thiruvananthapuram","Taluk","Employees Credit Society","17.11.1966","WORKING"]
[186,"KL0101E00315","Sidco Employees Co-operative Society T 315","Other Primary Credit Society","Thiruvananthapuram","Thiruvananthapuram","Taluk","Employees Credit Society","10.10.1987","WORKING"]
[187,"KL0101E03861","RBI Employees Co-operative Society 3861","Other Primary Credit Society","Thiruvananthapuram","Thiruvananthapuram","Taluk","Employees Credit Society","28.12.1955","WORKING"]
[188,"KL0101E00349","Kerala Financial Corporation Employees Co-operative Society T 349","Other Primary Credit Society","Thiruvananthapuram","Thiruvananthapuram","Taluk","Employees Credit Society","08.09.1970","WORKING"]
[189,"KL0101E01034","State Central Library Employees Co-operative Society T 1034","Other Primary Credit Society","Thiruvananthapuram","Thiruvananthapuram","Taluk","Employees Credit Society","09.03.1990","WORKING"]
[190,"KL0101E00315","Trida Employees Co-operative Society T 1050","Other Primary Credit Society","Thiruvananthapuram","Thiruvananthapuram","Taluk","Employees Credit Society","09.05.1990","WORKING"]
[191,"KL0101E01065","Government Homeopathic Medical College Co-operative Society T 1065","Other Primary Credit Society","Thiruvananthapuram","Thiruvananthapuram","Taluk","Employees Credit Society","02.02.1991","WORKING"]
[192,"KL0101E01063","Regional Cancer Centre Employees Co-operative Society T 1063","Other Primary Credit Society","Thiruvananthapuram","Thiruvananthapuram","Taluk","Employees Credit Society","01.12.1990","WORKING"]
[193,"KL0101E00323","Thiruvananthapuram District Excise deptartment Employess Co-operative Society T 1068","Other Primary Credit Society","Thiruvananthapuram","Thiruvananthapuram","Taluk","Employees Credit Society","06.03.1991","WORKING"]
[194,"KL0101E01114","Thiruvananthapuram District Civil Courts Staff Co-operative Society Ltd.No.T 1114","Other Primary Credit Society","Thiruvananthapuram","Thiruvananthapuram","District","Employees Credit Society","01.07.1992","WORKING"]
[195,"KL0101E00984","Jail Department Employees Co-operative Society T 1232","Other Primary Credit Society","Thiruvananthapuram","Thiruvananthapuram","Taluk","Employees Credit Society","04.11.1993","WORKING"]
[196,"KL0101E01348","Central Polytechnic Employees Co-operative Society T 1348","Other Primary Credit Society","Thiruvananthapuram","Thiruvananthapuram","Taluk","Employees Credit Society","15.02.1997","WORKING"]
[197,"KL0101E01355","Registration Department Employees Co-operative Society T 1355","Other Primary Credit Society","Thiruvananthapuram","Thiruvananthapuram","District","Employees Credit Society","31.5.1997","WORKING"]
[198,"KL0101E01413","Central Government Employees & Workers Co-operative Credit Employees Co-operative Society T 1413","Other Primary Credit Society","Thiruvananthapuram","Thiruvananthapuram","Taluk","Employees Credit Society","20.02.1999","WORKING"]
[199,"KL0101E03842","H.H.M.S.P.B. N.S.S. College For Womens Employees Co-operative Society T 1409","Other Primary Credit Society","Thiruvananthapuram","Thiruvananthapuram","Taluk","Employees Credit Society","10.02.1999","WORKING"]
[200,"KL0101E01004","CDAC Employees Co-operative Society T 1004","Other Primary Credit Society","Thiruvananthapuram","Thiruvananthapuram","Taluk","Employees Credit Society","30.01.1989","WORKING"]
[201,"KL0101E00807","Thiruvananthapuram Engineering College Employees Co-operative Society T 807","Other Primary Credit Society","Thiruvananthapuram","Thiruvananthapuram","District","Employees Credit Society","15.09.1982","WORKING"]
[202,"KL0101E04423","I.H.R.D. Employees Co-operative Society 4423","Other Primary Credit Society","Thiruvananthapuram","Thiruvananthapuram","Taluk","Employees Credit Society","02.06.1999","WORKING"]
[203,"KL0101E01484","Attukal Bhagavathi kshethram  Trust Employees Co-operative Society.T 1484","Other Primary Credit Society","Thiruvananthapuram","Thiruvananthapuram","Taluk","Employees Credit Society","30.01.2002","WORKING"]
[204,"KL0101E01309","Central Ground Water Employees Co-operative Society T 1309","Other Primary Credit Society","Thiruvananthapuram","Thiruvananthapuram","Taluk","Employees Credit Society","1.3.1996","WORKING"]
[205,"KL0101E01118","Thiruvananthapuram Co-operative Urban Bank Employees Co-operative Society T 1118","Other Primary Credit Society","Thiruvananthapuram","Thiruvananthapuram","Taluk","Employees Credit Society","12.8.1992","WORKING"]
[206,"KL0101E04405","Harbour Engineering Employees Co-operative Society Ltd.No.4405","Other Primary Credit Society","Thiruvananthapuram","Thiruvananthapuram","State","Employees Credit Society","22.11.1995","WORKING"]
[207,"KL0101E01549","Thiruvananthapuram Airport Authority of India Employees Co.operative Credit cs Ltd  T 1549","Other Primary Credit Society","Thiruvananthapuram","Thiruvananthapuram","Taluk","Employees Credit Society","02.12.2004","WORKING"]
[208,"KL0101E00319","Kerala Rajbhavan Employees Co-operative Society T 319","Other Primary Credit Society","Thiruvananthapuram","Thiruvananthapuram","Taluk","Employees Credit Society","23.01.1968","WORKING"]
[209,"KL0101E00300","Sanika School Employees Co-operative Society T 300","Other Primary Credit Society","Thiruvananthapuram","Thiruvananthapuram","Taluk","Employees Credit Society","16.07.1966","WORKING"]
[210,"KL0101E00846","Thiruvananthapuram Taluk Co-operative Employees Co-operative Society T 846","Other Primary Credit Society","Thiruvananthapuram","Thiruvananthapuram","Taluk","Employees Credit Society","06.02.1984","WORKING"]
[211,"KL0101I01712","KSFE Rtd. Employees Thiruvananthapuram  Jilla  co-operative society  Ltd T 1712","Other Primary Credit Society","Thiruvananthapuram","Thiruvananthapuram","Taluk","miscellaneous Society ","4.5.2010","WORKING"]
[212,"KL0101E01913","Rajadhani Group of Institutions Employees Co-operative Society T 1913","Other Primary Credit Society","Thiruvananthapuram","Thiruvananthapuram","District","Employees Credit Society","4.3.2014","WORKING"]
[213,"KL0101E02015","Technopark Employees Co-operative Society 1990","Other Primary Credit Society","Thiruvananthapuram","Thiruvananthapuram","Taluk","Employees Credit Society","5.1.2015","WORKING"]
[214,"KL0101E02015","Vasudeva Vilasom Employees Co-operative Society T 2015","Other Primary Credit Society","Thiruvananthapuram","Thiruvananthapuram","Taluk","Employees Credit Society","23.07.2015","WORKING"]
[215,"KL0101E02116","Star Health & Allied Insurance Employees Co-operative Society T 2116","Other Primary Credit Society","Thiruvananthapuram","Thiruvananthapuram","Taluk","Employees Credit Society","04.3.2016","WORKING"]
[216,"KL0101E02138","Horticorp Employees Co-operative Society T 2138","Other Primary Credit Society","Thiruvananthapuram","Thiruvananthapuram","Taluk","Employees Credit Society","6.1.2017","WORKING"]
[217,"KL0101E02139","C-Dit Employees Credit Co-operative Society T 2139","Other Primary Credit Society","Thiruvananthapuram","Thiruvananthapuram","Taluk","Employees Credit Society","27.1.2017","WORKING"]
[218,"KL0101E02175","NISH Employees Credit Co-operative Society T 2175","Other Primary Credit Society","Thiruvananthapuram","Thiruvananthapuram","Taluk","Employees Credit Society","18-05-2018","WORKING"]
[219,"KL0101E02252","Invis Employees Co-operative Society 2252","Other Primary Credit Society","Thiruvananthapuram","Thiruvananthapuram","Taluk","Employees Credit Society","05.10.2020","WORKING"]
[220,"KL0101E02197","Supplyco Employees Co-operative Society T 2197","Other Primary Credit Society","Thiruvananthapuram","Thiruvananthapuram","Taluk","Employees Credit Society","19-12-2018","WORKING"]
[221,"KL0101E00167","RBI Employees Co-Operative Society Ltd. T 193","Other Primary Credit Society","Thiruvananthapuram","Thiruvananthapuram","Taluk","Employees Credit Society","22.07.1961","WORKING"]
[222,"KL0101E00361","National Sample Survey Organisation Employees Co-Operative Society Ltd.T 361","Other Primary Credit Society","Thiruvananthapuram","Thiruvananthapuram","Taluk","Employees Credit Society","18.11.1971","WORKING"]
[223,"KL0101E00929","Central Bank of India Employees Co-Operative Society Ltd. T 929","Other Primary Credit Society","Thiruvananthapuram","Thiruvananthapuram","More Than A District","Employees Credit Society","5.5.1986","WORKING"]
[224,"KL0101E00984","Samoohya Neethiyum Vanitha Sisu Vikasana  department Employees Co-Operative Society Ltd. T 1721","Other Primary Credit Society","Thiruvananthapuram","Thiruvananthapuram","Taluk","Employees Credit Society","22.10.2010","WORKING"]
[225,"KL0102E00023","River valley Residence Welfare Co-Operative Society Ltd.T 1722","Other Primary Credit Society","Thiruvananthapuram","Thiruvananthapuram","Taluk","Employees Credit Society","23.7.2010","WORKING"]
[226,"KL0101E01724","Thiruvananathapuram jilla panchayath department Employees Co-Operative Society Ltd.T 1724","Other Primary Credit Society","Thiruvananthapuram","Thiruvananthapuram","District","Employees Credit Society","12.8.2010","WORKING"]
[227,"KL0101A01632","Trivandrum Agricultural Improvement Co-operative Society T 1632","Other Primary Credit Society","Thiruvananthapuram","Thiruvananthapuram","Taluk","Agriculture Improvement Society","05.05.2006","WORKING"]
[228,"KL0101I01652","Tvpm Agri/Horticultural development Co-operative Society T 1652","Other Primary Credit Society","Thiruvananthapuram","Thiruvananthapuram","Taluk","Agriculture Improvement Society","10.05.2006","WORKING"]
[229,"KL0101A01892","Chanthavila Agicultural Improvement Co.operative Society T 1892","Other Primary Credit Society","Thiruvananthapuram","Thiruvananthapuram","Taluk","Agriculture Improvement Society","10.01.2014","WORKING"]
[230,"KL0102A01525","Karumam Agricultural Improvement Co-operative Society T 1990","Other Primary Credit Society","Thiruvananthapuram","Thiruvananthapuram","Taluk","Agricultural Improvement Society","05.05.2015","WORKING"]
[231,"KL0103A02212","Chempazhanthy Agricultural Improvement Co-operative Society T 1750","Other Primary Credit Society","Thiruvananthapuram","Thiruvananthapuram","Taluk","Agricultural Improvement Society","27.12.2011","WORKING"]
[232,"KL0101A01728","Sree Vellayani Agricultural Improvement Co-Operative Society Ltd.T 1728","Other Primary Credit Society","Thiruvananthapuram","Thiruvananthapuram","Taluk","Agricultural Improvement Society","1.12.2010","WORKING"]
[233,"KL0101A01735","Puthenthoppe Agircultural Improvement Co-Operative Society Ltd.T 1735","Other Primary Credit Society","Thiruvananthapuram","Thiruvananthapuram","Taluk","Agricultural Improvement Society","17.08.2011","WORKING"]
[234,"KL0101E03842","M.G. College Co-operative Society 3842","Other Primary Credit Society","Thiruvananthapuram","Thiruvananthapuram","Taluk","Employees Credit Society","10.11.1955","WORKING"]
[235,"KL0101E04453","Kerala State C-Apt Employees Credit  Co-Operative Society Ltd No 4453","Other Primary Credit Society","Thiruvananthapuram","Thiruvananthapuram","State","Other Primary Credit Society","14.03.2006","WORKING"]
[236,"KL0101E01913","Thiruvananthapuram District Industries Department Employees Co-operative Society T 361","Other Primary Credit Society","Thiruvananthapuram","Thiruvananthapuram","District","Employees Credit Society","13.11.1971","WORKING"]
[237,"KL0101E00918","Dooradarsan Employees Co-Operative Society Ltd. T 918","Other Primary Credit Society","Thiruvananthapuram","Thiruvananthapuram","Taluk","Employees Credit Society","7.1.1986","WORKING"]
[238,"KL0106E01293","Terumo Penpol Employees Co-operative Society Ltd No  T.1293","Other Primary Credit Society ","Thiruvananthapuram","Kattakkada","Vilappil Panchayath","Employees Credit Societies","14.7.95","WORKING"]
[239,"KL0106E00367","Kattakkada Christian College Employees Co-operative Society Ltd No T.367","Other Primary Credit Society ","Thiruvananthapuram","Kattakkada","Poovachal Panchayath","Employees Credit Societies","12.01.1972","WORKING"]
[240,"KL0101E00721","Malayinkeezhu Madavakavi Gov Arts and Science College Co-operative Society Ltd No T 2334","Other Primary Credit Society ","Thiruvananthapuram","Kattakkada","Malayinkeezhu Panchayath","Employees Credit Societies","19.01.2024","WORKING"]
[241,"KL0106E02150","Kattakada Taluk Co-operative Employees Co-operative Society Ltd No.T 2150","Other Primary Credit Society ","Thiruvananthapuram","Kattakkada","Kattakkada Taluk","Employees Credit Societies","09.08.2017","WORKING"]
[242,"KL0106E02242","Kattakkada Taluk Govt Servant Co-operative Society Ltd No.T2242 ","Other Primary Credit Society ","Thiruvananthapuram","Kattakkada","Kattakkada Taluk","Employees Credit Societies","09.06.2020","WORKING"]
[243,"KL0106A01543","Kattakkada Agricultural Improvement Co-operative Society Ltd No  T.1543","Other Primary Credit Society ","Thiruvananthapuram","Kattakkada","Kattakkada Taluk"," Agricultural Improvement Co-operative Societies, ","04.10.2004","WORKING"]
[244,"KL0106K01494","Vilapil Co-operative Rural Development Society Ltd No T.1494","Other Primary Credit Society ","Thiruvananthapuram","Kattakkada","Kattakkada Taluk","Rural Co-operative Societies","05.08.2002","WORKING"]
[245,"KL0106K01563","Poovachal rural Devlopmnt Co-operative Society Ltd No  T.1563","Other Primary Credit Society ","Thiruvananthapuram","Kattakkada","Kattakkada Taluk","Rural Co-operative Societies","02.05.2005","WORKING"]
[246,"KL0106K01786","Kattakkada Co-operative Rural Development Co-operative Society, Ltd No T 1786","Other Primary Credit Society ","Thiruvananthapuram","Kattakkada","Kattakkada Taluk","Rural Co-operative Societies","7.6.2012","WORKING"]
[247,"KL0106K01683","Peraikonam Rural Development Co-operative Society Ltd No  T 1683","Other Primary Credit Society ","Thiruvananthapuram","Kattakkada","Kattakkada Taluk","Rural Co-operative Societies","30.11.2007","WORKING"]
[248,"KL0102E01323","APCOS Employees Co Operative Society Ltd No T 1323,Plamoottukkada.P.O","Other Primary Credit Society","Thiruvananthapuram","Neyyattinkara"," District","Employees Credit Society","4.8.1996","WORKING"]
[249,"KL0102E00280","Neyyattinkara Govt. Servent Co Operative Society Ltd No T 280,Neyyattinkara.P.O","Other Primary Credit Society","Thiruvananthapuram","Neyyattinkara","Taluk","Employees Credit Society","18.6.1965","WORKING"]
[250,"KL0102E00914","kerala automobile Employees Co Operative Society Ltd No T 914, athiyannoor .P.O","Other Primary Credit Society","Thiruvananthapuram","Neyyattinkara","Taluk","Employees Credit Society","12.12.85","WORKING"]
[251,"KL0102E00023","L M S Employees Co Operative Society Ltd No 23, Neyyattinkara. P.O","Other Primary Credit Society","Thiruvananthapuram","Neyyattinkara"," District","Employees Credit Society","22.11.1098","WORKING"]
[252,"KL0102E00138","Neyyattinkara Taluk Govt School Teachers Co Operative Society Ltd No T.138  Neyyattinkara. P.O      ","Other Primary Credit Society","Thiruvananthapuram","Neyyattinkara","Taluk","Employees Credit Society","22.5.1982","WORKING"]
[253,"KL0102E00439","VTMNSS College Employees Co Operative Society Ltd No T 439,hanuvachapuram P.O","Other Primary Credit Society","Thiruvananthapuram","Neyyattinkara","Taluk","Employees Credit Society","18.12.1972","WORKING"]
[254,"KL0102E00369","Neyyattinkara Private School Teachers Co Operative Society Ltd No T 369, Neyyattinkara. P.O","Other Primary Credit Society","Thiruvananthapuram","Neyyattinkara"," District","Employees Credit Society","5.12.2002","WORKING"]
[255,"KL0102E00392","Neyyattinkara Thaluk Plantation Employees Co Operative Society Ltd No T 392,Neyyattinkara. P.O","Other Primary Credit Society","Thiruvananthapuram","Neyyattinkara","Taluk","Employees Credit Society","5.12.2002","WORKING"]
[256,"KL0102E01459","Neyyattinkara Taluk Govt Employees Welfare Co Operative Society Ltd No T 1459, Neyyattinkara. P.O","Other Primary Credit Society","Thiruvananthapuram","Neyyattinkara","Taluk","Employees Credit Society","03.08.2000","WORKING"]
[257,"KL0102E01785","Thiruvananthapuram;District Self Financing School College Staff Co Operative Society Ltd No T 1785","Other Primary Credit Society","Thiruvananthapuram","Neyyattinkara"," District","Employees Credit Society","31.5.2012","WORKING"]
[258,"KL0102A01576","Ponvila Agriculture Improvement Co Operative Society Ltd No T 1576,Ayira.P.O","Other Primary Credit Society","Thiruvananthapuram","Neyyattinkara","Taluk","Agricultural Improvement ","24.04.2011","WORKING"]
[259,"KL0102A01592","Parasala Agriculture Improvement Co operative Society Ltd No T 1592, Inchivila ,Parassala.P.O","Other Primary Credit Society","Thiruvananthapuram","Neyyattinkara","Taluk","Agricultural Improvement ","24.04.2012","WORKING"]
[260,"KL0102A01523","Pallichal Agriculture Improvement Co operative Society Ltd T.1523, Balaramapuram P.O","Other Primary Credit Society","Thiruvananthapuram","Neyyattinkara","Taluk","Agricultural Improvement ","24.4.2014","WORKING"]
[261,"KL0102A01550","Thirupuram Agriculture Improvement Co operative Society Ltd No T 1550, Thirupuram.P.O","Other Primary Credit Society","Thiruvananthapuram","Neyyattinkara","Taluk","Agricultural Improvement ","24.4.2015","WORKING"]
[262,"KL0102A01525","Athiyanoor Agriculture Improvement Co operative Society Ltd No T 1525,Nellimoodu.P.O","Other Primary Credit Society","Thiruvananthapuram","Neyyattinkara","Taluk","Agricultural Improvement ","24.4.2016","WORKING"]
[263,"KL0102A01784","Vizhinjam Agriculture Improvement Co operative Society Ltd No T 1784,Vizhijam.P.O","Other Primary Credit Society","Thiruvananthapuram","Neyyattinkara","Taluk",null,"7.6.20121","WORKING"]
[264,"KL0102K01509","Parasala Rural Co operative Society Ltd No T 1509, Ayira.P.O","Other Primary Credit Society","Thiruvananthapuram","Neyyattinkara","Taluk","Rural Co Operative Society","27.12.2002","WORKING"]
[265,"KL0102K01506","Perumkadavila Rural Co operative Society Ltd No T 1506, Perumkadavila.P.O","Other Primary Credit Society","Thiruvananthapuram","Neyyattinkara","Taluk","Rural Co Operative Society","05.12.2002","WORKING"]
[266,"KL0102K01508","Neyyattinkara Rural development Co operative Society Ltd No T 1508, Neyyattinkara.P.O","Other Primary Credit Society","Thiruvananthapuram","Neyyattinkara","Taluk","Rural Co Operative Society","12.12.2002","WORKING"]
[267,"KL0102K01768","Nethaji Rural Development.Co operative Society Ltd No T 1768,Mukkampalamoodu,Naruvamoodu.P.O","Other Primary Credit Society","Thiruvananthapuram","Neyyattinkara","Taluk","Rural Co Operative Society","24.3.2012","WORKING"]
[268,"KL0102K01499","Mullur Rural Development Co Operative Society Ltd No T 1499, Vizhinjam P.O","Other Primary Credit Society","Thiruvananthapuram","Neyyattinkara","Taluk","Rural Co Operative Society","07.10.2002","WORKING"]
[269,"KL0102K01884","Adimalathura Rural Development Co Operative Society Ltd No T 1884, Adimalathura.p.O","Other Primary Credit Society","Thiruvananthapuram","Neyyattinkara","Taluk","Rural Co Operative Society","30.11.2013","WORKING"]
[270,"KL0102K01747","Chenkal Rural .Co operative Society Ltd No T 1747, Maryapuram P.O","Other Primary Credit Society","Thiruvananthapuram","Neyyattinkara","Taluk","Rural Co Operative Society","19.12.2011","WORKING"]
[271,"KL0103E10381","Nedumangad Taluk Aided School Employees Co-operative Society Ltd  T.381, Pacha P.O","Other Primary Credit Society ","Thiruvananthapuram","Nedumangad","Taluk","Employees Credit Co-operative Society ","9.4.1972","WORKING"]
[272,"KL0103E02124","IISER Employees Co-operative Society Ltd  T.2124, Vithura P.O","Other Primary Credit Society ","Thiruvananthapuram","Nedumangad","Taluk","Employees Credit Co-operative Society ","25-07-2016","WORKING"]
[273,"KL0103E00382","Nedumangad Taluk Co-operative Employees Co-operative Society Ltd  T.382, Nedumangad P.O","Other Primary Credit Society ","Thiruvananthapuram","Nedumangad","Taluk","Employees Credit Co-operative Society ","9.4.1972","WORKING"]
[274,"KL0103E00225","Nedumangad Taluk Government Servents Co-operative Society Ltd  T.225, Pacha P.O","Other Primary Credit Society ","Thiruvananthapuram","Nedumangad","Taluk","Employees Credit Co-operative Society ","3.19.1963","WORKING"]
[275,"KL0103E00767","Nedumangad Taluk Local Bodies Employees Co-operative Society Ltd  T.767, Nedumangad P.O.","Other Primary Credit Society ","Thiruvananthapuram","Nedumangad","Taluk","Employees Credit Co-operative Society ","12.3.1981","WORKING"]
[276,"KL0103E01974","Nedumangad Taluk Un Aided School Teachers And Employees Co-operative Society Ltd  T.1974, Kallara, Pangode P.O","Other Primary Credit Society ","Thiruvananthapuram","Nedumangad","Taluk","Employees Credit Co-operative Society ","11.10.2014","WORKING"]
[277,"KL0103E01915","Regional Estate Employees Co-operative Society Ltd  T.1915, Pazhakutty P.O","Other Primary Credit Society ","Thiruvananthapuram","Nedumangad","Taluk","Employees Credit Co-operative Society ","3.5.2014","WORKING"]
[278,"KL0103E11450","TBGRI  Employees Co-operative Society Ltd  T.1450, Karumangode P.O","Other Primary Credit Society ","Thiruvananthapuram","Nedumangad","Taluk","Employees Credit Co-operative Society ","1.30.2000","WORKING"]
[279,"KL0103A02212","Nedumangad Agricultural Improvement Co-operative Society Ltd  T.2212, Nedumangad P.O","Other Primary Credit Society ","Thiruvananthapuram","Nedumangad","Taluk","Agriculture improvement society","7.26.2019","WORKING"]
[280,"KL0103I01496","Attukal Rural Co-operative Society Ltd  T.1496 Attukal Nedumangad P O","Other Primary Credit Society ","Thiruvananthapuram","Nedumangad","Taluk","Miscellaneous Society","11-09-2002","WORKING"]
[281,"KL0103I02149","Manikkal Rural Co-operative Society Ltd  T.2149 MANIKKAL P O","Other Primary Credit Society ","Thiruvananthapuram","Nedumangad","Taluk","Miscellaneous Society","04-07-2017","WORKING"]
[282,"KL0103I01630","Javahar Rural Co-operative Society Ltd  T.1630 VATTAPPARA P O","Other Primary Credit Society ","Thiruvananthapuram","Nedumangad","Taluk","Miscellaneous Society","05-05-2006","WORKING"]
[283,"KL0103I01769","Kaipadi Agricultural Rural Developement Co-operative Society Ltd  T.1769 kaippadi P O","Other Primary Credit Society ","Thiruvananthapuram","Nedumangad","Taluk","Miscellaneous Society","04-03-2012","WORKING"]
[284,"KL0103I01841","T 2141 Karakulam Rural Welfare Co-operative Society Ltd karakulam P O","Other Primary Credit Society ","Thiruvananthapuram","Nedumangad","Taluk","Miscellaneous Society","01-04-2017","WORKING"]
[285,"KL0103I01559"," T 1559 Venjaramood Rural Co-operative Society Ltd  VENJARAMOOD ","Other Primary Credit Society ","Thiruvananthapuram","Nedumangad","Taluk","Miscellaneous Society","05-04-2005","WORKING"]
[286,"KL0103I01802","Kachani Co Operative Rural Development Society T1802 KACHANI P O KARAKULAM ","Other Primary Credit Society ","Thiruvananthapuram","Nedumangad","Taluk","Miscellaneous Society","13-09-2012","WORKING"]
[287,"KL0103K01491","Janasevini Rural Co-operative Bank T.1491, Chettachal P.O.","Other Primary Credit Society ","Thiruvananthapuram","Nedumangad","Taluk","Rural  Co-operative Society  ","30-05-2005","WORKING"]
[288,"KL0104E00312","Attingal Educational Dist Govt: School Teachers CS - Ltd No.T 312 Near Ammankovil ,Palace Road Attinagal PO 695 101","Other Primary Credit Society ","Tvpm","Chirayinkeezhu","Taluk","Employees Credit Society","19.04.1967","WORKING"]
[289,"KL0104E00654","Chirayinkeezhu Taluk  Muncipal Employees CS - Ltd No. T 654 Near Muncipal Office, Attingal 695 101","Other Primary Credit Society ","Tvpm","Chirayinkeezhu","Taluk","Employees Credit Society","05.01.1977","WORKING"]
[290,"KL0104E00401","Chirayinkil Taluk Aided School Employees CS - Ltd.No.401 Chirayinkeezhu PO 695304","Other Primary Credit Society ","Tvpm","Chirayinkeezhu","Taluk","Employees Credit Society","22.10.1973","WORKING"]
[291,"KL0104E00416","Chirayinkil Taluk Co-op Employees Society - Ltd. No. T.416 Attingal PO 695 101","Other Primary Credit Society ","Tvpm","Chirayinkeezhu","Taluk","Employees Credit Society","15.02.1974","WORKING"]
[292,"KL0104A02188","Attingal Agricultural Improvement CS - Ltd No. T 2188, Vilayilmoola Attingal PO PIN 695101","Other Primary Credit Society ","Tvpm","Chirayinkeezhu","Taluk","Agriculture Improvement Society","04.08.2018","WORKING"]
[293,"KL0104A01849","Chirayinkeezhu Agricultural Improvement CS Ltd No. T 1849 Chirayinkeezhu PO 695304","Other Primary Credit Society ","Tvpm","Chirayinkeezhu","Taluk","Agriculture Improvement Society","19.04.2013","WORKING"]
[294,"KL0104A02013","Koduvazhanoor Agriculture Improvement CS - Ltd. No. T 2013 Koduvazhannoor PO 695612","Other Primary Credit Society ","Tvpm","Chirayinkeezhu","Taluk","Agriculture Improvement Society","22.07.2015","WORKING"]
[295,"KL0104K01636","Chirayinkeezhu Block Rural Development CS Ltd No T 1636 Chirayinkeezhu PO 695304","Other Primary Credit Society ","Tvpm","Chirayinkeezhu","Taluk","Rural Coop Society","06.05.2006","WORKING"]
[296,"KL0104K01741","Elampa Rural CS - Ltd No. T 1741Elampa PO , Attingal PO 695 101","Other Primary Credit Society ","Tvpm","Chirayinkeezhu","Taluk","Rural Coop Society","09.01.2011","WORKING"]
[297,"KL0104K02081","Kayikkara Rural Development CS - Ltd. No. T.2081 Kayikkara Anchutheng PO 695307","Other Primary Credit Society ","Tvpm","Chirayinkeezhu","Taluk","Rural Coop Society","09.02.2016","WORKING"]
[298,"KL0104G02105","Pulimath Rural Welfare Co-operative Society Ltd. No. T 2105 Karette ,Vamanapuran PO 695606","Other Primary Credit Society ","Tvpm","Chirayinkeezhu","Taluk","Rural Coop Society","04.03.2016","WORKING"]
[299,"KL0104K01540","Keezhattingal Rural Co-operative Society - Ltd.No.T.1540 Elappuram, Keezhttingal PO 695306","Other Primary Credit Society ","Tvpm","Chirayinkeezhu","Taluk","Rural Coop Society","25.06.2004","WORKING"]
[300,"KL0104K01551","Kilimanoor Block Rural CS - Ltd.No.T.1551Karette, Vamanapuram PO 695606","Other Primary Credit Society ","Tvpm","Chirayinkeezhu","Taluk","Rural Coop Society","31.01.2005","WORKING"]
[301,"KL0104K01865","Kilimanoor Rural Co-operative Society  - Ltd. No. T 1865 Puthiyakav, Kilimanoor PO 695601","Other Primary Credit Society ","Tvpm","Chirayinkeezhu","Taluk","Rural Coop Society","03.07.2013","WORKING"]
[302,"KL0104K01570","Panappamkunnu Rural Co-operative Society   - Ltd No. T.1570 Malakkal PO Madavoor,Pallikkal 695604","Other Primary Credit Society ","Tvpm","Chirayinkeezhu","Taluk","Rural Coop Society","07.06.2005","WORKING"]
[303,"KL0104K01968","Vakkom Rural Co-operative Society   - Ltd No. T.1968 Vakkom PO 695306","Other Primary Credit Society ","Tvpm","Chirayinkeezhu","Taluk","Rural Coop Society","15.10.2014","WORKING"]
[304,"KL0104I00927","Chirayinkeezhu Taluk Thayyal Thozhilali Co-Operative Society Ltd.T 927 CSI ComplexAttingal P.O. PIN 695101","Other Primary Credit Society ","Thiruvananthapuram ","Chirayinkeezhu","Taluk","Tailors ","23.04.1986","WORKING"]
[305,"KL0104U01552","Attingal Co-operative Urban Society Limited No. T 1552  Attinagal PO 695 101","Other Primary Credit Society ","Tvpm","Chirayinkeezhu","Taluk","Coop Urban Society","05.02.2005","WORKING"]
[306,"KL0105A01852","Vettoor Agriculture Improvement CS  LTD T. 1852,Vettoor po,Varkala ","Other Primary Credit Society ","Thiruvananthapuram","VARKALA","Varkala","Agriculture improvement society","04.05.2013","WORKING"]
[307,"KL0105K01528","Varkala Block Rural CS Ltd No 1528,Varkala PO","Other Primary Credit Society ","Thiruvananthapuram","Varkala","Cherunniyoor ,Vettoor Ottoor ,Elakamon, Edava Ayiroor","Rural Co Operative Society","27-09-2003","WORKING"]
[308,"KL0105K01994","Manamboor Rural CS Ltd No 1994,Kavalayoor PO","Other Primary Credit Society ","Thiruvananthapuram","Varkala","Manaboor Panchyath","Rural Co Operative Society","5.6.2015","WORKING"]
[309,"KL0101E01348","Varkala Urban Co-operative Society  LTD T 1799 , Varkala PO,Varkala","Other Primary Credit Society ","Thiruvananthapuram","Varkala","Varkala Municipality","Co-op Urban Society","27.08.2012","WORKING"]
[310,"KL0101H00732","Government Secretariate Staff Housing Co-operative Society T 732","Primary Co-operative House Building Credit Society","Thiruvananthapuram","Thiruvananthapuram","Taluk","Primary Housing Society","18.9.1979","WORKING"]
[311,"KL0101H00128","The Co.operative House Construction and Mortgage  Co-operative Society T.128","Primary Co-operative House Building Credit Society","Thiruvananthapuram","Thiruvananthapuram","Taluk","Primary Housing Society","23.10.1959","WORKING"]
[312,"KL0101H01314","Kerala University Staff Housing Co-operative Society T 1314","Primary Co-operative House Building Credit Society","Thiruvananthapuram","Thiruvananthapuram","District","Primary Housing Society","26.3.1996","WORKING"]
[313,"KL0101H01460","Thiruvananthapuram District Co-operative Bank Staff Housing Co-operative Society T 1460","Primary Co-operative House Building Credit Society","Thiruvananthapuram","Thiruvananthapuram","Taluk","Primary Housing Society","9.8.2000","WORKING"]
[314,"KL0103H00718","Vanchinadu Housing Co-operative Society T 1088","Primary Co-operative House Building Credit Society","Thiruvananthapuram","Thiruvananthapuram","Taluk","Primary Housing Society","18.6.1991","WORKING"]
[315,"KL0101H01561","Kerala Medical Education Department Staff Housing Co-operative Society T 1561","Primary Co-operative House Building Credit Society","Thiruvananthapuram","Thiruvananthapuram","Taluk","Primary Housing Society","11.4.2005","WORKING"]
[316,"KL0101H01614","Pattom Housing Co-operative Society  Ltd T 1614","Primary Co-operative House Building Credit Society","Thiruvananthapuram","Thiruvananthapuram","Taluk","Primary Housing Society","1.3.2006","WORKING"]
[317,"KL0101H04426","K.S.E.B officers house construction Co-operative Society  T 4426","Primary Co-operative House Building Credit Society","Thiruvananthapuram","Thiruvananthapuram","Taluk","Primary Housing Society","27.4.2000","WORKING"]
[318,"KL0101H01831","Federal House Constructions Co.operative Society T 1831","Primary Co-operative House Building Credit Society","Thiruvananthapuram","Thiruvananthapuram","District","Primary Housing Society","07.01.2013","WORKING"]
[319,"KL0101H02304","Pragathi Housing Co-Operative Society Ltd. T 2304","Primary Co-operative House Building Credit Society","Thiruvananthapuram","Thiruvananthapuram","Taluk","Primary Housing Society","23.06.2022","WORKING"]
[320,"KL0102H00385","SBI Staff Co-operative Housing  Society Ltd.  4335","Primary Co-operative House Building Credit Society","Thiruvananthapuram","Thiruvananthapuram","District","Primary Housing Society","16.05.1975","WORKING"]
[321,"KL0101E00984","Thiruvananthapuram District Grama vikasana Department Employees Co-Operative Society Ltd. T 984","Primary Co-operative House Building Credit Society","Thiruvananthapuram","Thiruvananthapuram","Taluk","Employees Credit","29.06.1988","WORKING"]
[322,"KL0102H00737","KTDC Employees Housing Co-Operative Society Ltd.4390","Primary Co-operative House Building Credit Society","Thiruvananthapuram","Thiruvananthapuram","District ","Primary Housing Society","30.07.1993","WORKING"]
[323,"KL0101H01009","Thirumala Ex-service Housing Service Co-operative Society T 1009","Primary Co-operative House Building Credit Society ","Thiruvananthapuram","Thiruvananthapuram","Taluk","Primary Housing Society","20.04.1989","WORKING"]
[null,null,"Primary Co-operative House Building Credit Society"]
[null,null,"NIL"]
[null,null,"Primary Co-operative House Construction Credit Society"]
[null,null,"NIL"]
[null,null,"Primary Tenency Housing Credit Society"]
[null,null,"NIL"]
[null,null,"Other Primary Housing Credit Society"]
[324,"KL0101H00742","Kazhakkootam Housing Co-operative Society T 742","Primary Housing Society","Thiruvananthapuram","Thiruvananthapuram","More Than One Taluk","Primary Housing Society","10.3.1980","WORKING"]
[325,"KL0106H00747","Vilavoorkal Housing Cooperative Society Ltd No  T.747","Other Primary Housing Credit Society","Thiruvananthapuram","Kattakkada","Taluk","Other Primary Housing Credit Society","17.04.1980","WORKING"]
[326,"KL0106H00355","Poovachal Rural Housing Cooperative Society Ltd No T.355","Other Primary Housing Credit Society","Thiruvananthapuram","Kattakkada","Taluk","Other Primary Housing Credit Society","09.09.1971","WORKING"]
[327,"KL0105H00761","Oorutambalam Housing Cooperative Society Ltd No  T.1901","Other Primary Housing Credit Society","Thiruvananthapuram","Kattakkada","Taluk","Other Primary Housing Credit Society","25.01.2014","WORKING"]
[328,"KL0106H02070","Neyyar Bhavana Nirmana Sahakarana Sangam Ltd No  T.2070","Other Primary Housing Credit Society","Thiruvananthapuram","Kattakkada","Taluk","Other Primary Housing Credit Society","02.05.2016","WORKING"]
[329,"KL0102H00756","Chenkal Housing Co Operative Society Ltd No T 756, Chenkal","Other Primary Housing Credit Society","Thiruvananthapuram","Neyyattinkara","Taluk","Housing Co operative Society","02.09.1980","WORKING"]
[330,"KL0102H00737","Kunnathukal Housing Co Operative Society Ltd No T 737,Kunnathukal.P.O","Other Primary Housing Credit Society","Thiruvananthapuram","Neyyattinkara","Taluk","Housing Co operative Society","19.12.1972","WORKING"]
[331,"KL0102H00385","Neyyattinkara Housing Co Operative Society Ltd No T 385,Neyyattinkara.P.O","Other Primary Housing Credit Society","Thiruvananthapuram","Neyyattinkara","Taluk","Housing Co operative Society","22.09.1971","WORKING"]
[332,"KL0104E00416","Neyyattinkara Taluk Govt. & Quasi Govt Employees Housing Co Operative Society Ltd No T 1663,Neyyattinkara.P.O","Other Primary Housing Credit Society","Thiruvananthapuram","Neyyattinkara","Taluk","Housing Co operative Society","10.05.2006","WORKING"]
[333,"KL0102H00386","Balaramapuram Rural Housing Co Operative Society Ltd No T 386, Balaramapuram.P.O","Other Primary Housing Credit Society","Thiruvananthapuram","Neyyattinkara","Taluk","Housing Co operative Society","22.09.1992","WORKING"]
[334,"KL0102H01869","Ananthapuri Housing Co Operative Society Ltd No T 1869, Vellarada.P.O","Other Primary Housing Credit Society","Thiruvananthapuram","Neyyattinkara"," District","Housing Co operative Society","07.08.2013","WORKING"]
[335,"KL0103H00357","Vellanadu Rural Housing T.357, Vellanad P.O.","Other Primary Housing Credit Society","Thiruvananthapuram","Nedumangad","Taluk","Housing Co-Operative Societies","3.11.1971","WORKING"]
[336,"KL0103H00760","Venjaramoodu Housing Co-operative Society Ltd  T.760, Venjaramoodu P.O.","Other Primary Housing Credit Society","Thiruvananthapuram","Nedumangad","Taluk","Housing Co-Operative Societies","9.9.1980","WORKING"]
[337,"KL0103H00718","Vithura Housing Co-operative Society Ltd  T.718, Vithura P.O.","Other Primary Housing Credit Society","Thiruvananthapuram","Nedumangad","Taluk","Housing Co-Operative Societies","11.12.1978","WORKING"]
[338,"KL0104H00395","Chirayinkil Rural Housing Co-operative Society   - Ltd No. T 395 Aasa Tower, Near GGHSS, Attingal 695 101","Other Primary Housing Credit Society","Thiruvananthapuram","Chirayinkeezhu","Taluk","Primary Housing Society","24.01.1973","WORKING"]
[339,"KL0104H00778","Kilimanoor HousingCo-operative Society   - Ltd No. T 778 Kilimanoor PO PIN 695 601","Other Primary Housing Credit Society","Thiruvananthapuram","Chirayinkeezhu","Taluk","Primary Housing Society","03.06.1981","WORKING"]
[340,"KL0105H00761","Varkala Housing Cooperative Society Ltd T 761,Varkala Po","Other Primary Housing Credit Society","Thiruvananthapuram","VARKALA","Taluk","Primary Housing Society","10.22.1980","WORKING"]
[null,null,"Apex  Housing Credit Society"]
[null,null,"NIL"]
[null,null,"Primary Marketing Society"]
[341,"KL0102M00730","Neyyattinkara Marketing Co Operative Society Ltd No T 730","Primary Marketing Society","Thiruvananthapuram","Neyyattinkara","More Than One Taluk But Less Than A District","Marketing Society","30.7.79","WORKING"]
[342,"KL0102M01586","Pallichal Agricultural Development & General Marketing Ltd No. T 1586","Primary Marketing Society","Thiruvananthapuram","Neyyattinkara","Taluk","Marketing Society","27.08.2005","WORKING"]
[343,"KL0102M02338","Balaramapuram Supply &Marketing Co Operative Society Ltd No T 2338","Primary Marketing Society","Thiruvananthapuram","Neyyattinkara"," District","Marketing Society","20.12.1943","WORKING"]
[344,"KL0102M01925","Parassala Mamsa Ulapadhaka Vipanana Co Operative Society Ltd No T 1925","Primary Marketing Society","Thiruvananthapuram","Neyyattinkara","Taluk","Marketing Society","20.05.2014","WORKING"]
[345,"KL0102M01268","Thiruvananthapuram District Agricultural Produce & Marketing Co Operative Society Ltd No T 1268,Mudavoorpara.Balaramapuram.P.O","Primary Marketing Society","Thiruvananthapuram","Neyyattinkara"," District","Marketing Society","10.01.1995","WORKING"]
[346,"KL0102M02340","Athiyannoor Block farmers Producers co operative society Ltd No T 2340,Panayarakkunnu","Special Marketing Society","Thiruvananthapuram","Neyyattinkara","Taluk","Marketing Society","31.01.2025","WORKING"]
[347,"KL0103M00299","Venjaramoodu Co-operative Rubber Marketing Co-operative Society Ltd T.299, Venjaramood P.O.","Primary Marketing Society","Thiruvananthapuram","Nedumangad","Taluk","Marketing Society","7.14.1966","WORKING"]
[348,"KL0103MT1448","Manickal Panchayath General Agricultural Marketing And Processing Co-operative Society Ltd  T.1448, Manickal P.O","Primary Marketing Society","Thiruvananthapuram","Nedumangad","Taluk","Marketing Society","1.11.2000","WORKING"]
[349,"KL0103M01291","Marketing And Processing Co-operative Society Ltd T.1291, Venjaramoodu P.O","Primary Marketing Society","Thiruvananthapuram","Nedumangad","Taluk","Marketing Society","6.14.1995","WORKING"]
[350,"KL0103MT0383","Thiruvananthapuram District Co-operative  Marketing And Processing Co-operative Society Ltd  T.383, Nedumangad P.O.","Primary Marketing Society","Thiruvananthapuram","Nedumangad","Taluk","Marketing Society","8.9.1972","WORKING"]
[351,"KL0103M01275","Nedumangad Taluk Egg Marketing Co-operative Society Ltd  T.1275, Anad P.O.","Primary Marketing Society","Thiruvananthapuram","Nedumangad","Taluk","Special Marketing ","8.2.1995","WORKING"]
[352,"KL0103M02230","Panavoor Malancharakku Sambharana Vipanana Co-operative Society Ltd  T.2230, Panavoor P.O","Primary Marketing Society","Thiruvananthapuram","Nedumangad","Taluk","Special Marketing ","1.25.2020","WORKING"]
[null,null,"Federal Marketing Society"]
[null,null,"NIL"]
[null,null,"Apex  Marketing Society"]
[null,null,"NIL"]
[null,null,"Apex  Agricultural Processing Society"]
[null,null,"NIL"]
[null,null,"Primary Industrial Processing Society"]
[null,null,"NIL"]
[null,null,"Apex  Industrial Processing Society"]
[null,null,"NIL"]
[null,null,"Other Processing Society"]
[null,null,"NIL"]
[null,null,"Primary Agro Industrial Society"]
[null,null,"NIL"]
[null,null,"Federal Agro Industrial Society"]
[null,null,"NIL"]
[null,null,"Primary Consumer Society"]
[353,"KL0101C00220","AG’s Office Staff Consumer Co-operative Society T 220","Primary Consumer Society","Thiruvananthapuram","Thiruvananthapuram","Taluk","Consumer Society","13.11.1966","WORKING"]
[354,"KL0101C00258","Vijayamohini Mills Staff Consumer Co-operative Society T 258","Primary Consumer Society","Thiruvananthapuram","Thiruvananthapuram","Taluk","Consumer Society","7.7.1984","WORKING"]
[355,"KL0101C00920","Thiruvananthapuram City Armed Reserve Police Consumer Co-operative Society T 920","Primary Consumer Society","Thiruvananthapuram","Thiruvananthapuram","Taluk","Consumer Society","20.12.1982","WORKING"]
[356,"KL0104C01322","RCC Employees Consumer Co-operative Society T 2080","Primary Consumer Society","Thiruvananthapuram","Thiruvananthapuram","Taluk","Consumer Society","09.02.2016","WORKING"]
[357,"KL0101C00759","Prasanth Nagar Residence Consumer Co-Operative Society Ltd. T 759","Primary Consumer Society","Thiruvananthapuram","Thiruvananthapuram","Taluk","Consumer Society","9.9.1980","WORKING"]
[358,"KL0104C01322","Chirayinkil Taluk Co-op Employees Consumer Co-operative Society  - Ltd.No.T.1322 Attingal PO","Primary Consumer Society","Thiruvananthapuram","Chirayinkeezhu","Taluk","Consumer Society","16.5.1996","WORKING"]
[359,"KL0104C03119","Mudakkal Panchayath consumer Co-operative Society   -Ltd.No.T.3119 Poikamukku PO 695103","Primary Consumer Society","Thiruvananthapuram","Chirayinkeezhu","Taluk","Consumer Society","30.11.1953","WORKING"]
[360,"KL0105C01879","Mavinmood Consumer Cooperative Society T 1879,Kallambalam Po","Primary Consumer Society","Thiruvananthapuram","VARKALA","Chemmaruthy,Navaikulam ,Ottoor,Karavaram,Kilimanoor,Madavoor,Pallickkal","Consumer Society","11.11.2013","WORKING"]
[null,null,"Central Consumer Society"]
[null,null,"NIL"]
[null,null,"Apex  Consumer Society"]
[null,null,"NIL"]
[null,null,"Better Farming Society"]
[null,null,"NIL"]
[null,null,"Joint Farming Society"]
[361,"KL0101F01042","Nettayam  Joint farming Co-operative Co-operative Society T 1042 (Koduganoor JFCS)","Joint Farming Society","Thiruvananthapuram","Thiruvananthapuram","Taluk","Farming Society","RNA","WORKING"]
[362,"KL0102F01254","Puthukkurichi Joint Farming Co-operative Society T 1125","Joint Farming Society","Thiruvananthapuram","Thiruvananthapuram","Taluk","Farming Society","14.9.1992","WORKING"]
[363,"KL0106F01821","Vilavoorkal Joint Farming Co-operative Society Ltd No.T.1821","Joint Farming Society","Thiruvananthapuram","Kattakkada","Taluk","Joint Farming Society","21.11.2012","WORKING"]
[364,"KL0102F01326","Kollayil Joint Farming Co Operative Society Ltd No T 1326, Dhanuvachapuram .P.O","Joint Farming Societies ","Thiruvananthapuram","Neyyattinkara","Taluk","Farming Co-operative Society","4.6.1996","WORKING"]
[365,"KL0102F01218","Pallichal Co Operative Society Ltd No T 1218, Pravachambalam.P.O","Joint Farming Societies ","Thiruvananthapuram","Neyyattinkara","Taluk","Farming Co-operative Society","10.6.1993","WORKING"]
[366,"KL0102F01254","Nagapuram Joint Farming Co Operative Society Ltd No T 1254, Puthiyathura.P.O","Joint Farming Societies ","Thiruvananthapuram","Neyyattinkara","Taluk","Farming Co-operative Society","10.8.1994","WORKING"]
[367,"KL0102F00935","Vegetable & Poultry Farming Co Operative Society FARMCO) (Mukkola Kozhivalarthal Co Operative Society) T 935,Mukkola.P.O","Joint Farming Societies ","Thiruvananthapuram","Neyyattinkara","Taluk","Farming Co-operative Society","29.5.1986","WORKING"]
[368,"KL0103F01742","Kaipadi Joint Farming Co-operative Society Ltd  T.1742, Vencode P.O.","Joint Farming Society","Thiruvananthapuram","Nedumangad","Taluk","Joint Farming Society","10.11.2011","WORKING"]
[369,"KL0103F01249","Kallara Joint Farming Co-operative Society Ltd  T.1249, Kallara P.O","Joint Farming Society","Thiruvananthapuram","Nedumangad","Taluk","Joint Farming Society","6.6.1994","WORKING"]
[370,"KL0103F01178","Koliyacode Joint Farming Co-operative Society Ltd  T.1178, Koliyacode P.O","Joint Farming Society","Thiruvananthapuram","Nedumangad","Taluk","Joint Farming Society","9.16.1992","WORKING"]
[null,null,"Primary Producers Society"]
[null,null,"NIL"]
[null,null,"Central Producers Society"]
[null,null,"NIL"]
[null,null,"Apex  Producers Society"]
[null,null,"NIL"]
[null,null,"Primary Hospital Society"]
[371,"KL0101O01873","Panakkadu Shuhab Thangal Memorial Hospital Co-operative Society 1873","Primary Hospital Society","Thiruvananthapuram","Thiruvananthapuram","District","Hospital Society","31.08.2013","WORKING"]
[372,"KL0101O02131","Technopark Employees Co-Operative Hospital Co-Operative Society Ltd. T 2131","Primary Hospital Society","Thiruvananthapuram","Thiruvananthapuram","Taluk","Hospital Society","2.11.2016","WORKING"]
[null,null,"Apex  Hospital Society"]
[null,null,"NIL"]
[null,null,"Primary SC/ST Society"]
[373,"KL0103S02512","Chempazhanthi Harijan Welfare Service Co-operative Society T 655","Primary SC/ST Society","Thiruvananthapuram","Thiruvananthapuram","Taluk","Primary SC/ST Society","14.12.1982","WORKING"]
[374,"KL0101S00370","Thonnakkal pattikajathi colony Joint Farming  Co-operative Society  Ltd No.T 370","Primary SC/ST Society","Thiruvananthapuram","Thiruvananthapuram","Taluk","Primary SC/ST Society","15.12.1975","WORKING"]
[375,"KL0103S00320","Nettayam Harijan Service Co-operative Society T 708","Primary SC/ST Society","Thiruvananthapuram","Thiruvananthapuram","Taluk","Primary SC/ST Society","20.03.1974","WORKING"]
[376,"KL0103S00320","Trivandrum Taluk Pattikajathi Service Co-operative Society T 1643","Primary SC/ST Society","Thiruvananthapuram","Thiruvananthapuram","Taluk","Primary SC/ST Society","20.3.1996","WORKING"]
[377,"KL0106S00773","Killy Pattikajathi Pattikavaraga Service Sahakarana Bank Ltd No  T.773","Primary SC/ST Society","Thiruvananthapuram","Kattakkada","Taluk","Primary SC/ST Society","26.05.1981","WORKING"]
[378,"KL0106S01710","Maranalloor Rural Pattikajathi Vikasana Sahakarana Sangham Ltd No  T.1710","Primary SC/ST Society","Thiruvananthapuram","Kattakkada","Taluk","Primary SC/ST Society","05.04.2010","WORKING"]
[379,"KL0106S03923","Uriyacode Pattika Varga Service co operative Society Ltd No 3923","Primary SC/ST Society","Thiruvananthapuram","Kattakkada","Taluk","Primary SC/ST Society","13.03.1956","WORKING"]
[380,"KL0102S00705","Ancode Pattikajathi Service Co Operative Society Ltd No T 705","Primary SC/ST Societies","Thiruvananthapuram","Neyyattinkara","Taluk","Primary SC/ST Society","13.4.1978","WORKING"]
[381,"KL0102S01390","Balaramapuram pattikajathi serviceCo Operative Society Ltd No T 1320","Primary SC/ST Societies","Thiruvananthapuram","Neyyattinkara","Taluk","Primary SC/ST Society","21.3.1998","WORKING"]
[382,"KL0102S00441","Chenkal.Pattikajathi Service Co Operative Society Ltd No T 441","Primary SC/ST Societies","Thiruvananthapuram","Neyyattinkara","Taluk","Primary SC/ST Society","28.12.1974","WORKING"]
[383,"KL0102S00882","Karumkulam Pattikajathi Service Co Operative Society Ltd No T 882","Primary SC/ST Societies","Thiruvananthapuram","Neyyattinkara","Taluk","Primary SC/ST Society","15.02.1985","WORKING"]
[384,"KL0102S01094","Manoor Pattikajathi Service Co Operative Society Ltd No T 1094","Primary SC/ST Societies","Thiruvananthapuram","Neyyattinkara","Taluk","Primary SC/ST Society","24.01.1101","WORKING"]
[385,"KL0102S04008","Pallichal pattikajathi serviceCo Operative Society Ltd No T 4008","Primary SC/ST Societies","Thiruvananthapuram","Neyyattinkara","Taluk","Primary SC/ST Society","14.09.1956","WORKING"]
[386,"KL0102S00907","Pazhaya Uchakada pattikajathi service Co Operative Society Ltd No T 907","Primary SC/ST Societies","Thiruvananthapuram","Neyyattinkara","Taluk","Primary SC/ST Society","7.10.1985","WORKING"]
[387,"KL0102S00722","Perumbazhathoor Pattikajathi Service Co Operative Society Ltd No 722","Primary SC/ST Societies","Thiruvananthapuram","Neyyattinkara","Taluk","Primary SC/ST Society","3.4.1983","WORKING"]
[388,"KL0102S01071","Vallichira Pattikajathi Service Co Operative Society Ltd No T 1071","Primary SC/ST Societies","Thiruvananthapuram","Neyyattinkara","Taluk","Primary SC/ST Society","20.03.1101","WORKING"]
[389,"KL0102S04090","Venpakal Pattikajathi Service Co Operative Society Ltd No T 4090","Primary SC/ST Societies","Thiruvananthapuram","Neyyattinkara","Taluk","Primary SC/ST Society","22.06.1102","WORKING"]
[390,"KL0102S01587","Marayamootam Pattikajathi Service Co Operative Society Ltd No T 1587","Primary SC/ST Societies","Thiruvananthapuram","Neyyattinkara","Taluk","Primary SC/ST Society","16.10.1102","WORKING"]
[391,"KL0102S01606","Neyyattinkara SC/ ST Welfare Co Operative Society Ltd No T 1606","Primary SC/ST Societies","Thiruvananthapuram","Neyyattinkara","Taluk","Primary SC/ST Society","28.02.2006","WORKING"]
[392,"KL0102S00826","Maruthoorkonam Pattikajathi Service Co Operative Society Ltd No T 826","Primary SC/ST Societies","Thiruvananthapuram","Neyyattinkara","Taluk","Primary SC/ST Society","5.03.1986","WORKING"]
[393,"KL0102S01697","Neyyattinkara Taluk Pattikajathi Co Operative Society Ltd No T 1697","Primary SC/ST Societies","Thiruvananthapuram","Neyyattinkara","Taluk","Primary SC/ST Society","31.7.2008","WORKING"]
[394,"KL0102S01634","Parassuvakkal Pattikajathi Service Co Operative Society Ltd No 1634","Primary SC/ST Societies","Thiruvananthapuram","Neyyattinkara","Taluk","Primary SC/ST Society","24.01.1103","WORKING"]
[395,"KL0102S00827","Manchavilakam Pattikajathi Service Co Operative Society Ltd No T 827","Primary SC/ST Societies","Thiruvananthapuram","Neyyattinkara","Taluk","Primary SC/ST Society","29.3.1983","WORKING"]
[396,"KL0103S00885","Nedumangad St Vanitha Co-operative Society Ltd  T.885, Nedumangad P.O.","Primary SC/ST Society","Thiruvananthapuram","Nedumangad","Taluk","SC/ST Co-Operative Societies","10.11.1945","WORKING"]
[397,"KL0103S00320","Attukal Sc Service Co-operative Society Ltd  T.320, Panayamuttom P.O","Primary SC/ST Society","Thiruvananthapuram","Nedumangad","Taluk","SC/ST Co-Operative Societies","2.8.1968","WORKING"]
[398,"KL0103S02512","Nedumangad Sc Co-operative Society Ltd  2512, Nedumangad P.O.","Primary SC/ST Society","Thiruvananthapuram","Nedumangad","Taluk","SC/ST Co-Operative Societies","10.11.1945","WORKING"]
[399,"KL0102S00826","Azhoor Panchayat Pattikajathi Service Co-operative Society Co-operative Society Ltd T.363","Primary SC/ST Society","Tvpm","Chirayinkeezhu","Taluk","SC/ST Co-Operative Societies","26.11.1971","WORKING"]
[400,"KL0104S00031","Korani Pattikajathi Service Co-operative Society Ltd No.HW 31 Mudapuram PO ","Primary SC/ST Society","Tvpm","Chirayinkeezhu","Taluk","SC/ST Co-Operative Societies","26.3.1961","WORKING"]
[null,"not in cima","Apex  SC/ST Society"]
[null,"not in cima","NIL"]
[null,null,"Primary Educational Co-operatives"]
[401,"KL0101N00690","Tvpm Taluk Educational Co-operative Society Ltd T 690","Primary Educational Co-operatives","Thiruvananthapuram","Thiruvananthapuram","Taluk","Primary Educational Co-operatives","30.09.1977","WORKING"]
[null,null,"Federal Educational Co-operatives"]
[null,null,"NIL"]
[null,null,"Primary Labour Contract Co-op Society"]
[402,"KL0101L01691","Veli People Labour Contract Co-operative Society T 1691","Primary Labour Contract Co-op Society","Thiruvananthapuram","Thiruvananthapuram","Taluk","Labour Contract Society","12.1.1997","WORKING"]
[403,"KL0101L01187","VSSC Aviated & Affected People Labour Contract Co-operative Society T 1187","Primary Labour Contract Co-op Society","Thiruvananthapuram","Thiruvananthapuram","Taluk","Labour Contract Society","6.7.1991","WORKING"]
[404,"KL0103L02146","Pananvila Labour Contract Co-operative Society T 1950","Primary Labour Contract Co-op Society","Thiruvananthapuram","Thiruvananthapuram","Taluk","Labour Contract Society","17.06.2015","WORKING"]
[405,"KL0101L02128","Ambalathara Labour Contract Co-operative Society T 2128","Primary Labour Contract Co-op Society","Thiruvananthapuram","Thiruvananthapuram","Taluk","Labour Contract Society","24.10.2016","WORKING"]
[406,"KL0101L00688","Ayyankali Social Workers Labour Contract Co-operative Society T 2151","Primary Labour Contract Co-op Society","Thiruvananthapuram","Thiruvananthapuram","Taluk","Labour Contract Society","16-08-2017","WORKING"]
[407,"KL0102L01415","Muthuvacode Labour Contract Co-operative Society T 2159","Primary Labour Contract Co-op Society","Thiruvananthapuram","Thiruvananthapuram","Taluk","Labour Contract Society","14-12-2017","WORKING"]
[408,"KL0101L02164","Techknowledge and Multilateral Labour Contract Co-operative Society T 2164","Primary Labour Contract Co-op Society","Thiruvananthapuram","Thiruvananthapuram","Taluk","Labour Contract Society","31-01-2018","WORKING"]
[409,"KL0101L02170","Manackal Labour Contract Co-operative Society T 2170","Primary Labour Contract Co-op Society","Thiruvananthapuram","Thiruvananthapuram","Taluk","Labour Contract Society","5.11.2018","WORKING"]
[410,"KL0101L04411","Travancore Electrical & Civil Labour Contract Co-operative Society T 2201","Primary Labour Contract Co-op Society","Thiruvananthapuram","Thiruvananthapuram","Taluk","Labour Contract Society","22-01-2019","WORKING"]
[411,"KL0103L02146","Kanthalloor Labour Contract Co-operative SocietyT 2208","Primary Labour Contract Co-op Society","Thiruvananthapuram","Thiruvananthapuram","Taluk","Labour Contract Society","14.06.2019","WORKING"]
[412,"KL0101L02248","Central PWD Retired Employees Labour Contract Co-operative Society 2248","Primary Labour Contract Co-op Society","Thiruvananthapuram","Thiruvananthapuram","Taluk","Labour Contract Society","16.07.2020","WORKING"]
[413,"KL0101L04411","Travancore Engineering Consultancy and labour contract Co-operative Society Ltd no t4411","Primary Labour Contract Co-op Society","Thiruvananthapuram","Thiruvananthapuram","Taluk","Labour Contract Society","07.06.1997","WORKING"]
[414,"KL0101L04411","Mahima Labour Contract Co-operative Society LtdT 2288","Primary Labour Contract Co-op Society","Thiruvananthapuram","Thiruvananthapuram","Taluk","Labour Contract Society","14.11.2021","WORKING"]
[415,"KL0101L02303","Jagathi Labour Contract Co-Operative Society Ltd. T 2303","Primary Labour Contract Co-op Society","Thiruvananthapuram","Thiruvananthapuram","Taluk","Labour Contract Society","09.06.2022","WORKING"]
[416,"KL0103L02247","Ananthapuri Labour Contract Co-Operative Society Ltd.T 2305","Primary Labour Contract Co-op Society","Thiruvananthapuram","Thiruvananthapuram","Taluk","Labour Contract Society","07.07.2022","WORKING"]
[417,"KL0101L01685","Thanal Labour Contract Co-operative Societies Ltd T 2345","Primary Labour Contract Co-op Society","Thiruvananthapuram","Thiruvananthapuram","District","Labour contract","24.05.2025","WORKING"]
[418,"KL0103L02146","Pananvila Labour Contract Co-Operative Society Ltd. T 2002","Primary Labour Contract Co-op Society","Thiruvananthapuram","Thiruvananthapuram","Taluk","Labour Contract Society","17.06.2015","WORKING"]
[419,"KL0106L02320","Amboori Labour Contract Co operative Society Ltd No  T 2320","Primary Labour Contract Co-op Society","Thiruvananthapuram","Kattakkada","Taluk","Primary Labour Contract Co-op Society","04.01.2023","WORKING"]
[420,"KL0102L01650","Civil Engineers Labour Contract Co Operative Society Ltd No T 1650","Primary Labour contract co operaative socities","Thiruvananthapuram","Neyyattinkara","Taluk","Labour Contract Co-op Society","9.5.2006","WORKING"]
[421,"KL0102L01415","Tvpm Electical Labour contract Co Operative Society Ltd No T 1415","Primary Labour contract co operaative socities","Thiruvananthapuram","Neyyattinkara","A District","Labour Contract Co-op Society",null,"WORKING"]
[422,"KL0102L01918","Thiruvananthapuram Un Employment Skilled Workers Labour Contract Co Operative Society Ltd No T 1918","Primary Labour contract co operaative socities","Thiruvananthapuram","Neyyattinkara","A District","Labour Contract Co-op Society",null,"WORKING"]
[423,"KL0102L02233","Neyyattinkara Labour Development & Contract Co Operative Society Ltd No T 2233","Primary Labour contract co operaative socities","Thiruvananthapuram","Neyyattinkara","Taluk","Labour Contract Co-op Society",null,"WORKING"]
[424,"KL0103L02146","Anakuzhi Labour Contract Co-operative Society Ltd  T.2146, Meenmutty, Pacha.P.O. ","Primary Labour Contract Co-op Society","Thiruvananthapuram","Nedumangad","Taluk","Labour Contract Co-op Society","25-06-2012","WORKING"]
[425,"KL0103L02217","Palode Town Labour Contract Co-operative Society Ltd  T.2217,Palode,Pacha.P.O. ","Primary Labour Contract Co-op Society","Thiruvananthapuram","Nedumangad","Taluk","Labour Contract Co-op Society","10.18.2019","WORKING"]
[426,"KL0103L01792","Thiruvananthapuram Jilla Janakeeya Labour Contract Co-operative Society Ltd  T.1792, Azhikode P.O.","Primary Labour Contract Co-op Society","Thiruvananthapuram","Nedumangad","Within Thiruvananthapuram Dist.","Labour Contract Co-op Society","10.3.1999","WORKING"]
[427,"KL0103L02247","High -Tech Labour Contract Co-operative Society Ltd  T.2247 , Meenmutty.P.O. ","Primary Labour Contract Co-op Society","Thiruvananthapuram","Nedumangad","Taluk","Labour Contract Co-op Society","7.13.2020","WORKING"]
[428,"KL0103L02256","Nedumangad Municipal Labour Contract Co-operative Society Ltd T.2256, Nedumangad P.O.","Primary Labour Contract Co-op Society","Thiruvananthapuram","Nedumangad","Taluk","Labour Contract Co-op Society","10.14.2020","WORKING"]
[429,"KL0103L02217","Palode Town Labour Contract Co-operative Society Ltd No. 2217,Palode, Pacha.P.O.","Primary Labour Contract Co-op Society","Thiruvananthapuram","Nedumangad","Taluk","Labour Contract Co-op Society","10.12.2019","WORKING"]
[430,"KL0104L02249","Chirayinkil Taluk Labour Contract CS - Ltd No. T.2249  Mudapuram PO  Chirayinkeezhu 695304","Primary Labour Contract Co-op Society","Thiruvananthapuram","Chirayinkeezhu","Taluk","Labour Contract Society","11.08.2020","WORKING"]
[431,"KL0106L02320","RSG Labour Contract CS - Ltd T.1238","Primary Labour Contract Co-op Society","Thiruvananthapuram","Chirayinkeezhu","Taluk","Labour Contract Society","20.02.1993","WORKING"]
[432,"KL0104L00358","Chirayinkil Taluk Unemployed Engineers Co-Operative Society Ltd.358","Primary Labour Contract Co-op Society","Thiruvananthapuram ","Chirayinkeezhu","Taluk","Labour Contract Society","13.11.1971","WORKING"]
[433,"KL0105L02243","Varkala Infra Development Co Operative Society(Vicos) T 2243 Ayiroor Po ","Primary Labour Contract Co-op Society","Thiruvananthapuram ","Varkala","Taluk","Labour Contract Society","10.06.2020","WORKING"]
[null,null,"Apex  Labour Contract Co-op Society",null,"Thiruvananthapuram "]
[null,null,"NIL",null,"Thiruvananthapuram "]
[null,null,"Primary Vanitha (Women) Co-op Society ",null,"Thiruvananthapuram "]
[434,"KL0101V00710","Thrikkannapuram Woman Co-operative Society T 710","Primary Vanitha (Women) Co-op Society","Thiruvananthapuram ","Thiruvananthapuram","Taluk","Women Society","21.7.1988","WORKING"]
[435,"KL0101V01492","AIKYA Mahila Co-operative Society T 1492","Primary Vanitha (Women) Co-op Society","Thiruvananthapuram ","Thiruvananthapuram","Taluk","Women Society","21.11.2002","WORKING"]
[436,"KL0101V00710","Mahatma Vanitha Co-operative Society T 1568","Primary Vanitha (Women) Co-op Society","Thiruvananthapuram ","Thiruvananthapuram","Taluk","Women Society","1.1.1992","WORKING"]
[437,"KL0106V01028","Vizhavoor Vanitha Co-operative Society Ltd No T 1028","Primary Vanitha (Women) Co-op Society ","Thiruvananthapuram","Kattakkada","Vilavoorkal Panchayath","Primary Vanitha (Women) Co-op Society ","11.08.1989","WORKING"]
[438,"KL0106V01272","Maranalloor Vanitha Co-operative Society Ltd No  T 1272","Primary Vanitha (Women) Co-op Society ","Thiruvananthapuram","Kattakkada","Maranalloor Panchayath","Primary Vanitha (Women) Co-op Society ","4.2.1995","WORKING"]
[439,"KL0106V01361","Malayinkeezhu Panchayath Vanitha Co-operative Society Ltd No  T 1361","Primary Vanitha (Women) Co-op Society ","Thiruvananthapuram","Kattakkada","Malayinkeezhu Panchayath","Primary Vanitha (Women) Co-op Society ","6.6.1997","WORKING"]
[440,"KL0106V00956","Kattakkada Vanitha Co-operative Society Ltd No  T 956","Primary Vanitha (Women) Co-op Society ","Thiruvananthapuram","Kattakkada","Kattakkada Panchayath","Primary Vanitha (Women) Co-op Society ","28.03.1987","WORKING"]
[441,"KL0106V00916","Amboori Vanitha Co-operative Society Ltd No  T 916","Primary Vanitha (Women) Co-op Society ","Thiruvananthapuram","Kattakkada","Amboori Panchayath","Primary Vanitha (Women) Co-op Society ","03.01.1986","WORKING"]
[442,"KL0106V00980","Aryancode Priyadarshini Vanitha Co-operative Society Ltd No T 909","Primary Vanitha (Women) Co-op Society ","Thiruvananthapuram","Kattakkada","Aryancode Panchayath","Primary Vanitha (Women) Co-op Society ","24.10.1985","WORKING"]
[443,"KL0106V01045","Kuttichal Vanitha Co-operative Society Ltd No  T 1045","Primary Vanitha (Women) Co-op Society ","Thiruvananthapuram","Kattakkada","Kuttichal Panchayath","Primary Vanitha (Women) Co-op Society ","20.3.1930","WORKING"]
[444,"KL0106V00938","Kallikkadu Vanitha Co-operative Society Ltd No  T 938","Primary Vanitha (Women) Co-op Society ","Thiruvananthapuram","Kattakkada","Kallikkadu Panchayath","Primary Vanitha (Women) Co-op Society ","17.07.1986","WORKING"]
[445,"KL0106V02289","Mandapathinkadavu Vanitha Co-operative Society Ltd No  T 2289","Primary Vanitha (Women) Co-op Society ","Thiruvananthapuram","Kattakkada","Ottasekharamangalam Panchayath","Primary Vanitha (Women) Co-op Society ","06.12.2021","WORKING"]
[446,"KL0102V00961","Balaramapuram Vanitha Co Operative Society Ltd No T 961","Women co operative socities","Thiruvananthapuram","Neyyattinkara","Taluk","Vanitha Co-operative Society ","11.08.89","WORKING"]
[447,"KL0102V02312","Bodhi Vanitha Co Operative Society Ltd No T 1279","Women co operative socities","Thiruvananthapuram","Neyyattinkara","Taluk","Vanitha Co-operative Society ","8.02.95","WORKING"]
[448,"KL0102V01331","Kamaraj Nadar Memorial Women Welfare Co Operative Society Ltd No T 1331","Women co operative socities","Thiruvananthapuram","Neyyattinkara","Taluk","Vanitha Co-operative Society ","13.06.96","WORKING"]
[449,"KL0102V01487","Karode Vanitha Co Operative Society Ltd No T 1487","Women co operative socities","Thiruvananthapuram","Neyyattinkara","Taluk","Vanitha Co-operative Society ","26.03.2002","WORKING"]
[450,"KL0102V01609","Aithiyoor Vanitha Co Operative Society Ltd No T 1609","Women co operative socities","Thiruvananthapuram","Neyyattinkara","Taluk","Vanitha Co-operative Society ","27.8.","WORKING"]
[451,"KL0102V01334","Nellimoodu Vanitha Co Operative Society Ltd No T 1334","Women co operative socities","Thiruvananthapuram","Neyyattinkara","Taluk","Vanitha Co-operative Society ","17.9.1996","WORKING"]
[452,"KL0102V01350","Pallichal Panchayath Vanitha Co Operative Society Ltd No T 1350","Women co operative socities","Thiruvananthapuram","Neyyattinkara","Taluk","Vanitha Co-operative Society ","5.4.1997","WORKING"]
[453,"KL0102V01266","Thirupuram panchayath Vanitha Co Operative Society Ltd No T 1226","Women co operative socities","Thiruvananthapuram","Neyyattinkara","Taluk","Vanitha Co-operative Society ","112.11.1994","WORKING"]
[454,"KL0106V01028","Karumkulam Vanitha Co Operative Society Ltd No T 1090","Women co operative socities","Thiruvananthapuram","Neyyattinkara","Taluk","Vanitha Co-operative Society ","28.6.91","WORKING"]
[455,"KL0102V02050","Payattuvila Vanitha Sahakarana Sangam Ltd No T 2050","Women co operative socities","Thiruvananthapuram","Neyyattinkara","Taluk","Vanitha Co-operative Society ","12.16.2015","WORKING"]
[456,"KL0102V02312","Parassala Vanitha Co operative Society Ltd T2312 Ltd No T 2312","Women co operative socities","Thiruvananthapuram","Neyyattinkara","Taluk","Vanitha Co-operative Society ","1.11.2022","WORKING"]
[457,"KL0102V01329","Indiraji Memmorial Vanitha Welfare Co Operative Society Ltd No T 1329","Women co operative socities","Thiruvananthapuram","Neyyattinkara","Taluk","Vanitha Co-operative Society ","4.6.96","WORKING"]
[458,"KL0103V01074","Karakulam Vanitha Co-operative Society Ltd  T.1074 , karakulam PO","Primary Vanitha (Women) Co-operative Society ","Thiruvananthapuram","Nedumangad","Taluk","Women Co-operative Society ","21-07-1989","WORKING"]
[459,"KL0103V01219","Nedumangad Block Vanitha Co-operative Society Ltd  T.1219, Nedumangad P O","Primary Vanitha (Women) Co-operative Society ","Thiruvananthapuram","Nedumangad","Taluk","Women Co-operative Society ","07-03-1983","WORKING"]
[460,"KL0103V02180","Nedumangad Urban Vanitha Co-operative Society Ltd  T.2180 Nedumangad P O","Primary Vanitha (Women) Co-operative Society ","Thiruvananthapuram","Nedumangad","Taluk","Women Co-operative Society ","02-07-2018","WORKING"]
[461,"KL0103V01423","Pulichamala Vanitha Co-operative Society Ltd  T.1423 Chettachal P o","Primary Vanitha (Women) Co-operative Society ","Thiruvananthapuram","Nedumangad","Taluk","Women Co-operative Society ","30-05-1993","WORKING"]
[462,"KL0103V01428","Uriyakode Vanitha Co-operative Society Ltd  T.1428, Uriyakode p o","Primary Vanitha (Women) Co-operative Society ","Thiruvananthapuram","Nedumangad","Taluk","Women Co-operative Society ","14-07-1999","WORKING"]
[463,"KL0103V01032","Uzhamalackal Vanitha Co-operative Society Ltd  T.1032 Uzhamalakkal P O","Primary Vanitha (Women) Co-operative Society ","Thiruvananthapuram","Nedumangad","Taluk","Women Co-operative Society ","27-09-1989","WORKING"]
[464,"KL0103V00957","Venjaramood  Vanitha Co-operative Society Ltd  T.957 Venjaramood  P O","Primary Vanitha (Women) Co-operative Society ","Thiruvananthapuram","Nedumangad","Taluk","Women Co-operative Society ","24-04-1987","WORKING"]
[465,"KL0104V00991","Karavaram Panchayat Vanitha Kshema CS - Ltd No. T.991 ","Primary Vanitha (Women) Co-op Society ","Thiruvananthapuram","Chirayinkeezhu","Taluk","Women Co-operative Society ","24.08.1988","WORKING"]
[466,"KL0104V02279","Tvm Rural Vanitha CS - Ltd No. T 2279 Veeralam, Attingal PO 695101 ","Primary Vanitha (Women) Co-op Society ","Thiruvananthapuram","Chirayinkeezhu","More Than One Taluk But Less Than A District ","Women Co-operative Society ","27.04.2021","WORKING"]
[467,"KL0105V01018","Mahatmaji Memmorial Womens Welfare Cooperative Society T 1018 Elakamon Po","Primary Vanitha (Women) Co-op Society ","Thiruvananthapuram","Varkala","Elakamon Panchyath","Women Co-operative Society ","30-03-1991","WORKING"]
[468,"KL0105V01403","Vettoor Panchayath Vanitha Cooperative Society T 1403 Vettoor Po","Primary Vanitha (Women) Co-op Society ","Thiruvananthapuram","Varkala","Taluk","Women Co-operative Society ","22-10-1999","WORKING"]
[469,"KL0105V01003","Chemmaruthy Vanitha Cooperative Society T 1003 Chemmaruthy Po","Primary Vanitha (Women) Co-op Society ","Thiruvananthapuram","Varkala","Chemmaruthy , Elakamon Panchyath","Women Co-operative Society ","28-01-1989","WORKING"]
[null,null,"Apex  Vanitha (Women) Co-op Society"]
[null,null,"NIL"]
[null,null,"Primary Tourism Co-operatives "]
[470,"KL0102E01785","Thiruvananthapuram Jilla Tourism Promotion Co Operative Society T 1620","Primary Tourism Co-operatives","Thiruvananthapuram","Neyyattinkara"," District","Non Agricultural Co-operative Society ","5.05.2006","WORKING"]
[471,"KL0103I01581","Nedumangad Taluk East West Eco Tourisam Development Co-operative Society Ltd  T.1581 Palode Pacha P O","Primary Tourism Co-operative Society ","Thiruvananthapuram","Nedumangad","Taluk","Tourism Co-Operative Societies","22-07-2005","WORKING"]
[472,"KL0103E00382","Nedumangad Taluk Tourisam Developement Co-operative Society Ltd  T.2082, Nanniyode Pacha  P O","Primary Tourism Co-operative Society ","Thiruvananthapuram","Nedumangad","Taluk","Tourism Co-Operative Societies","02-10-2016","WORKING"]
[473,"KL0103E02124","Thiruvananthapuram High Range Tourisam Developement Co-operative Society Ltd  T.1476, Vithura P O","Primary Tourism Co-operative Society ","Thiruvananthapuram","Nedumangad","Taluk","Tourism Co-Operative Societies","05-04-2001","WORKING"]
[474,"KL0104G02189","Anchuthengu Kayal Vinodha Sanchara Vikasana CS - Ltd. No. T 2189 Anchuthengu PO 695309","Primary Tourism Co-operatives ","Tvpm","Chirayinkeezhu","Taluk","Tourism Co-Operative Societies","18.08.2018","WORKING"]
[475,"KL0101I01511","Thiruvanathapuram District Tourism Cs T 1482","Primary Tourism Co-operatives ","Thiruvananthapuram","Varkala","Taluk","Tourism Co-Operative Societies","11.09.2001","WORKING"]
[null,null,"Apex  Tourism Co-operatives "]
[null,null,"NIL"]
[null,null,"Social Welfare Miscellaneous Society"]
[476,"KL0105V01018","Attukal Residents Welfare Co-operative Society T 1018","Social Welfare Miscellaneous Society","Thiruvananthapuram","Thiruvananthapuram","Taluk","Social Welfare Co-operative Societies","23.9.1982","WORKING"]
[477,"KL0102I02214","Kesavadasapuram Residents Welfare Co-operative Society T 784","Social Welfare Miscellaneous Society","Thiruvananthapuram","Thiruvananthapuram","Taluk","Social Welfare Co-operative Societies","14.2.1951","WORKING"]
[478,"KL0101I03126","City Corporation Social Welfare Co-operative SocietyT 3126","Social Welfare Miscellaneous Society","Thiruvananthapuram","Thiruvananthapuram","Taluk","Social Welfare Co-operative Societies","31.10.1972","WORKING"]
[479,"KL0101I00389","Sasthri Nagar Residents Welfare Co-operative Society T 389","Social Welfare Miscellaneous Society","Thiruvananthapuram","Thiruvananthapuram","Taluk","Social Welfare Co-operative Societies","31.10.1972","WORKING"]
[480,"KL0101I01000","Thiruvananthapuram District Lawyers Co-operative Society Ltd T 1000","Social Welfare Miscellaneous Society","Thiruvananthapuram","Thiruvananthapuram","District","Social Welfare Co-operative Societies","11.01.1989","WORKING"]
[481,"KL0102I01810","Poojappura Govt. Quarters Residents Welfare Co-operative Society T 972","Social Welfare Miscellaneous Society","Thiruvananthapuram","Thiruvananthapuram","Taluk","Social Welfare Co-operative Societies","1.10.1993","WORKING"]
[482,"KL0101I01273","Poojappura Residents Welfare Co-operative Society T 1273","Social Welfare Miscellaneous Society","Thiruvananthapuram","Thiruvananthapuram","Taluk","Social Welfare Co-operative Societies","15.2.1995","WORKING"]
[483,"KL0102I01812","Sasthamangalam Residents Welfare Co-operative Society T 1277","Social Welfare Miscellaneous Society","Thiruvananthapuram","Thiruvananthapuram","Taluk","Social Welfare Co-operative Societies","12.6.1995","WORKING"]
[484,"KL0101I01289","Manacadu Residents Welfare Co-operative Society T 1289","Social Welfare Miscellaneous Society","Thiruvananthapuram","Thiruvananthapuram","Taluk","Social Welfare Co-operative Societies","12.6.1995","WORKING"]
[485,"KL0101I01290","Kamaleswaram Welfare Co-operative Co-operative Society T 1290","Social Welfare Miscellaneous Society","Thiruvananthapuram","Thiruvananthapuram","Taluk","Social Welfare Co-operative Societies","8.1.1996","WORKING"]
[486,"KL0101I01303","A.K.G. Nagar Residents Welfare Co.operative SocietyT 1303","Social Welfare Miscellaneous Society","Thiruvananthapuram","Thiruvananthapuram","Taluk","Social Welfare Co-operative Societies","08.01.1996","WORKING"]
[487,"KL0102I01713","Tvpm Dist. Head load workers welfare Co.operative Society T 1340","Social Welfare Miscellaneous Society","Thiruvananthapuram","Thiruvananthapuram","Taluk","Social Welfare Co-operative Societies","4.6.1996","WORKING"]
[488,"KL0102I02214","Medical College Ward Residence welfare Co.operative Society T 1301","Social Welfare Miscellaneous Society","Thiruvananthapuram","Thiruvananthapuram","Taluk","Social Welfare Co-operative Societies","19.8.1997","WORKING"]
[489,"KL0101I01483","Thiruvananthapuram Dist. Traders  Welfare Co-operative Society 1483","Social Welfare Miscellaneous Society","Thiruvananthapuram","Thiruvananthapuram","District","Social Welfare Co-operative Societies","7.8.2003","WORKING"]
[490,"KL0101I01526","Thottadivila Residents Welfare Co.operative Society T 1526","Social Welfare Miscellaneous Society","Thiruvananthapuram","Thiruvananthapuram","Taluk","Social Welfare Co-operative Societies","6.12.2003","WORKING"]
[491,"KL0105V01018","Thiruvithamcore Welfare Co.operative Society T 1530","Social Welfare Miscellaneous Society","Thiruvananthapuram","Thiruvananthapuram","Taluk","Social Welfare Co-operative Societies","06.12.2003","WORKING"]
[492,"KL0101I00871","Pangode Welfare Co-operative Society T 871","Social Welfare Miscellaneous Society","Thiruvananthapuram","Thiruvananthapuram","Taluk","Social Welfare Co-operative Societies","23.11.1996","WORKING"]
[493,"KL0101I01336","Kattayikonam Residents Welfare Co.operative Society T 1336","Social Welfare Miscellaneous Society","Thiruvananthapuram","Thiruvananthapuram","Taluk","Social Welfare Co-operative Societies","2.4.1996","WORKING"]
[494,"KL0101I01823","Pulimoodu Residents Welfare Co.operative Society T 1554","Social Welfare Miscellaneous Society","Thiruvananthapuram","Thiruvananthapuram","Taluk","Social Welfare Co-operative Societies","29.3.2004","WORKING"]
[495,"KL0102I01812","Kunnumpuram Residents Welfare Co.operative Society T 1539","Social Welfare Miscellaneous Society","Thiruvananthapuram","Thiruvananthapuram","Taluk","Social Welfare Co-operative Societies","31.12.1997","WORKING"]
[496,"KL0101E00721","Thonnakkal Agricultural Credit  Co.operative Society HW 21","Social Welfare Miscellaneous Society","Thiruvananthapuram","Thiruvananthapuram","Taluk","Social Welfare Co-operative Societies","1.3.2006","WORKING"]
[497,"KL0105I02228","Mudavanmugal Residents Welfare Co.operative Society T 1612","Social Welfare Miscellaneous Society","Thiruvananthapuram","Thiruvananthapuram","Taluk","Social Welfare Co-operative Societies","8.8.2005","WORKING"]
[498,"KL0101I01591","Sree Vellayani Residents Welfare Co.operative SocietyT 1591","Social Welfare Miscellaneous Society","Thiruvananthapuram","Thiruvananthapuram","Taluk","Social Welfare Co-operative Societies","12.12.2005","WORKING"]
[499,"KL0101I01566","Tvpm JILLA Govt. SERVANTS Co.operative Society T 1566","Social Welfare Miscellaneous Society","Thiruvananthapuram","Thiruvananthapuram","District","Social Welfare Co-operative Societies","23.2.2006","WORKING"]
[500,"KL0101I01608","Thiruvananthapuram District Farm Tour Co.operative Society T 1608","Social Welfare Miscellaneous Society","Thiruvananthapuram","Thiruvananthapuram","District","Social Welfare Co-operative Societies","1.3.2006","WORKING"]
[501,"KL0101I01651","Tvm Taluk Press Thozhilali Welfare Co.operative Society T 1651","Social Welfare Miscellaneous Society","Thiruvananthapuram","Thiruvananthapuram","Taluk","Social Welfare Co-operative Societies","28.2.2006","WORKING"]
[502,"KL0106I01842","Thiruvananthapuram Contractors Welfare Co.operative Society T 1596","Social Welfare Miscellaneous Society","Thiruvananthapuram","Thiruvananthapuram","Taluk","Social Welfare Co-operative Societies","6.1.2005","WORKING"]
[503,"KL0102S00705","Thiruvananthapuram Jill Pattikajathi Maramath Thozhilali Co.operative Society T 1602","Social Welfare Miscellaneous Society","Thiruvananthapuram","Thiruvananthapuram","Taluk","Social Welfare Co-operative Societies","05.05.2006","WORKING"]
[504,"KL0101I01626","Koithoorkonam Welfare Co.operative Society T 1626","Social Welfare Miscellaneous Society","Thiruvananthapuram","Thiruvananthapuram","More Than One Panchayath","Social Welfare Co-operative Societies","05.05.2006","WORKING"]
[505,"KL0101I01631","Plankala Co-operative Society  Ltd T 1631","Social Welfare Miscellaneous Society","Thiruvananthapuram","Thiruvananthapuram","Taluk","Social Welfare Co-operative Societies","05.05.2006","WORKING"]
[506,"KL0101I01639","Tvm District Unemployees Social Welfare Co.operative Society Ltd. T 1639","Social Welfare Miscellaneous Society","Thiruvananthapuram","Thiruvananthapuram","District","Social Welfare Co-operative Societies","08.05.06","WORKING"]
[507,"KL0101I01641","Palkulangara Welfare Co.operative Society Ltd. T 1641","Social Welfare Miscellaneous Society","Thiruvananthapuram","Thiruvananthapuram","Taluk","Social Welfare Co-operative Societies","08.05.06","WORKING"]
[508,"KL0101I01671","Collection Agents Welfare Co.operative Society T 1671","Social Welfare Miscellaneous Society","Thiruvananthapuram","Thiruvananthapuram","Taluk","Social Welfare Co-operative Societies","12.03.2007","WORKING"]
[509,"KL0101E00716","Kudumbanoor Residents Welfare Co-operative Society Ltd. T 1673","Social Welfare Miscellaneous Society","Thiruvananthapuram","Thiruvananthapuram","Taluk","Social Welfare Co-operative Societies","16.6.2007","WORKING"]
[510,"KL0101E01355","Thiruvananthapuram district Employees Welfare Co-operative Society Ltd. T 1678","Social Welfare Miscellaneous Society","Thiruvananthapuram","Thiruvananthapuram","District","Social Welfare Co-operative Societies","26.9.2007","WORKING"]
[511,"KL0102I02007","Thiruvananthapuram  District Vikalanga Welfare Co-operative Society Ltd. T 1680","Social Welfare Miscellaneous Society","Thiruvananthapuram","Thiruvananthapuram","District","Social Welfare Co-operative Societies","30.11.2007","WORKING"]
[512,"KL0101I01686","Thampanoor Welfare Co.operative Society T 1686","Social Welfare Miscellaneous Society","Thiruvananthapuram","Thiruvananthapuram","Taluk","Social Welfare Co-operative Societies","5.1.2008","WORKING"]
[513,"KL0101I01689","Tvm Dist. Muncipal Corporation Workers Co-operative Society Ltd. T 1689","Social Welfare Miscellaneous Society","Thiruvananthapuram","Thiruvananthapuram","District","Social Welfare Co-operative Societies","11.7.2002","WORKING"]
[514,"KL0102I02130","Petta Residence welfare Co.operative Society 1493","Social Welfare Miscellaneous Society","Thiruvananthapuram","Thiruvananthapuram","Taluk","Social Welfare Co-operative Societies","30.4.1994","WORKING"]
[515,"KL0101I01247","Thozhuvancode VATTIYOORKAVU Residence welfare Co.operative Society T 1247","Social Welfare Miscellaneous Society","Thiruvananthapuram","Thiruvananthapuram","Taluk","Social Welfare Co-operative Societies","15.1.2008","WORKING"]
[516,"KL0101I04466","Overseas Malayalee Welfare Co.operative Society 4466","Social Welfare Miscellaneous Society","Thiruvananthapuram","Thiruvananthapuram","Taluk","Social Welfare Co-operative Societies","27.02.2010","WORKING"]
[517,"KL0101I01304","Trivandrum District Printers Credit Co-operative Society T 1304","Social Welfare Miscellaneous Society","Thiruvananthapuram","Thiruvananthapuram","District","Social Welfare Co-operative Societies","13.2.2000","WORKING"]
[518,"KL0101I01757","Pachaka Thozilali  welfare Co.operative Society T 1757","Social Welfare Miscellaneous Society","Thiruvananthapuram","Thiruvananthapuram","Taluk","Social Welfare Co-operative Societies","17.03.2012","WORKING"]
[519,"KL0101I01766","Kadakampally welfare Co.operative Society T 1766","Social Welfare Miscellaneous Society","Thiruvananthapuram","Thiruvananthapuram","Taluk","Social Welfare Co-operative Societies","17.03.2012 ","WORKING"]
[520,"KL0102V01329","Thiruvananthpuram Dist.Motor Thozilali Welfare Co.operative Society T 1781","Social Welfare Miscellaneous Society","Thiruvananthapuram","Thiruvananthapuram","District","Social Welfare Co-operative Societies","29.05.2012","WORKING"]
[521,"KL0101I01782","Sreekariyam Welfare Co.operative Society T 1782","Social Welfare Miscellaneous Society","Thiruvananthapuram","Thiruvananthapuram","Taluk","Social Welfare Co-operative Societies","29.05.2012","WORKING"]
[522,"KL0101I01791","Tvpm Regional Pravasi Malayali Welfare Co.operative Society T 1791","Social Welfare Miscellaneous Society","Thiruvananthapuram","Thiruvananthapuram","Taluk","Social Welfare Co-operative Societies","04.07.2012","WORKING"]
[523,"KL0102I01571","Jawahar Residential welfare Co.operative Society T 1796","Social Welfare Miscellaneous Society","Thiruvananthapuram","Thiruvananthapuram","Taluk","Social Welfare Co-operative Societies","27.07.2012","WORKING"]
[524,"KL0101I01801","Ulloorkkonam Navodaya Welfare Co.operative Society T 1801","Social Welfare Miscellaneous Society","Thiruvananthapuram","Thiruvananthapuram","Taluk","Social Welfare Co-operative Societies","13.09.2012","WORKING"]
[525,"KL0102I01810","Vallakkadavu Co.operative Society T 1806","Social Welfare Miscellaneous Society","Thiruvananthapuram","Thiruvananthapuram","Taluk","Social Welfare Co-operative Societies","01.10.2012","WORKING"]
[526,"KL0102I02311","Chenkalloor Residential Welfare Co.operative Society T 1818","Social Welfare Miscellaneous Society","Thiruvananthapuram","Thiruvananthapuram","Taluk","Social Welfare Co-operative Societies","21.11.2012","WORKING"]
[527,"KL0101E00277","Manvila Pattikajathy Kshema Co.operative Society T 1833","Social Welfare Miscellaneous Society","Thiruvananthapuram","Thiruvananthapuram","Taluk","Social Welfare Co-operative Societies","08.02.2013","WORKING"]
[528,"KL0102I01982","Tvpm Costal Farmers Social Welfare Co.opertive Society T 1882","Social Welfare Miscellaneous Society","Thiruvananthapuram","Thiruvananthapuram","Taluk","Social Welfare Co-operative Societies","24.12.2013","WORKING"]
[529,"KL0101I01889","Poozhikunnu Social Welfare Co.opertive Society T 1889","Social Welfare Miscellaneous Society","Thiruvananthapuram","Thiruvananthapuram","Taluk","Social Welfare Co-operative Societies","24.12.2013","WORKING"]
[530,"KL0101I01934","Travancore Contract Workers Social Welfare Co-operative Society T 1934","Social Welfare Miscellaneous Society","Thiruvananthapuram","Thiruvananthapuram","Taluk","Social Welfare Co-operative Societies","15.11.2013","WORKING"]
[531,"KL0101I01949","SN Nagar Social Welfare Co-operative Society LtdT 1949","Social Welfare Miscellaneous Society","Thiruvananthapuram","Thiruvananthapuram","Taluk","Social Welfare Co-operative Societies","22.07.2014","WORKING"]
[532,"KL0101I02317","Tvpm Taluk Social Welfare Co-Operative Society  T 1963","Social Welfare Miscellaneous Society","Thiruvananthapuram","Thiruvananthapuram","Taluk","Social Welfare Co-operative Societies","17.06.1986","WORKING"]
[533,"KL0102I01815","Nellivila Social Welfare Co-Operative Society  T 1993","Social Welfare Miscellaneous Society","Thiruvananthapuram","Thiruvananthapuram","Taluk","Social Welfare Co-operative Societies","22.05.2015","WORKING"]
[534,"KL0101I02000","Alinmoodu Social Welfare Co-Operative Society  T 2000","Social Welfare Miscellaneous Society","Thiruvananthapuram","Thiruvananthapuram","Taluk","Social Welfare Co-operative Societies","11.06.2015","WORKING"]
[535,"KL0102I02091","Travancore Pattikajathy Pattikavarga Social Welfare Co-Operative Society  T 2005","Social Welfare Miscellaneous Society","Thiruvananthapuram","Thiruvananthapuram","Taluk","Social Welfare Co-operative Societies","20.06.2015","WORKING"]
[536,"KL0101I02009","Thiruvallam Social Welfare Co-operative Society Ltd T 2009","Social Welfare Miscellaneous Society","Thiruvananthapuram","Thiruvananthapuram","Taluk","Social Welfare Co-operative Societies","09.07.2015","WORKING"]
[537,"KL0101I02020","Chempaka Nagar Social Welfare Co-Operative Society  T 2020","Social Welfare Miscellaneous Society","Thiruvananthapuram","Thiruvananthapuram","Taluk","Social Welfare Co-operative Societies","20.08.2015","WORKING"]
[538,"KL0101I02023","Kumarapuram Social Welfare Co-Operative Society  T 2023","Social Welfare Miscellaneous Society","Thiruvananthapuram","Thiruvananthapuram","Taluk","Social Welfare Co-operative Societies","04.09.2015","WORKING"]
[539,"KL0101I02027","Vizhinjam Building Workers Welfare Co-Operative Society  T 2027","Social Welfare Miscellaneous Society","Thiruvananthapuram","Thiruvananthapuram","Taluk","Social Welfare Co-operative Societies","08.10.2015","WORKING"]
[540,"KL0101I02028","Navajeevan Social Welfare Co-Operative Society  T 2028","Social Welfare Miscellaneous Society","Thiruvananthapuram","Thiruvananthapuram","Taluk","Social Welfare Co-operative Societies","8.10.2015","WORKING"]
[541,"KL0102I02129","Kuryathi Farmers Social Welfare Co-Operative Society  T 2033","Social Welfare Miscellaneous Society","Thiruvananthapuram","Thiruvananthapuram","Taluk","Social Welfare Co-operative Societies","29.10.2015","WORKING"]
[542,"KL0102I02038","Kavinpuram Social Welfare Co-Operative Society  T 2038","Social Welfare Miscellaneous Society","Thiruvananthapuram","Thiruvananthapuram","Taluk","Social Welfare Co-operative Societies","12.11.2015","WORKING"]
[543,"KL0101I02041","Karamana Social Welfare Co-Operative Society  T 2041","Social Welfare Miscellaneous Society","Thiruvananthapuram","Thiruvananthapuram","Taluk","Social Welfare Co-operative Societies","30.11.2015","WORKING"]
[544,"KL0101I02066","Poojappura Social Welfare Co-Operative Society  Ltd T 2066","Social Welfare Miscellaneous Society","Thiruvananthapuram","Thiruvananthapuram","Taluk","Social Welfare Co-operative Societies","04.02.2016","WORKING"]
[545,"KL0101I02104","Vellar Social Welfare Co-Operative Society  T 2077","Social Welfare Miscellaneous Society","Thiruvananthapuram","Thiruvananthapuram","Taluk","Social Welfare Co-operative Societies","08.2.2016","WORKING"]
[546,"KL0101I02104","Tvpm West Social Welfare Co-Operative Society S T 2104","Social Welfare Miscellaneous Society","Thiruvananthapuram","Thiruvananthapuram","Taluk","Social Welfare Co-operative Societies","02.03.2016","WORKING"]
[547,"KL0101I02104","Vaduvath  Social Welfare Co-Operative Society T 2104","Social Welfare Miscellaneous Society","Thiruvananthapuram","Thiruvananthapuram","Taluk","Social Welfare Co-operative Societies","04.03.2016","WORKING"]
[548,"KL0101I02104","Punnammodu Social Welfare Co-Operative Society T 2121","Social Welfare Miscellaneous Society","Thiruvananthapuram","Thiruvananthapuram","Taluk","Social Welfare Co-operative Societies","04.3.2016","WORKING"]
[549,"KL0102I01815","Eanchakkal Social Welfare Co-Operative Society T 2122","Social Welfare Miscellaneous Society","Thiruvananthapuram","Thiruvananthapuram","Taluk","Social Welfare Co-operative Societies","15.7.2016","WORKING"]
[550,"KL0102I01619","Tvpm Jilla Garhika Thozhilali Welfare Co-Operative Society T 2126","Social Welfare Miscellaneous Society","Thiruvananthapuram","Thiruvananthapuram","District","Social Welfare Co-operative Societies","19.8.2016","WORKING"]
[551,"KL0101I02133","Tvpm Dist Commercial Employees Welfare Co-Operative Society T 2133","Social Welfare Miscellaneous Society","Thiruvananthapuram","Thiruvananthapuram","District","Social Welfare Co-operative Societies","5.11.2016","WORKING"]
[552,"KL0101I02134","Gurumandiram Social Welfare Co-Operative Society T 2134","Social Welfare Miscellaneous Society","Thiruvananthapuram","Thiruvananthapuram","Taluk","Social Welfare Co-operative Societies","8.11.2016","WORKING"]
[553,"KL0101I02137","Kulathoor Merchants Welfare Co-Operative Society T 2137","Social Welfare Miscellaneous Society","Thiruvananthapuram","Thiruvananthapuram","Taluk","Social Welfare Co-operative Societies","27.12.2016","WORKING"]
[554,"KL0101I02148","Punnapuram Social Welfare Co-Operative Society T 2148","Social Welfare Miscellaneous Society","Thiruvananthapuram","Thiruvananthapuram","Taluk","Social Welfare Co-operative Societies","29.06.2017","WORKING"]
[555,"KL0102I01810","Thiruvithamcore Motor Driving School Welfare Co-Operative Society T 2154","Social Welfare Miscellaneous Society","Thiruvananthapuram","Thiruvananthapuram","Taluk","Social Welfare Co-operative Societies","24.10.2017","WORKING"]
[556,"KL0102I02214","Lalkrishna Memmorial Social Welfare Co-Operative Society T 2160","Social Welfare Miscellaneous Society","Thiruvananthapuram","Thiruvananthapuram","Taluk","Social Welfare Co-operative Societies","14.12.2017","WORKING"]
[557,"KL0102I01619","Murukkumppuzha Farmers Welfare Co-Operative Society T 2173","Social Welfare Miscellaneous Society","Thiruvananthapuram","Thiruvananthapuram","Taluk","Social Welfare Co-operative Societies","19.05.2018","WORKING"]
[558,"KL0101I02187","Trivandrum Flowerist Welfare Co-Operative Society T 2187","Social Welfare Miscellaneous Society","Thiruvananthapuram","Thiruvananthapuram","Taluk","Social Welfare Co-operative Societies","25.07.2018","WORKING"]
[559,"KL0101I02190","State Public Health Laboratory Staff Welfare Co-Operative Society T 2190","Social Welfare Miscellaneous Society","Thiruvananthapuram","Thiruvananthapuram","Taluk","Social Welfare Co-operative Societies","10.10.2018","WORKING"]
[560,"KL0101I02191","Santhipuram Rural Development & Social Welfare Co-Operative Society T 2191","Social Welfare Miscellaneous Society","Thiruvananthapuram","Thiruvananthapuram","Taluk","Social Welfare Co-operative Societies","29.09.2018","WORKING"]
[561,"KL0101I01510","Gowreeshapattom Resident's Welfare Co-operative Society Ltd T 2194","Social Welfare Miscellaneous Society","Thiruvananthapuram","Thiruvananthapuram","Taluk","Social Welfare Co-operative Societies","25.10.2018","WORKING"]
[562,"KL0101I02206","Thiruvananthapuram Jilla Cherukida Vyapari Kshema Co-Operative Society T 2206","Social Welfare Miscellaneous Society","Thiruvananthapuram","Thiruvananthapuram","District","Social Welfare Co-operative Societies","14.02.2019","WORKING"]
[563,"KL0102I02112","Thiruvananthapuram Peoples Social Welfare Co-operative Society T 2222","Social Welfare Miscellaneous Society","Thiruvananthapuram","Thiruvananthapuram","Taluk","Social Welfare Co-operative Societies","02.12.2019","WORKING"]
[564,"KL0101I02238","Thiruvananthapuram District Social Welfare Co-Operative Society Ltd. 2238","Social Welfare Miscellaneous Society","Thiruvananthapuram","Thiruvananthapuram","District","Social Welfare Co-operative Societies","24.03.2020","WORKING"]
[565,"KL0101I02239","Vazhuthacaud Social Welfare Co-operative Society T 2239","Social Welfare Miscellaneous Society","Thiruvananthapuram","Thiruvananthapuram","Taluk","Social Welfare Co-operative Societies","20.04.2020","WORKING"]
[566,"KL0101E02209","Thiruvananthapuram Private Unaided School Staff Welfare Co-operative Society T 2209","Social Welfare Miscellaneous Society","Thiruvananthapuram","Thiruvananthapuram","Taluk","Social Welfare Co-operative Societies","01.07.2019","WORKING"]
[567,"KL0101I02218","Malayali Welfare Co-operative Society T 2218","Social Welfare Miscellaneous Society","Thiruvananthapuram","Thiruvananthapuram","Taluk","Social Welfare Co-operative Societies","26.10.2019","WORKING"]
[568,"KL0101I02020","Annoor Social Welfare Co-Operative Society Ltd. 2240","Social Welfare Miscellaneous Society","Thiruvananthapuram","Thiruvananthapuram","Taluk","Social Welfare Co-operative Societies","21.05.2020","WORKING"]
[569,"KL0101E00135","Thiruvananthapuram Jilla Casual Workers Welfare Co-operative Society Ltd.No.T.2245","Social Welfare Miscellaneous Society","Thiruvananthapuram","Thiruvananthapuram","Taluk","Social Welfare Co-operative Societies","16.06.2020","WORKING"]
[570,"KL0101I02020","Kalippankulam Social welfare Co-Operative Society 2250","Social Welfare Miscellaneous Society","Thiruvananthapuram","Thiruvananthapuram","Taluk","Social Welfare Co-operative Societies","19.08.2020","WORKING"]
[571,"KL0101I02251","Bank Retirees Welfare Co-Operative Society 2251","Social Welfare Miscellaneous Society","Thiruvananthapuram","Thiruvananthapuram","Taluk","Social Welfare Co-operative Societies","25.09.2020","WORKING"]
[572,"KL0101I02253","Thiruvananthapuram District Professionals Welfare Co-Operative Society 2253","Social Welfare Miscellaneous Society","Thiruvananthapuram","Thiruvananthapuram","Taluk","Social Welfare Co-operative Societies","06.10.2020","WORKING"]
[573,"KL0102I02311","Ambalathara Farmers Welfare Co-Operative Society 2258","Social Welfare Miscellaneous Society","Thiruvananthapuram","Thiruvananthapuram","Taluk","Social Welfare Co-operative Societies","05.11.2020","WORKING"]
[574,"KL0101E00111","Thiruvananthapuram District All Laboures Welfare Co-Operative Society 2261","Social Welfare Miscellaneous Society","Thiruvananthapuram","Thiruvananthapuram","District","Social Welfare Co-operative Societies","11.01.2021","WORKING"]
[575,"KL0101I02270","Paruthikuzhi Social Welfare Co-Operative Society 2270","Social Welfare Miscellaneous Society","Thiruvananthapuram","Thiruvananthapuram","Taluk","Social Welfare Co-operative Societies","19.02.2021","WORKING"]
[576,"KL0101I04503","kerala Tourism Fratenity social welfare Co-Operative Society Ltd T4503","Social Welfare Miscellaneous Society","Thiruvananthapuram","Thiruvananthapuram","Taluk","Social Welfare Co-operative Societies","08.02.2021","WORKING"]
[577,"KL0103I02021","Pattom social welfare Co-Operative Society ltd T 2277","Social Welfare Miscellaneous Society","Thiruvananthapuram","Thiruvananthapuram","Taluk","Social Welfare Co-operative Societies","25.4.2021","WORKING"]
[578,"KL0103I02021","Kazhakkoottam gramodharana social welfare Co-Operative Society ltd T 2280","Social Welfare Miscellaneous Society","Thiruvananthapuram","Thiruvananthapuram","Taluk","Social Welfare Co-operative Societies","17.06.2021","WORKING"]
[579,"KL0102I02022","Vattavila Social Welfare Co-Operative Society Ltd T 2292","Social Welfare Miscellaneous Society","Thiruvananthapuram","Thiruvananthapuram","Taluk","Social Welfare Co-operative Societies","07.01.2022","WORKING"]
[580,"KL0102I02022","Travancore Peoples Social Welfare Co-Operative Society Ltd T 2294","Social Welfare Miscellaneous Society","Thiruvananthapuram","Thiruvananthapuram","Taluk","Social Welfare Co-operative Societies","10.03.2022","WORKING"]
[581,"KL0102I02022","Capital Social Welfare CS Ltd T 2295","Social Welfare Miscellaneous Society","Thiruvananthapuram","Thiruvananthapuram","Taluk","Social Welfare Co-operative Societies","31.03.2022","WORKING"]
[582,"KL0102I02022","Noms Social Welfare Co-Operative Society Ltd T 2296","Social Welfare Miscellaneous Society","Thiruvananthapuram","Thiruvananthapuram","Taluk","Social Welfare Co-operative Societies","31.03.2022","WORKING"]
[583,"KL0102I02022","Saigramam Social Welfare Co-Operative Society Ltd. T 2302","Social Welfare Miscellaneous Society","Thiruvananthapuram","Thiruvananthapuram","Taluk","Social Welfare Co-operative Societies","26.05.2022","WORKING"]
[584,"KL0101I02306","The Travancore Agro Industries & Unorganised Labours Social Welfare Co-Operative Society Ltd. T 2306","Social Welfare Miscellaneous Society","Thiruvananthapuram","Thiruvananthapuram","Taluk","Social Welfare Co-operative Societies","22.07.2022","WORKING"]
[585,"KL0102I02022","Kulathoor Traders Social Welfare Co-Operative Society Ltd. T 2309","Social Welfare Miscellaneous Society","Thiruvananthapuram","Thiruvananthapuram","Taluk","Social Welfare Co-operative Societies","15.09.2022","WORKING"]
[586,"KL0102I02022","Thiruvananthapuram Providend Fund Pensioners Social Welfare Co-Operative Society Ltd. T 2310","Social Welfare Miscellaneous Society","Thiruvananthapuram","Thiruvananthapuram","Taluk","Social Welfare Co-operative Societies","18.10.2022","WORKING"]
[587,"KL0102I02022","Thiruvananthapuram District Shops & Commercial Establishment Employees Social Welfare Co-Operative Society Ltd. T 2313","Social Welfare Miscellaneous Society","Thiruvananthapuram","Thiruvananthapuram","District","Social Welfare Co-operative Societies","11.10.2022","WORKING"]
[588,"KL0101I02314","Kaniyapuram Social Welfare Co-Operative Society Ltd. T 2314","Social Welfare Miscellaneous Society","Thiruvananthapuram","Thiruvananthapuram","Taluk","Social Welfare Co-operative Societies","22.11.2022","WORKING"]
[589,"KL0102I02022","Thiruvananthapuram District Un Organised Workers Social Welfare Co-Operative Society Ltd. T 2315","Social Welfare Miscellaneous Society","Thiruvananthapuram","Thiruvananthapuram","District","Social Welfare Co-operative Societies","28.11.2022","WORKING"]
[590,"KL0101I02317","Chirayil Rural Development Social Welfare Co-Operative Society Ltd. T 2317","Social Welfare Miscellaneous Society","Thiruvananthapuram","Thiruvananthapuram","Taluk","Social Welfare Co-operative Societies","14.12.2022","WORKING"]
[591,"KL0101I02319","Mannam Memorial Social Welfare Co-Operative Society Ltd. T 2319","Social Welfare Miscellaneous Society","Thiruvananthapuram","Thiruvananthapuram","Taluk","Social Welfare Co-operative Societies","1.4.2023","WORKING"]
[592,"KL0101I02321","Souhridam Pensioners & Senior Citizens Social Welfare Co-Operative Society Ltd. T 2321","Social Welfare Miscellaneous Society","Thiruvananthapuram","Thiruvananthapuram","Taluk","Social Welfare Co-operative Societies","1.12.2023","WORKING"]
[593,"KL0101I02319","Pharmasists Social Welfare Co-Operative Society Ltd. T 2322","Social Welfare Miscellaneous Society","Thiruvananthapuram","Thiruvananthapuram","Taluk","Social Welfare Co-operative Societies","19.01.2023","WORKING"]
[594,"KL0103I02024","Agriculturist Labourers Farming Innovations & Social Welfare Co-Operative Society Ltd. T 2325","Social Welfare Miscellaneous Society","Thiruvananthapuram","Thiruvananthapuram","Taluk","Social Welfare Co-operative Societies","24.02.2023","WORKING"]
[595,"KL0101I02337","Thiruvananthapuram Police Pensioners Social Welfare Co-Operative Society T 2337","Social Welfare Miscellaneous Society","Thiruvananthapuram","Thiruvananthapuram","Taluk","Social Welfare Co-operative Societies","7.8.2024","WORKING"]
[596,"KL0103I02024","Travancore Progressive Social Welfare Co-Operative Society T 2338","Social Welfare Miscellaneous Society","Thiruvananthapuram","Thiruvananthapuram","Taluk","Social Welfare Co-operative Societies","19.11.2024","WORKING"]
[597,"KL0106I02025","Thiruvananthapuram Citizens Social Welfare Co-Operative Society T 2341","Social Welfare Miscellaneous Society","Thiruvananthapuram","Thiruvananthapuram","Taluk","Social Welfare Co-operative Societies","2.7.2025","WORKING"]
[598,"KL0101I01931","Tvpm Jilla Vyapari Vyavasai Welfare Co-Operative Society T 1931","Social Welfare Miscellaneous Society","Thiruvananthapuram","Thiruvananthapuram","Taluk","MISCELLANEOUS","07.05.2014","WORKING"]
[599,"KL0101I04495","Kerala State Differently Abled Persons And Parents Welfare Service Cs 4495","Social Welfare Miscellaneous Society","Thiruvananthapuram","Thiruvananthapuram","More Than A District","Miscellanious ","27.09.2017","WORKING"]
[600,"KL0102I01810","Thiruvithamcure Devasom Pensioners Welfare Cooperative Society Ltd 4496","Social Welfare Miscellaneous Society","Thiruvananthapuram","Thiruvananthapuram","More Than A District","Miscellanious ","4.10.2018","WORKING"]
[601,"KL0102I01982","Sevagiri Residence Welfare Co-Operative Society Ltd. t 794(Kesavadasapuram Co-Operative Society Ltd.)","Social Welfare Miscellaneous Society","Thiruvananthapuram","Thiruvananthapuram","Taluk"," Residence Welfare Co-Operative Society","29.03.1982","WORKING"]
[602,"KL0104V01194","Vikalanga Welfare & Development Co-Operative Society Ltd. T 1117","Social Welfare Miscellaneous Society","Thiruvananthapuram","Thiruvananthapuram","Taluk","Miscellanious ","5.8.1992","WORKING"]
[603,"KL0102I01812","Souhruda Nagar Residence Welfare Co-Operative Society Ltd. T 1408","Social Welfare Miscellaneous Society","Thiruvananthapuram","Thiruvananthapuram","Taluk","Miscellanious ","19.12.1998","WORKING"]
[604,"KL0101I01694","Trivandrum transport Co-Operative Society Ltd. T 1694","Social Welfare Miscellaneous Society","Thiruvananthapuram","Thiruvananthapuram","Taluk","Miscellaneous","2.4.2008","WORKING"]
[605,"KL0104G02169","Kazhakoottam agriculturist Welfare Co-Operative Society Ltd. T 1715","Social Welfare Miscellaneous Society","Thiruvananthapuram","Thiruvananthapuram","Taluk","Non Agricultural Co-operative Societies Others","17.06.2010","WORKING"]
[606,"KL0101I01720","Pangappara sree narayana gurumandira samidhi Residence Welfare Co-Operative Society Ltd. T 1720","Social Welfare Miscellaneous Society","Thiruvananthapuram","Thiruvananthapuram","Taluk","Miscellaneous","22.7.2010","WORKING"]
[607,"KL0102I01810","Sreenarayana puram skilled workers Welfare Co-Operative Society Ltd.T 1740","Social Welfare Miscellaneous Society","Thiruvananthapuram","Thiruvananthapuram","Taluk","Miscellaneous","7.10.2011","WORKING"]
[608,"KL0101I01746","The Nemom Artisans Welfare Co-Operative Society Ltd.T 1746","Social Welfare Miscellaneous Society","Thiruvananthapuram","Thiruvananthapuram","Taluk","Social Welfare ","12.12.2011","WORKING"]
[609,"KL0101I02330","Thiruvananthapuram Special Armed Police Social Welfare Co-Operative Society Ltd. T 2330","Social Welfare Miscellaneous Society","Thiruvananthapuram","Thiruvananthapuram","Taluk","Social Welfare Miscellanious Society","19.07.2023","WORKING"]
[610,"KL0101I02331","R.Sankar Memorial Social Welfare Co-Operative Society Ltd.T 2331","Social Welfare Miscellaneous Society","Thiruvananthapuram","Thiruvananthapuram","Taluk","Social Welfare Miscellanious Society","31.10.2023","WORKING"]
[611,"KL0101I02335","Thiruvananthapuram Allied Labours Social Welfare Co-Operative Society Ltd.T 2335","Social Welfare Miscellaneous Society","Thiruvananthapuram","Thiruvananthapuram","Taluk","Social Welfare Miscellanious Society","15.03.2024","WORKING"]
[612,"KL0102I02022","Trivandrum social service  Co-Operative Society Ltd.T 1717","Social Welfare Miscellaneous Society","Thiruvananthapuram","Thiruvananthapuram","District","Social Welfare Miscellaneous Society","22.7.2010","WORKING"]
[613,"KL0102I01810","Chayakudi Residence Welfare Cooperative Society 1411","Social Welfare Miscellaneous Society","Thiruvananthapuram","Thiruvananthapuram","Taluk","Social Welfare Miscellaneous Society","10.2.1999","WORKING"]
[614,"KL0101I02020","Vazhuthacuad Social Welfare Co-Operative Society Ltd. 2239","Social Welfare Miscellaneous Society","Thiruvananthapuram","Thiruvananthapuram","Taluk","Social Welfare Co-operative Societies","20.04.2020","WORKING"]
[615,"KL0106I01615","Alamcode Sreenarayana Residence Welfare Co Operative Society Ltd No T.1615","Social Welfare Miscellaneous Society","Thiruvananthapuram","Kattakkada","Taluk","Welfare Societies","01.03.2006","WORKING"]
[616,"KL0106I01579","Vilavoorkal Welfare Co-operative Society Ltd. T.1579","Social Welfare Miscellaneous Society","Thiruvananthapuram","Kattakkada","Taluk","Welfare Societies","22.07.2005","WORKING"]
[617,"KL0106I01775","Malayinkeezhu Panchayath Residence Welfare Co-operative Society Ltd No  T.1775","Social Welfare Miscellaneous Society","Thiruvananthapuram","Kattakkada","Taluk","Welfare Societies","4.5.2012","WORKING"]
[618,"KL0106I01846","Marnalloor Residence Welfare Co-operative Society Ltd No  T.1846","Social Welfare Miscellaneous Society","Thiruvananthapuram","Kattakkada","Taluk","Welfare Societies","5.4.2013","WORKING"]
[619,"KL0106I01773","Kattakada Panchayath Residence Welfare Co-operative Society Ltd No T.1773","Social Welfare Miscellaneous Society","Thiruvananthapuram","Kattakkada","Taluk","Welfare Societies","4.5.2012","WORKING"]
[620,"KL0106I01805","Ottashekharamangalam Panchayath Residence Welfare Co-operative Society Ltd No T.1805","Social Welfare Miscellaneous Society","Thiruvananthapuram","Kattakkada","Taluk","Welfare Societies","26.9.2012","WORKING"]
[621,"KL0106I01748","Kuttichal Panchayath Residents welfare Co-operative Society Ltd No T.1748","Social Welfare Miscellaneous Society","Thiruvananthapuram","Kattakkada","Taluk","Welfare Societies","19.12.2011","WORKING"]
[622,"KL0106I01580","Veeranakavu Welfare Co-operative Society Ltd No T.1580","Social Welfare Miscellaneous Society","Thiruvananthapuram","Kattakkada","Morethan One Taluk But Less Than A District","Welfare Societies","22.07.2005","WORKING"]
[623,"KL0106I01594","Social Welfare Co-operative Society Ltd No T. 1594","Social Welfare Miscellaneous Society","Thiruvananthapuram","Kattakkada","Taluk","Welfare Societies","11.01.2006","WORKING"]
[624,"KL0106I01855","Vilappil Grameena Thozhilali Ksheema Co-operative Society Ltd No T.1855","Social Welfare Miscellaneous Society","Thiruvananthapuram","Kattakkada","Taluk","Welfare Societies","23.05.2013","WORKING"]
[625,"KL0106I02045","Maranalloor Social Welfare Co operative Society Ltd No. T.2045","Social Welfare Miscellaneous Society","Thiruvananthapuram","Kattakkada","Taluk","Welfare Societies","04.12.2015","WORKING"]
[626,"KL0106I02025","Malayinkil J.P Smaraka Social Welfare Co-operative Society Ltd No T.2025","Social Welfare Miscellaneous Society","Thiruvananthapuram","Kattakkada","Taluk","Welfare Societies","11.10.2015","WORKING"]
[627,"KL0106I02093","Peyad Welfare Co-operative Society Ltd.No.T.2093","Social Welfare Miscellaneous Society","Thiruvananthapuram","Kattakkada","Taluk","Welfare Societies","15.02.2016","WORKING"]
[628,"KL0106I01995","Nemom Block Social Welfare Co-operative Society Ltd No. T.1995","Social Welfare Miscellaneous Society","Thiruvananthapuram","Kattakkada","Taluk","Welfare Societies","05.06.2015","WORKING"]
[629,"KL0106I01692","Kulathummal Welfare Co-operative Society Ltd No  T. 1692","Social Welfare Miscellaneous Society","Thiruvananthapuram","Kattakkada","Taluk","Welfare Societies","21.02.2008","WORKING"]
[630,"KL0106I01743","Poovachal Panchayath Social Werlfare Ltd No. T.1743","Social Welfare Miscellaneous Society","Thiruvananthapuram","Kattakkada","Taluk","Welfare Societies","11.11.2011","WORKING"]
[631,"KL0106I02035","Konniyoor Social Welfare Co-operative Society Ltd No  T 2035","Social Welfare Miscellaneous Society","Thiruvananthapuram","Kattakkada","Taluk","Welfare Societies","05.11.2015","WORKING"]
[632,"KL0106I01947","Peyad Vyapari Vyavasayi welfare Co-operative Society Ltd No  T.1947","Social Welfare Miscellaneous Society","Thiruvananthapuram","Kattakkada","Taluk","Welfare Societies","16.7.2014","WORKING"]
[633,"KL0106I01629","Kattal Farmers Social Welfare Co-operative Society Ltd No . T. 1629","Social Welfare Miscellaneous Society","Thiruvananthapuram","Kattakkada","Taluk","Welfare Societies","05.05.2006","WORKING"]
[634,"KL0106I01795","Thiruvananthapuram Grameena Farmers Welfare Co-operative Society Ltd No  T1795","Social Welfare Miscellaneous Society","Thiruvananthapuram","Kattakkada","Taluk","Welfare Societies","16.07.2012","WORKING"]
[635,"KL0106I01842","Vilapil Farmers Welfare co-operative Society Ltd No  T.1842 ","Social Welfare Miscellaneous Society","Thiruvananthapuram","Kattakkada","Taluk","Welfare Societies","22.03.2013","WORKING"]
[636,"KL0106I02049","Mangalakkal Farmers Welfare Co-operative Society Ltd No . T. 2049","Social Welfare Miscellaneous Society","Thiruvananthapuram","Kattakkada","Taluk","Welfare Societies","16.12.2015","WORKING"]
[637,"KL0106P00872","Otasekharamangalam Farmers Welfare Co-operative Society Ltd No T.2085","Social Welfare Miscellaneous Society","Thiruvananthapuram","Kattakkada","Taluk","Welfare Societies","10.02.2016","WORKING"]
[638,"KL0106I02087","Kattakada General Labours Welfare Co-operative Society Ltd No  T.2087","Social Welfare Miscellaneous Society","Thiruvananthapuram","Kattakkada","Taluk","Welfare Societies","10.02.2016","WORKING"]
[639,"KL0106I02161","Kattaakada Taluk Pravasi Welfare Co-operative Society Ltd No  T.2161","Social Welfare Miscellaneous Society","Thiruvananthapuram","Kattakkada","Taluk","Welfare Societies","19.12.2017","WORKING"]
[640,"KL0106I01933","Uriyacode Farmers Social Welfare Co-operative Society Ltd No  .T. 1933","Social Welfare Miscellaneous Society","Thiruvananthapuram","Kattakkada","Taluk","Welfare Societies","13.06.2014","WORKING"]
[641,"KL0106G02114","Kattakkada Taluk welfare co-op society  Ltd No T.2114","Social Welfare Miscellaneous Society","Thiruvananthapuram","Kattakkada","Taluk","Welfare Societies","04.03.2016","WORKING"]
[642,"KL0106I01933","Sahiyorum Farmers Social Welfare Co-operative Society Ltd No  T.2127","Social Welfare Miscellaneous Society","Thiruvananthapuram","Kattakkada","Taluk","Welfare Societies","03.10.2016","WORKING"]
[643,"KL0106I01973","Vellanad Block Horticulture Farmers Welfare Co-Operative Society Ltd No  T.1973","Social Welfare Miscellaneous Society","Thiruvananthapuram","Kattakkada","Taluk","Welfare Societies","04.11.2014","WORKING"]
[644,"KL0106I02205","Maranalloor Farmers Social Welfare Co-operative Society Ltd No 2205","Social Welfare Miscellaneous Society","Thiruvananthapuram","Kattakkada","Taluk","Welfare Societies","30.01.2019","WORKING"]
[645,"KL0106I01847","Thiruvananthapuram Jilla Thozhilali Vikasana Sahakarana Sangham Ltd No T.1847","Social Welfare Miscellaneous Society","Thiruvananthapuram","Kattakkada","Morethan One Taluk But Less Than A District","Welfare Societies","11.04.2013","WORKING"]
[646,"KL0101E01114","Maranallur Co-operative Society Ltd No T 1172","Social Welfare Miscellaneous Society","Thiruvananthapuram","Kattakkada","Taluk","Welfare Societies","14.9.1992","WORKING"]
[647,"KL0106I02207","Punnavoor Agricultural Development Farmers Welfare Co-operative Society LTD No T.2207","Social Welfare Miscellaneous Society","Thiruvananthapuram","Kattakkada","Taluk","Welfare Societies","09.06.2019","WORKING"]
[648,"KL0103I02229","Karshika Samrakshana Gramavikasana Sahakarana Sangham Ltd No T 2029","Social Welfare Miscellaneous Society","Thiruvananthapuram","Kattakkada","Taluk","Welfare Societies","09.10.2015","WORKING"]
[649,"KL0106I01866","Malayinkeezhu Agricultural Development Cooperative Society Ltd No T1866","Social Welfare Miscellaneous Society","Thiruvananthapuram","Kattakkada","Taluk","Welfare Societies","04.07.2013","WORKING"]
[650,"KL0106I01858","Poovachal polutry Development Co-operative Society Ltd No  T.1858","Social Welfare Miscellaneous Society","Thiruvananthapuram","Kattakkada","Taluk","Welfare Societies","07.06.2013","WORKING"]
[651,"KL0106I02215","Thachancode Social Welfare Co-operative Society Ltd No .T2215","Social Welfare Miscellaneous Society","Thiruvananthapuram","Kattakkada","Morethan One Taluk But Less Than A District","Welfare Societies","27.09.2019","WORKING"]
[652,"KL0106I01312","Thiruvananthapuram District Agricultural Science graduate & Technician Co-operative Society Ltd No 1312","Social Welfare Miscellaneous Society","Thiruvananthapuram","Kattakkada","Taluk","Welfare Societies","26.03.1996","WORKING"]
[653,"KL0106I01856","Kerala Rural Development Micro Finance Co-operative Society Ltd No  T.1856","Social Welfare Miscellaneous Society","Thiruvananthapuram","Kattakkada","Morethan One Taluk But Less Than A District","Welfare Societies","23.5.2013","WORKING"]
[654,"KL0106I01790","Kattakada Taluk Commercial Development Co-operative Society Ltd No  T.1790","Social Welfare Miscellaneous Society","Thiruvananthapuram","Kattakkada","Taluk","Welfare Societies","12.06.2012","WORKING"]
[655,"KL0106I01825","Vilappil Commercial Development Co-operative Society Ltd No  T.1825","Social Welfare Miscellaneous Society","Thiruvananthapuram","Kattakkada","Taluk","Welfare Societies","14.12.2012","WORKING"]
[656,"KL0106I02089","Kattakkada Taluk Malayora Karshaka Sahakarana Sangam Ltd No   T2089","Social Welfare Miscellaneous Society","Thiruvananthapuram","Kattakkada","Taluk","Welfare Societies","00.00.2016","WORKING"]
[657,"KL0106I02300","Kattal Agro Social Welafare Co-operative Society Ltd No  T.2300","Social Welfare Miscellaneous Society","Thiruvananthapuram","Kattakkada","Taluk","Welfare Societies","19.05.2022","WORKING"]
[658,"KL0106I02329","Amboori Farmers Social Welfare Co-operative Society Ltd No  T.2329","Social Welfare Miscellaneous Society","Thiruvananthapuram","Kattakkada","Taluk","Welfare Societies","30.06.2023","WORKING"]
[659,"KL0106I02333","Kattakkada Taluk Malayora Karshaka Social Welfare Co-operative Society Ltd No  T.2333","Social Welfare Miscellaneous Society","Thiruvananthapuram","Kattakkada","Taluk","Welfare Societies","11.01.2024","WORKING"]
[660,"KL0102I01571","Kulathoor Residential Welfare Co Operative Society T 1571","Social  Welfarre co operative socitiess","Thiruvananthapuram","Neyyattinkara","Taluk","Social Welfare Co-operative Society ","13.06.2005","WORKING"]
[661,"KL0102I01619","TVPM Jilla Embroyidary Workers welfare Co Operative Society T 1619","Social  Welfarre co operative socitiess","Thiruvananthapuram","Neyyattinkara"," District","Social Welfare Co-operative Society ","01.03.2006","WORKING"]
[662,"KL0102I01638","Karode Panchayath Residence welfare Welfare Co Operative Society T 1638","Social  Welfarre co operative socitiess","Thiruvananthapuram","Neyyattinkara","Taluk","Social Welfare Co-operative Society ","09.05.2006","WORKING"]
[663,"KL0102I01468","Mulloor Residential Welfare Co Operative Society T 1468","Social  Welfarre co operative socitiess","Thiruvananthapuram","Neyyattinkara","Taluk","Social Welfare Co-operative Society ","25.01.2001","WORKING"]
[664,"KL0102I01810","Neyyattinkara Residence Welfare Co Operative Society T 1653","Social  Welfarre co operative socitiess","Thiruvananthapuram","Neyyattinkara","Taluk","Social Welfare Co-operative Society ","10.05.2006","WORKING"]
[665,"KL0102I01668","Kulathoor Panchayath Building Workers Welfare Co Operative Society T 1668","Social  Welfarre co operative socitiess","Thiruvananthapuram","Neyyattinkara","Taluk","Social Welfare Co-operative Society ",null,"WORKING"]
[666,"KL0102I01627","Naruvamoodu Residence Welfare Co Operative Society T 1627","Social  Welfarre co operative socitiess","Thiruvananthapuram","Neyyattinkara","Taluk","Social Welfare Co-operative Society ","05.05.2006","WORKING"]
[667,"KL0102I01621","Pallichal Panchayath Residence Welfare Co Operative Society T 1621","Social  Welfarre co operative socitiess","Thiruvananthapuram","Neyyattinkara","Taluk","Social Welfare Co-operative Society ","05.05.2006","WORKING"]
[668,"KL0102I01649","Balaramapuram Panchayath Residence Welfare Co Operative Society T 1649","Social  Welfarre co operative socitiess","Thiruvananthapuram","Neyyattinkara","Taluk","Social Welfare Co-operative Society ","10.05.2006","WORKING"]
[669,"KL0102I01625","Pravachambalam Farmers Social Welfare Co Operative Society T 1625","Social  Welfarre co operative socitiess","Thiruvananthapuram","Neyyattinkara","Taluk","Social Welfare Co-operative Society ","05.05.2006","WORKING"]
[670,"KL0102I02038","Kavinpuram Social Welfare Co-Operative Society Ltd. T 2038","Social  Welfarre co operative socitiess","Thiruvananthapuram","Neyyattinkara","Taluk","Social Welfare Co-operative Society ","12.11.2015","WORKING"]
[671,"KL0102I01598","Neyyattinkara Commercial Development Co Operative Society T 1598","Social  Welfarre co operative socitiess","Thiruvananthapuram","Neyyattinkara","Taluk","Social Welfare Co-operative Society ","03.02.2006","WORKING"]
[672,"KL0102I01688","Neyyattinkara Taluk Pensioners Welfare Co Operative Society T 1688","Social  Welfarre co operative socitiess","Thiruvananthapuram","Neyyattinkara","Taluk","Social Welfare Co-operative Society ",null,"WORKING"]
[673,"KL0102I01681","Neyyattinkara Taluk Pravasi Welfare Co Operative Society T 1681","Social  Welfarre co operative socitiess","Thiruvananthapuram","Neyyattinkara","Taluk","Social Welfare Co-operative Society ","31.10.2007","WORKING"]
[674,"KL0102I01707","Neyyattinkara General Workers Welfare Co Operative Society T 1707","Social  Welfarre co operative socitiess","Thiruvananthapuram","Neyyattinkara","Taluk","Social Welfare Co-operative Society ",null,"WORKING"]
[675,"KL0102I01713","Nemom Farmers Welfare Co Operative Society T 1713","Social  Welfarre co operative socitiess","Thiruvananthapuram","Neyyattinkara","Taluk","Social Welfare Co-operative Society ","24.4.2010","WORKING"]
[676,"KL0102I01726","Uchakada Farmers Social Welfare Co Operative Society T 1726","Social  Welfarre co operative socitiess","Thiruvananthapuram","Neyyattinkara","Taluk","Social Welfare Co-operative Society ","21.8.2010","WORKING"]
[677,"KL0102I01810","Sangha Chethana Vehicle Owners Welfare Co Operative Society T 1665","Social  Welfarre co operative socitiess","Thiruvananthapuram","Neyyattinkara","Taluk","Social Welfare Co-operative Society ","10.9.2000","WORKING"]
[678,"KL0102I01745","Parasuvaikal Farmers Social Welfare Co operative Society T 1745","Social  Welfarre co operative socitiess","Thiruvananthapuram","Neyyattinkara","Taluk","Social Welfare Co-operative Society ","9.12.2011","WORKING"]
[679,"KL0102I01753","Thiruvithamcore Farmers social Welfare Co operative Society T 1753","Social  Welfarre co operative socitiess","Thiruvananthapuram","Neyyattinkara","Taluk","Social Welfare Co-operative Society ","17.1.2012","WORKING"]
[680,"KL0102I01755","Thirupuram Panchayath ResidentsWelfare Co operative Society T 1755","Social  Welfarre co operative socitiess","Thiruvananthapuram","Neyyattinkara","Taluk","Social Welfare Co-operative Society ","18.1.2012","WORKING"]
[681,"KL0102I01763","Neyyattinkara Thaluk Agricutural Worker's Social Welfare Co Operative Society T 1763","Social  Welfarre co operative socitiess","Thiruvananthapuram","Neyyattinkara","Taluk","Social Welfare Co-operative Society ","5.3.2012","WORKING"]
[682,"KL0102I01767","Uchakada Vyapari Vyavasayi Social Welfare Co Operative Society T 1767","Social  Welfarre co operative socitiess","Thiruvananthapuram","Neyyattinkara","Taluk","Social Welfare Co-operative Society ","24.3.2012","WORKING"]
[683,"KL0102I01756","Ponvila Commercial Development .Co operative Society T 1756","Social  Welfarre co operative socitiess","Thiruvananthapuram","Neyyattinkara","Taluk","Social Welfare Co-operative Society ","24.1.2012","WORKING"]
[684,"KL0102I01780","Neyyattinkara Thaluk Gulf Worker's Welfare Co Operative Society T 1780","Social  Welfarre co operative socitiess","Thiruvananthapuram","Neyyattinkara","Taluk","Social Welfare Co-operative Society ","22.5.2012","WORKING"]
[685,"KL0102I01777","Thiruvananthapuram District Luthern Church Worker's Welfare Co Operative Society T 1777","Social  Welfarre co operative socitiess","Thiruvananthapuram","Neyyattinkara","Taluk","Social Welfare Co-operative Society ","1.6.2012","WORKING"]
[686,"KL0102I01800","Neyyattinkara Welfare Co Operative Society T 1800","Social  Welfarre co operative socitiess","Thiruvananthapuram","Neyyattinkara","Taluk","Social Welfare Co-operative Society ","10.9.2012","WORKING"]
[687,"KL0102I01810","Neyyattinkara Farmers Welfare Co operative Society T 1810","Social  Welfarre co operative socitiess","Thiruvananthapuram","Neyyattinkara","Taluk","Social Welfare Co-operative Society ","15.10.2012","WORKING"]
[688,"KL0102I01812","Kanjiramkulam Farmers Welfare Co operative Society T 1812","Social  Welfarre co operative socitiess","Thiruvananthapuram","Neyyattinkara","Taluk","Social Welfare Co-operative Society ","19.10.2012","WORKING"]
[689,"KL0102I01815","Vizhinjam Farmers Social Welfare Co operative Society T 1815","Social  Welfarre co operative socitiess","Thiruvananthapuram","Neyyattinkara","Taluk","Social Welfare Co-operative Society ","2.11.2012","WORKING"]
[690,"KL0102I01830","Neyyattinkara Farmers Social Welfare Co Operative Society T 1830","Social  Welfarre co operative socitiess","Thiruvananthapuram","Neyyattinkara","Taluk","Social Welfare Co-operative Society ","7.1.2013","WORKING"]
[691,"KL0102I01837","Anchalikonam Residents Welfare Co Operative Society T 1837","Social  Welfarre co operative socitiess","Thiruvananthapuram","Neyyattinkara","Taluk","Social Welfare Co-operative Society ","1.3.2013","WORKING"]
[692,"KL0102I01862","Amaravila Farmers Social Welfare Co operative Society T 1862","Social  Welfarre co operative socitiess","Thiruvananthapuram","Neyyattinkara","Taluk","Social Welfare Co-operative Society ","15.6.2013","WORKING"]
[693,"KL0102I01864","Manaluvila Farmers Welfare Co operative Society T 1864","Social  Welfarre co operative socitiess","Thiruvananthapuram","Neyyattinkara","Taluk","Social Welfare Co-operative Society ","1.7.2013","WORKING"]
[694,"KL0102I01867","Thirupuram Farmers Welfare Co operative Society T 1867","Social  Welfarre co operative socitiess","Thiruvananthapuram","Neyyattinkara","Taluk","Social Welfare Co-operative Society ","31.7.2013","WORKING"]
[695,"KL0102I01888","Parassala Gramodharana Co Operative Society T 1888","Social  Welfarre co operative socitiess","Thiruvananthapuram","Neyyattinkara","Taluk","Social Welfare Co-operative Society ","18.12.2013","WORKING"]
[696,"KL0102I01890","Kera Karshaka Welfare Co operative Society T 1890","Social  Welfarre co operative socitiess","Thiruvananthapuram","Neyyattinkara","Taluk","Social Welfare Co-operative Society ","31.12.2013","WORKING"]
[697,"KL0102I01891","Karode Rural Agri Development Co Operative Society T 1891","Social  Welfarre co operative socitiess","Thiruvananthapuram","Neyyattinkara","Taluk","Social Welfare Co-operative Society ","1.1.2014","WORKING"]
[698,"KL0102I01894","Neyyattinkara Taluk Ksheera Karshaka Welfare Co Operative Society T 1894","Social  Welfarre co operative socitiess","Thiruvananthapuram","Neyyattinkara","Taluk","Social Welfare Co-operative Society ","15.1.2015","WORKING"]
[699,"KL0102I01899","Paraniyam Farmers Welfare Co operative Society T 1899","Social  Welfarre co operative socitiess","Thiruvananthapuram","Neyyattinkara","Taluk","Social Welfare Co-operative Society ","25.1.2014","WORKING"]
[700,"KL0102I01900","Neyyattinkara karakousala Nirmmanna Thozhilali Kshema Co Operative Society T 1900","Social  Welfarre co operative socitiess","Thiruvananthapuram","Neyyattinkara","Taluk","Social Welfare Co-operative Society ","25.1.2014","WORKING"]
[701,"KL0102I01908","Naruvamoodu Service Pensioners Welfare Co Operative Society T 1908","Social  Welfarre co operative socitiess","Thiruvananthapuram","Neyyattinkara","Taluk","Social Welfare Co-operative Society ","22.2.2014","WORKING"]
[702,"KL0102I01916","Kattunada Farmers Social Welfare Co operative Society T 1916","Social  Welfarre co operative socitiess","Thiruvananthapuram","Neyyattinkara","Taluk","Social Welfare Co-operative Society ","21.4.2014","WORKING"]
[703,"KL0102I01928","Arumanoor farmers Welfare Co operative Society T 1928","Social  Welfarre co operative socitiess","Thiruvananthapuram","Neyyattinkara","Taluk","Social Welfare Co-operative Society ","22.5.2014","WORKING"]
[704,"KL0102I01939","Neyyattinkara Taluk Traders Welfare Co Operative Society T 1939","Social  Welfarre co operative socitiess","Thiruvananthapuram","Neyyattinkara","Taluk","Social Welfare Co-operative Society ","23.6.2014","WORKING"]
[705,"KL0102I01941","karumkulam Farmers Welfare Co operative Society T 1941","Social  Welfarre co operative socitiess","Thiruvananthapuram","Neyyattinkara","Taluk","Social Welfare Co-operative Society ","28.6.2014","WORKING"]
[706,"KL0102I01946","Grameena karshaka Ulpadhaka Ksheema Co operative Society T 1946","Social  Welfarre co operative socitiess","Thiruvananthapuram","Neyyattinkara","Taluk","Social Welfare Co-operative Society ","14.7..214","WORKING"]
[707,"KL0102I01952","Perumpazhuthoor Social Welfare Co Operative Society T 1952","Social  Welfarre co operative socitiess","Thiruvananthapuram","Neyyattinkara","Taluk","Social Welfare Co-operative Society ","5.8.2014","WORKING"]
[708,"KL0102I01953","Balaramapuram Town Farmers Welfare Co Operative Society T 1953","Social  Welfarre co operative socitiess","Thiruvananthapuram","Neyyattinkara","Taluk","Social Welfare Co-operative Society ","5.8.2014","WORKING"]
[709,"KL0102I01810","Neyyattinkara Taluk SC/ST Uplifement Welfare Co Operative Society T 1970","Social  Welfarre co operative socitiess","Thiruvananthapuram","Neyyattinkara","Taluk","Social Welfare Co-operative Society ","27.10.2014","WORKING"]
[710,"KL0102I01979","Kanthallur Farmers Welfare Co operative Society T 1979","Social  Welfarre co operative socitiess","Thiruvananthapuram","Neyyattinkara","Taluk","Social Welfare Co-operative Society ","8.12.2014","WORKING"]
[711,"KL0102I01982","Elluvila Farmers Social Welfare Co operative Society T 1982","Social  Welfarre co operative socitiess","Thiruvananthapuram","Neyyattinkara","Taluk","Social Welfare Co-operative Society ","9.12.2014","WORKING"]
[712,"KL0102I01987","Udiyankulangara Vyapari Vyavasayi welfare Co Operative Society T 1987","Social  Welfarre co operative socitiess","Thiruvananthapuram","Neyyattinkara","Taluk","Social Welfare Co-operative Society ","1.1.2015","WORKING"]
[713,"KL0102I01989","Athiyanoor Farmers Welfare Co Operative Society T 1989","Social  Welfarre co operative socitiess","Thiruvananthapuram","Neyyattinkara","Taluk","Social Welfare Co-operative Society ","7.1.2015","WORKING"]
[714,"KL0102I01996","Ayya Vaikundanadhar Social Welfare Sahakarana Sangam Ltd No T 1996","Social  Welfarre co operative socitiess","Thiruvananthapuram","Neyyattinkara","Taluk","Social Welfare Co-operative Society ","6.8.2015","WORKING"]
[715,"KL0102I02003","Athiyannoor Pattikajathi Vanitha Welfare Co Operative Society T 2003","Social  Welfarre co operative socitiess","Thiruvananthapuram","Neyyattinkara","Taluk","Social Welfare Co-operative Society ","6.19.2015","WORKING"]
[716,"KL0102I02006","Ananthapuri Farmers Social Welfare Co Operative Society T 2006","Social  Welfarre co operative socitiess","Thiruvananthapuram","Neyyattinkara","Taluk","Social Welfare Co-operative Society ","7.1.2015","WORKING"]
[717,"KL0102I02008","Karumkulam Agricultural Development Co Operative Society T 2008","Social  Welfarre co operative socitiess","Thiruvananthapuram","Neyyattinkara","Taluk","Social Welfare Co-operative Society ","7.7.2015","WORKING"]
[718,"KL0102I02022","Mannottukonam Social Welfare Development Co-operative Society T 2022","Social  Welfarre co operative socitiess","Thiruvananthapuram","Neyyattinkara","Taluk","Social Welfare Co-operative Society ","8.31.2015","WORKING"]
[719,"KL0102I02042","Parassala Residents Welfare Sahakarana Sangam T 2042","Social  Welfarre co operative socitiess","Thiruvananthapuram","Neyyattinkara","Taluk","Social Welfare Co-operative Society ","12.1.2015","WORKING"]
[720,"KL0102I02048","Neyyattinkara Taluk Karshika, Mrugasamrakshana Malsya Karshaka Welfare Sahakarana Sangam T 2048","Social  Welfarre co operative socitiess","Thiruvananthapuram","Neyyattinkara","Taluk","Social Welfare Co-operative Society ","12.9.2015","WORKING"]
[721,"KL0102I02064","Neduvanvila Farmers Social Wel;fare Shakarana Sangam T 2064","Social  Welfarre co operative socitiess","Thiruvananthapuram","Neyyattinkara","Taluk","Social Welfare Co-operative Society ","2.1.2016","WORKING"]
[722,"KL0102I02084","Panayarakunnu Farmers Social Welfare Sahakarana Sangam T 2084","Social  Welfarre co operative socitiess","Thiruvananthapuram","Neyyattinkara","Taluk","Social Welfare Co-operative Society ","2.10.2016","WORKING"]
[723,"KL0102I02090","Chenkavila Residents Social Welfare Sahakarana Sangam T 2090","Social  Welfarre co operative socitiess","Thiruvananthapuram","Neyyattinkara","Taluk","Social Welfare Co-operative Society ","2.12.2016","WORKING"]
[724,"KL0102I02091","Perumkadavila Farmers Social Welfare Sahakarana Sangam T 2091","Social  Welfarre co operative socitiess","Thiruvananthapuram","Neyyattinkara","Taluk","Social Welfare Co-operative Society ","2.15.2016","WORKING"]
[725,"KL0102I02095","Neyyattinkara Kettida Nirmana Thozhilali Social Welfare Sahakarana Sangam T 2095","Social  Welfarre co operative socitiess","Thiruvananthapuram","Neyyattinkara","Taluk","Social Welfare Co-operative Society ","2.15.2016","WORKING"]
[726,"KL0102I02102","Thiruvananthapuram Jilla Traditional Construction & Artisants & General Workers Welfare Sahakarana Sangam T 2102","Social  Welfarre co operative socitiess","Thiruvananthapuram","Neyyattinkara","Taluk","Social Welfare Co-operative Society ","3.3.2016","WORKING"]
[727,"KL0102I02106","Amaravila Residents Welfare Sahakarana Sangam T 2106","Social  Welfarre co operative socitiess","Thiruvananthapuram","Neyyattinkara","Taluk","Social Welfare Co-operative Society ","3.4.2016","WORKING"]
[728,"KL0102I02112","Kulangarakonam Social Welfare Sahakarana Sangam t 2112","Social  Welfarre co operative socitiess","Thiruvananthapuram","Neyyattinkara","Taluk","Social Welfare Co-operative Society ","3.4.2016","WORKING"]
[729,"KL0102I02119","Mottamoodu Farmers Social Welfare Co-Operative Society T 2119","Social  Welfarre co operative socitiess","Thiruvananthapuram","Neyyattinkara","Taluk","Social Welfare Co-operative Society ","3.4.2016","WORKING"]
[730,"KL0102I02129","Kulathoor Farmers SocialWefare Co-operative Society T 2129","Social  Welfarre co operative socitiess","Thiruvananthapuram","Neyyattinkara","Taluk","Social Welfare Co-operative Society ",42669,"WORKING"]
[731,"KL0102I02130","Kottamom Residence Wefare Co-operative Society t 2130","Social  Welfarre co operative socitiess","Thiruvananthapuram","Neyyattinkara","Taluk","Social Welfare Co-operative Society ",42669,"WORKING"]
[732,"KL0102I02144","Neyyattinkara Thaluk Drivers Co-operative Society T 2144","Social  Welfarre co operative socitiess","Thiruvananthapuram","Neyyattinkara","Taluk","Social Welfare Co-operative Society ","01.04.2017","WORKING"]
[733,"KL0102I02158","Perumkadavila Horticultural Development Co-operative Society Ltd No.T.2158","Social  Welfarre co operative socitiess","Thiruvananthapuram","Neyyattinkara","Taluk","Social Welfare Co-operative Society ","24.11.2017","WORKING"]
[734,"KL0102I02167","Arayoor Pattikajathi Vikasana Kshema Co-operative Society Ltd No. T.2167","Social  Welfarre co operative socitiess","Thiruvananthapuram","Neyyattinkara","Taluk","Social Welfare Co-operative Society ","16.02.2018","WORKING"]
[735,"KL0102I02145","Neyyattinkara Jaiwa Karshaka Welfare Co-operative Society Ltd. No.T.2145","Social  Welfarre co operative socitiess","Thiruvananthapuram","Neyyattinkara","Taluk","Social Welfare Co-operative Society ","13.04.2018","WORKING"]
[736,"KL0102I02198","Neyyattinkara Agro Horticulture Development Co-operative Society Ltd No. T.2198","Social  Welfarre co operative socitiess","Thiruvananthapuram","Neyyattinkara","Taluk","Social Welfare Co-operative Society ","19.12.2018","WORKING"]
[737,"KL0102A01525","Athiyanoor Block Farmers Co-operative Society Ltd T 2203","Social  Welfarre co operative socitiess","Thiruvananthapuram","Neyyattinkara","Taluk","Social Welfare Co-operative Society ","25.01.2019","WORKING"]
[738,"KL0102I02202","Kottukal Farmers Co-operative Society Ltd T 2202","Social  Welfarre co operative socitiess","Thiruvananthapuram","Neyyattinkara","Taluk","Social Welfare Co-operative Society ","25.01.2019","WORKING"]
[739,"KL0102I01452","Thalayal Residence welfare Co operative Society T 1452","Social  Welfarre co operative socitiess","Thiruvananthapuram","Neyyattinkara","Taluk","Social Welfare Co-operative Society ",null,"WORKING"]
[740,"KL0102I01687","Kuzhivilakonam Residence Welfare Co-Operative Society Ltd. T 1687","Social  Welfarre co operative socitiess","Thiruvananthapuram","Neyyattinkara","Taluk","Social Welfare Co-operative Society ","15.12.2007","WORKING"]
[741,"KL0102I02231","Perumpazhuthoor Jaiva Karshaka co operative society T 2231","Social  Welfarre co operative socitiess","Thiruvananthapuram","Neyyattinkara","Taluk","Social Welfare Co-operative Society ","02.03.2020","WORKING"]
[742,"KL0102I02214","Ancode social Welfare Co operative Society T 2214","Social  Welfarre co operative socitiess","Thiruvananthapuram","Neyyattinkara","Taluk","Social Welfare Co-operative Society ","19.09.2019","WORKING"]
[743,"KL0102I02246","Parassala Block Thozhilurappu Thozhilali Kshema co operative society T 2246","Social  Welfarre co operative socitiess","Thiruvananthapuram","Neyyattinkara","Taluk","Social Welfare Co-operative Society ","17.06.2020","WORKING"]
[744,"KL0102I02234","Kanjiramkulam Assankkaditha Thozhilali Samoohya Kshema co operative society T 2234","Social  Welfarre co operative socitiess","Thiruvananthapuram","Neyyattinkara","Taluk","Social Welfare Co-operative Society ","03.06.2020","WORKING"]
[745,"KL0102I02267","Thiruvananthapuram Horticultural Agro Development co operative society T 2267","Social  Welfarre co operative socitiess","Thiruvananthapuram","Neyyattinkara","District","Social Welfare Co-operative Society ","15.02.2021","WORKING"]
[746,"KL0102I02273","Anavoor Farmers co operative society T 2273","Social  Welfarre co operative socitiess","Thiruvananthapuram","Neyyattinkara","Taluk","Social Welfare Co-operative Society ","24.02.2021","WORKING"]
[747,"KL0102I02263","Punnakkad General Workers Welfare co operative society T 2263","Social  Welfarre co operative socitiess","Thiruvananthapuram","Neyyattinkara","Taluk","Social Welfare Co-operative Society ","13.01.2021","WORKING"]
[748,"KL0102I02276","TVM Dist Optometry Social welfare CS T 2276","Social  Welfarre co operative socitiess","Thiruvananthapuram","Neyyattinkara"," District","Social Welfare Co-operative Society ","21.04.2021","WORKING"]
[749,"KL0102I02291","Neyyar welfare co operative society T 2291","Social  Welfarre co operative socitiess","Thiruvananthapuram","Neyyattinkara","Taluk","Social Welfare Co-operative Society ","15.12.2021","WORKING"]
[750,"KL0102I02311","Alathoor Social welfare co operative society T 2311","Social  Welfarre co operative socitiess","Thiruvananthapuram","Neyyattinkara","Taluk","Social Welfare Co-operative Society ","1.11.2022","WORKING"]
[751,"KL0102I02297","Neyyattinkara Farm Development And Social Welfare Co Operative Society Limited T2297","Social  Welfarre co operative socitiess","Thiruvananthapuram","Neyyattinkara","Taluk","Social Welfare Co-operative Society ","7.4.2022","WORKING"]
[752,"KL0102I02298","Kavalakulam Rural Development Social Welfare Co Operative Society Limited T 2298","Social  Welfarre co operative socitiess","Thiruvananthapuram","Neyyattinkara","Taluk","Social Welfare Co-operative Society ",44667,"WORKING"]
[753,"KL0102I02327","Skill and Talent Development co operative society T 2327","Social  Welfarre co operative socitiess","Thiruvananthapuram","Neyyattinkara","Taluk","Social Welfare Co-operative Society ","25.05.2023","WORKING"]
[754,"KL0102I02328","Koottappana Farmers Social welfare Co operative society T 2328","Social  Welfarre co operative socitiess","Thiruvananthapuram","Neyyattinkara","Taluk","Social Welfare Co-operative Society ","01.06.2023","WORKING"]
[755,"KL0102G01346","Neyyattinkara Taluk Photo GraphersCo Operative Society T 1346","   Social Welfarre co operative socitiess","Thiruvananthapuram","Neyyattinkara","Taluk","Non Agricultural Co-operative Society ","19.9.1991","WORKING"]
[756,"KL0102V02312","Kattachalkuzhy Gramodharana Co Operative Society T 699","Primary Non Agricultural co operativ e socities","Thiruvananthapuram","Neyyattinkara","Taluk","Primary Non Agricutural credit","5.12.2000","WORKING"]
[757,"KL0102G01813","Sree Narayana Guru Memmorial Farmers Development Co Operative Society t 1813","Non  Agricultural Co operative socities","Thiruvananthapuram","Neyyattinkara","Taluk","Non Agricultural Co-operative Society ","20.10.2012","WORKING"]
[758,"KL0103I01115","Kallayam Priyadarsini Residents Welfare Cooperative Society T 1115 Kallayam PO Nedumangad","Social Welfare Miscellaneous Society","Thiruvananthapuram","Nedumangad","Taluk","Social Welfare Miscellaneous Society","7.22.1992","WORKING"]
[759,"KL0102A01523","Nedumangad Taluk Gold Workers Welfare Cooperative Society Ltd No T 1617","Social Welfare Miscellaneous Society","Thiruvananthapuram","Nedumangad","Taluk","Social Welfare Miscellaneous Society","3.1.2006","WORKING"]
[760,"KL0103I02065","T 2223 NREG Workers Welfare Co-operative Society Ltd Mannorkonam P O","Social Welfare Miscellaneous Society","Thiruvananthapuram","Nedumangad","Taluk","Miscellaneous Society","05-12-2019","WORKING"]
[761,"KL0104G02235","Anchuthengu Matsya Anubandha Thozhilali Vikasana Kshema CS - Ltd.No T.2235","Social Welfare Miscellaneous Society","Thiruvananthapuram","Chirayinkeezhu","Taluk","Miscellaneous Society","06.03.2020","WORKING"]
[762,"KL0104I02166","Attingal Pravasi Kshema Vikasana Sahakarana Sangham Ltd No. T 2166 Palakunnu ,Chirayinkeezhu PO 695304","Social Welfare Miscellaneous Society","Thiruvananthapuram","Chirayinkeezhu","Taluk","Miscellaneous Society","15.02.2018","WORKING"]
[763,"KL0104G02155","Avanavanchery Development Wellfare Co-operative Society - Ltd. No. T 2155 Theruvu Jn. Avanavancherry PO 695103","Social Welfare Miscellaneous Society","Thiruvananthapuram","Chirayinkeezhu","Taluk","Miscellaneous Society","22-11-2017","WORKING"]
[764,"KL0104E01826","Chirayinkil Taluk Employees & Pensioners Welfare CS - Ltd. No. T 1826 Veeralam Attingal PO 695101","Social Welfare Miscellaneous Society","Thiruvananthapuram","Chirayinkeezhu","Taluk","Miscellaneous Society","19.12.2012","WORKING"]
[765,"KL0104I01878","Chirayinkeezh Taluk Farmers Social Welfare Co-operative Society Ltd. No. T 1878 Poovanpara, Alamcode PO PIN 695102","Social Welfare Miscellaneous Society","Thiruvananthapuram","Chirayinkeezhu","Taluk","Miscellaneous Society","04.11.2013","WORKING"]
[766,"KL0104I01533","Chirayinkil Taluk Service Pensioners Welfare Co-operative Society T 1533 Attingal PO 695 101  ","Social Welfare Miscellaneous Society","Thiruvananthapuram","Chirayinkeezhu","Taluk","Miscellaneous Society","03.02.2004","WORKING"]
[767,"KL0104T01860","Chirayinkeezhu Taluk Tourisum Co-operative Society Ltd. No. T 1860 Attingal PO 695 101 ","Other Miscellaneous Society","Thiruvananthapuram","Chirayinkeezhu","Taluk","Miscellaneous Society","07.06.2013","WORKING"]
[768,"KL0104G01462","Chirayinkil taluk vyapari vyavasai Co-operative Society Ltd. No. T 1462","Other Miscellaneous Society","Thiruvananthapuram","Chirayinkeezhu","Taluk","Miscellaneous Society","16.12.2000","WORKING"]
[769,"KL0104G02199","Elamba Village Welfare Co-operative Society Ltd. No. T 2199 Elampa PO Attingal 695103","Social Welfare Miscellaneous Society","Thiruvananthapuram","Chirayinkeezhu","Taluk","Miscellaneous Society","26.10.2018","WORKING"]
[770,"KL0104I01850","Hollowbricks Manufactures Welfare Co-operative Society Ltd. No. T 1850","Commercial Miscellaneous Society","Thiruvananthapuram","Chirayinkeezhu","Taluk","Miscellaneous Society","19.04.2013","WORKING"]
[771,"KL0104I02293","Kadakkavoor Welfare Co-operative Society Ltd no. T 2293 Chekkalavilakam, Kadakkavoor PO 695306","Social Welfare Miscellaneous Society","Thiruvananthapuram","Chirayinkeezhu","Taluk","Miscellaneous Society","24.02.2022","WORKING"]
[772,"KL0104G01940","Karavaram  Welfare Co-operative Society Ltd. No. T 1940  Karavaram PO Thottakkad 695605","Social Welfare Miscellaneous Society","Thiruvananthapuram","Chirayinkeezhu","Taluk","Miscellaneous Society","23.06.2014","WORKING"]
[773,"KL0104G02097","Kilimanoor Residence Welfare Co-operative Society Ltd. No. T 2097 Kilimanoor PO 695601","Social Welfare Miscellaneous Society","Thiruvananthapuram","Chirayinkeezhu","Taluk","Miscellaneous Society","15.02.2016","WORKING"]
[774,"KL0104G01744","Kizhuvilam Residence Welfare Co-operative Society Ltd. No. T 1744 Mudapuram ,Chirayinkeezhu PO 695304","Social Welfare Miscellaneous Society","Thiruvananthapuram","Chirayinkeezhu","Taluk","Miscellaneous Society","12.7.2011","WORKING"]
[775,"KL0104G01730","Koduman Mahadeva Residance Welfare Co-operative Society Ltd No. T 1730 Koduman ,Attingal PO 695101","Social Welfare Miscellaneous Society","Thiruvananthapuram","Chirayinkeezhu","Taluk","Miscellaneous Society","12.8.2010","WORKING"]
[776,"KL0104G02169","Krishnapuram Residence Wellfare Co-operative Society Ltd. No. T 2169 LMS Jn.Attingal 695101","Social Welfare Miscellaneous Society","Thiruvananthapuram","Chirayinkeezhu","Taluk","Miscellaneous Society","13.04.2018","WORKING"]
[777,"KL0104G02162","Mananakku Welfare Co-operative Society Ltd. No. T 2162 Mananakku ,Perunkulam PO 695102","Social Welfare Miscellaneous Society","Thiruvananthapuram","Chirayinkeezhu","Taluk","Miscellaneous Society","31-01-2018","WORKING"]
[778,"KL0104I01751","Mudakkal Panchayath Resident\"s Welfare Co-operative Society Ltd. No.T 1759 Mudapuram PO 695304","Social Welfare Miscellaneous Society","Thiruvananthapuram","Chirayinkeezhu","Taluk","Miscellaneous Society","16.02.2012","WORKING"]
[779,"KL0104I02221","Mudapuram Karshika Kshema Vikasana Co-operative Society Ltd No. T.2221 Mudapuram PO 695304","Social Welfare Miscellaneous Society","Thiruvananthapuram","Chirayinkeezhu","Taluk","Miscellaneous Society","02.12.2019","WORKING"]
[780,"KL0104G02226","Mulliankavu Residence Welfare Co-operative Society Ltd No. T.2226 Keezhattingal PO 695 306","Social Welfare Miscellaneous Society","Thiruvananthapuram","Chirayinkeezhu","Taluk","Miscellaneous Society","18.12.2019","WORKING"]
[781,"KL0104G02096","P.G Nagar Residence Welfare Co-operative Society Ltd. No. T 2096 PalaceRoad ,Attingal 695101","Social Welfare Miscellaneous Society","Thiruvananthapuram","Chirayinkeezhu","Taluk","Miscellaneous Society","15.02.2016","WORKING"]
[782,"KL0104I02018","Melkadakkavoor Social Welfare Co-Operative Society Ltd.2018 ,Melkadakkavoor ,Kadakkavoor PO  ","Social Welfare Miscellaneous Society","Thiruvananthapuram","Chirayinkeezhu","Taluk","Social Welfare Co-Operative Society","18.08.2015","WORKING"]
[783,"KL0101E02015","Muthakkal Social Welfare Co-Operative Society Ltd.2031","Social Welfare Miscellaneous Society","Thiruvananthapuram","Chirayinkeezhu","Taluk","Social Welfare Co-Operative Society","16.10.2015","WORKING"]
[784,"KL0104I02244","Pazhayakunnummel Farmers Social Welfare Co-Operative Society Ltd.T 2244","Social Welfare Miscellaneous Society","Thiruvananthapuram","Chirayinkeezhu","Taluk","Social Welfare Co-Operative Society","16.06.2020","WORKING"]
[785,"KL0104G01545","Vilayil residence welfare Co-operative Society Ltd. No. T 1545 Attingal P.O. PIN 695101 ","Social Welfare Miscellaneous Society","Thiruvananthapuram","Chirayinkeezhu","Taluk","Miscellaneous Society","16.10.2004","WORKING"]
[786,"KL0105I02228","Cherunniyoor Farmers Welfare Co-Operative Society Ltd. 2228 Cherunniyoor PO ","Social Welfare Miscellaneous Society","Thiruvananthapuram","Varkala","Taluk","Welfare Co-Operative Societies","16.01.2020","WORKING"]
[787,"KL0105I02059","Edamonnila Farmers social welfare co-operative society T 2059 , Navaikulam po","Social Welfare Miscellaneous Society","Thiruvananthapuram","varkala","Taluk","Welfare Co-Operative Societies","16.01.2016","WORKING"]
[788,"KL0105I01546","Elakamon Panchayath Residence Welfare Co-Operative Society Ltd.T 1546 Ilakamon po ","Social Welfare Miscellaneous Society","Thiruvananthapuram","Varkala","Elakamon Panchayath, Chemmaruthy","Residence Welfare Co-Operative Society","16.10.2004","WORKING"]
[789,"KL0105I01731","Navaikulam Farmers Welfare Co-Operative Society Ltd.T 1731 Navaikulam po","Social Welfare Miscellaneous Society","Thiruvananthapuram","Varkala","Navaikulam Panchayath","Social Welfare Co-Operative Society","17.02.2011","WORKING"]
[790,"KL0105I01824","Manamboor Village Residence Welfare Co-Operative Society Ltd.T 1824 Manamboor po","Social Welfare Miscellaneous Society","Thiruvananthapuram","Varkala","Manamboor Village, Ottoor Panchyath","Residence Welfare Co-Operative Society","11.12.2012","WORKING"]
[791,"KL0105I01853","Chemmaruthi Residence Welfare Co-Operative Society Ltd.T 1853 Chemmaruthy po","Social Welfare Miscellaneous Society","Thiruvananthapuram","Varkala","Taluk","Residence Welfare Co-Operative Society","08.05.2013","WORKING"]
[792,"KL0105I01883","Elakamon kettida nirmana thozhilali Welfare Co-Operative Society Ltd.T 1883, Elakamon po","Social Welfare Miscellaneous Society","Thiruvananthapuram","Varkala","Elakamon Panchyath","Welfare Co-Operative Societies","28.11.2013","WORKING"]
[null,null,"Commercial Miscellaneous Society"]
[793,"KL0103I01075","Nedumanagad Taluk Motor Transport  Co-operative Society Ltd No. 1075 VITHURA P O","Commercial Miscellaneous Society","Thiruvananthapuram","Nedumangad","Taluk","Miscellaneous Society","27-03-1991","WORKING"]
[794,"not in cima","Other Miscellaneous Society"]
[795,"KL0101I00908","Thiruvananthapuram District Cooperative Society Ltd No. T 908","Other Miscellaneous Society","Thiruvananthapuram ","Thiruvananthapuram","Taluk","Other Miscellaneous Society","5.3.1990","WORKING"]
[796,"KL0101I02033","Artisans Trade & Funds Co-operative Society 2033","Other Miscellaneous Society","Thiruvananthapuram","Thiruvananthapuram","Taluk","Primary Non Agrl.Credit Societies Others","14.04.1962","WORKING"]
[797,"KL0101I00915","Thainad Co.operative Society 915","Other Miscellaneous Society","Thiruvananthapuram","Thiruvananthapuram","Taluk","Primary Non Agrl.Credit Societies Others","05.06.1935","WORKING"]
[798,"KL0101I01115","Vanchiyoor Co-operative Society 1115","Other Miscellaneous Society","Thiruvananthapuram","Thiruvananthapuram","Taluk","Primary Non Agrl.Credit Societies Others","26.04.1935","WORKING"]
[799,"KL0101I01778","Indiraji Motor Transport Co.operative Society T 1778","Other Miscellaneous Society","Thiruvananthapuram","Thiruvananthapuram","Taluk","Transport Co-operative Society ","18.05.2012","WORKING"]
[800,"KL0101I00182","Kerala Grandhasala Co-operative Society T 182","Other Miscellaneous Society","Thiruvananthapuram","Thiruvananthapuram","Taluk","Literary Writers Co-operative Societies","16.04.2012","WORKING"]
[801,"KL0101I01060","Trivandrum Taluk Airport Taxi Drivers Co-operative Society T 1060","Other Miscellaneous Society","Thiruvananthapuram","Thiruvananthapuram","Taluk","Taxi-Drivers Co-operative Societies","19.10.1990","WORKING"]
[802,"KL0101I00723","Thiruvananthapuram JILLA Taxi Drivers Co-operative SocietyT 723","Other Miscellaneous Society","Thiruvananthapuram","Thiruvananthapuram","District","Taxi-Drivers Co-operative Societies","23.04.1979","WORKING"]
[803,"KL0101E00333","PSC Staff Canteen Co-operative Society T 333","Other Miscellaneous Society","Thiruvananthapuram","Thiruvananthapuram","Taluk","Canteen Co-operative Societies","1.10.1988","WORKING"]
[804,"KL0101I00993","Medical College Catering Workers Canteen Co-operative Society T 993","Other Miscellaneous Society","Thiruvananthapuram","Thiruvananthapuram","Taluk","Canteen Co-operative Societies","24.12.1979","WORKING"]
[805,"KL0101I01618","Thiruvananthapuram Taluk Co.operative Society T 1618","Other Miscellaneous Society","Thiruvananthapuram","Thiruvananthapuram","Taluk","Social Welfare Co-operative Societies","6.6.2005","WORKING"]
[806,"KL0101I01652","Tvm Agri-Horticulture Development Co.operative Society T 1652","Other Miscellaneous Society","Thiruvananthapuram","Thiruvananthapuram","Taluk","Social Welfare Co-operative Societies","10.05.2006","WORKING"]
[807,"KL0101I01655","Tvm Dist. Deposit Collection Agent’s Co.operative Society T 1655","Other Miscellaneous Society","Thiruvananthapuram","Thiruvananthapuram","District","Social Welfare Co-operative Societies","10.05.2006","WORKING"]
[808,"KL0101I01662","Tvm Representative & Salesman Co.operative Society T 1662","Other Miscellaneous Society","Thiruvananthapuram","Thiruvananthapuram","Taluk","Social Welfare Co-operative Societies","17.05.2006","WORKING"]
[809,"KL0101G01677","Kerala State Electricity board Pension Co.operative Society T 1677","Other Miscellaneous Society","Thiruvananthapuram","Thiruvananthapuram","More Than A District","Social Welfare Co-operative Societies","6.9.2007","WORKING"]
[810,"KL0102E00023","The Traditional Artisan Co-operative Society Ltd. T 1684","Other Miscellaneous Society","Thiruvananthapuram","Thiruvananthapuram","Taluk","Social Welfare Co-operative Societies","11.12.2007","WORKING"]
[811,"KL0101I01788","Tvpm Dist.Retired Employees Co-Operative Society  T 1788","Other Miscellaneous Society","Thiruvananthapuram","Thiruvananthapuram","District","Social Welfare Co-operative Societies","14.06.2012","WORKING"]
[812,"KL0101I01793","Tvpm Taluk General Workers Co.operative Society T 1793","Other Miscellaneous Society","Thiruvananthapuram","Thiruvananthapuram","Taluk","Social Welfare Co-operative Societies","27.07.2012","WORKING"]
[813,"KL0101I01803","K.S.R.T.C Pensioners Co.operative SocietyT 1803","Other Miscellaneous Society","Thiruvananthapuram","Thiruvananthapuram","Taluk","Social Welfare Co-operative Societies","13.09.2012","WORKING"]
[814,"KL0101I01819","Tvpm Dist. Private Bus Workers Co.operative Society T 1819","Other Miscellaneous Society","Thiruvananthapuram","Thiruvananthapuram","Taluk","Social Welfare Co-operative Societies","23.11.2012","WORKING"]
[815,"KL0101I01874","Tvpm Jilla Art workers Co.opertive Society T 1874","Other Miscellaneous Society","Thiruvananthapuram","Thiruvananthapuram","District","Social Welfare Co-operative Societies","07.09.2013","WORKING"]
[816,"KL0102M00730","Kadinamkulam  Co-operative Society T 1898","Other Miscellaneous Society","Thiruvananthapuram","Thiruvananthapuram","Taluk","Social Welfare Co-operative Societies","21.01.2014","WORKING"]
[817,"KL0101I02262","Kanjiramppara Social Welfare Co-Operative Society 2262","Other Miscellaneous Society","Thiruvananthapuram","Thiruvananthapuram","Taluk","Social Welfare Co-operative Societies","11.01.2021","WORKING"]
[818,"KL0101I02140","Travancore Pravasi Development Co-Operative Society T 2140","Other Miscellaneous Society","Thiruvananthapuram","Thiruvananthapuram","Taluk","Social Welfare Co-operative Societies","23.1.2017","WORKING"]
[819,"KL0101I02171","Government College Retired Teachers Co-Operative Society T 2171","Other Miscellaneous Society","Thiruvananthapuram","Thiruvananthapuram","Taluk","Social Welfare Co-operative Societies","19.05.2018","WORKING"]
[820,"KL0102M02338","Beautician & Cosmetics Development Co-Operative Society T 2183","Other Miscellaneous Society","Thiruvananthapuram","Thiruvananthapuram","Taluk","Social Welfare Co-operative Societies","7.7.2018","WORKING"]
[821,"KL0101I02193","Thiruvananthapuram Jilla Malinya Samskarana Co-Operative Society T 2193","Other Miscellaneous Society","Thiruvananthapuram","Thiruvananthapuram","District","Social Welfare Co-operative Societies","25.10.2018","WORKING"]
[822,"KL0101Y02283","Vattiyoorkkavu Youth Brigade Entreprenures CS Ltd T 2283","Other Miscellaneous Society","Thiruvananthapuram","Thiruvananthapuram","Taluk","Social Welfare Co-operative Societies","05.08.2021","WORKING"]
[823,"KL0101I01511","Pachalloor Co-operative Society T 1511","Other Miscellaneous Society","Thiruvananthapuram","Thiruvananthapuram","Taluk","Non Agricultural Co-operative Societies Others","12.11.2004","WORKING"]
[824,"KL0101I01531","Thiruvananthapuram North  Co-Operative Society T 1531","Other Miscellaneous Society","Thiruvananthapuram","Thiruvananthapuram","Taluk","Non Agricultural Co-operative Societies Others","3.1.2001","WORKING"]
[825,"KL0101I04410","Kerala State Engineering & Transport Development Co-operative Society 4410","Other Miscellaneous Society","Thiruvananthapuram","Thiruvananthapuram","More Than A District","Non Agricultural Co-operative Societies Others","06.06.1997","WORKING"]
[826,"KL0101I00184","Ananthapuram Co-operative Society T 184","Other Miscellaneous Society","Thiruvananthapuram","Thiruvananthapuram","Taluk","Non Agricultural Co-operative Societies Others","17.01.1961 ","WORKING"]
[827,"KL0101I02033","Artisans Trade & Funds Co-Operative Society 2033","Other Miscellaneous Society","Thiruvananthapuram","Thiruvananthapuram",null,"Non Agricultural Co-operative Societies Others","23.2.1980","WORKING"]
[828,"KL0101I02782","Upaniyoor Gramodharana 2782","Other Miscellaneous Society","Thiruvananthapuram","Thiruvananthapuram","Taluk","Non Agricultural Co-operative Societies Others","23.07.1948","WORKING"]
[829,"KL0101I01500","Vattiyoorkavu Co-operative Rural Development Society T 1500","other miscellaneous society","Thiruvananthapuram","Thiruvananthapuram","Taluk","Non Agricultural Co-operative Societies Others","31.7.1959","WORKING"]
[830,"KL0101I01500","Vattiyoorkavu Co-operative Rural Development Co-operative Society 1500","other miscellaneous society","Thiruvananthapuram","Thiruvananthapuram","Taluk","Non Agricultural Co-operative Societies Others","11.10.2002","WORKING"]
[831,"KL0101I01838","Thiruvananthapuram Artisan's Development Co.operative Society T 1838","Other Miscellaneous Society","Thiruvananthapuram","Thiruvananthapuram","Taluk","Non Agricultural Co-operative Societies Others","12.03.2013","WORKING"]
[832,"KL0101I01840","South Travancore Grama Vikasana Co.operative Society T 1840","Other Miscellaneous Society","Thiruvananthapuram","Thiruvananthapuram","Taluk","Non Agricultural Co-operative Societies Others","06.11.2012","WORKING"]
[833,"KL0101I01816","The South Travancore Co.operative Society T 1816","Other Miscellaneous Society","Thiruvananthapuram","Thiruvananthapuram","Taluk","Non Agricultural Co-operative Societies Others","11.06.2012","WORKING"]
[834,"KL0101I01861","Pravasi Nivasi Devolopment Co-Operative SocietyT 1861","Other Miscellaneous Society","Thiruvananthapuram","Thiruvananthapuram","Taluk","Non Agricultural Co-operative Societies Others","06.07.2013","WORKING"]
[835,"KL0101I01886","Mathilakam Co-operative Society T 1886","Other Miscellaneous Society","Thiruvananthapuram","Thiruvananthapuram","Taluk","Non Agricultural Co-operative Societies Others","9.12.2013","WORKING"]
[836,"KL0101I01903","Tvm Icecream Distributers and Sellers Co-operative Society T 1903","Other Miscellaneous Society","Thiruvananthapuram","Thiruvananthapuram","Taluk","Non Agricultural Co-operative Societies Others","17.2.2014","WORKING"]
[837,"KL0101I01914","Manacadu Co-operative Society T 1914","Other Miscellaneous Society","Thiruvananthapuram","Thiruvananthapuram","Taluk","Non Agricultural Co-operative Societies Others","25.4.2014","WORKING"]
[838,"KL0101I01917","Tvpm Jilla State govt  Employees &Pensioner Welfare Co-operative Society T 1917","other miscellaneous society","Thiruvananthapuram","Thiruvananthapuram","District","Non Agricultural Co-operative Societies Others","24.4.2014","WORKING"]
[839,"KL0101I01924","Tvpm Jilla Stockist &Distributers Co-operatve Society T 1924","other miscellaneous society","Thiruvananthapuram","Thiruvananthapuram","District","Non Agricultural Co-operative Societies Others","20.5.2014","WORKING"]
[840,"KL0101I01942","SreePadham Co-Operative Society T 1942","other miscellaneous society","Thiruvananthapuram","Thiruvananthapuram","Taluk","Non Agricultural Co-operative Societies Others","28.6.2014","WORKING"]
[841,"KL0101I01959","IT Professionals Co-Operative Society T 1959","other miscellaneous society","Thiruvananthapuram","Thiruvananthapuram","Taluk","Non Agricultural Co-operative Societies Others","24.9.2014","WORKING"]
[842,"KL0101I01972","Punchakkari Rural Development Co-Operative Society T 1972","other miscellaneous society","Thiruvananthapuram","Thiruvananthapuram","Taluk","Non Agricultural Co-operative Societies Others","04.11.2014","WORKING"]
[843,"KL0101I02034","Kawadiyar Co-Operative Society T 2034","Other Miscellaneous Society","Thiruvananthapuram","Thiruvananthapuram","Taluk","Non Agricultural Co-operative Societies Others","05.11.2015","WORKING"]
[844,"KL0101I02036","Tvpm Jilla Karshaka Co-Operative Society T 2036","Other Miscellaneous Society","Thiruvananthapuram","Thiruvananthapuram","District","Non Agricultural Co-operative Societies Others","6.11.2015","WORKING"]
[845,"KL0101I02060","Tvpm Jilla Book Sellers & Readers Co-operative Society Ltd.T.2060","Other Miscellaneous Society","Thiruvananthapuram","Thiruvananthapuram","District","Non Agricultural Co-operative Societies Others","14.01.2016","WORKING"]
[846,"KL0101I02061","Kudappanakunnu Co-Operative Society T 2061","other miscellaneous society","Thiruvananthapuram","Thiruvananthapuram","Taluk","Non Agricultural Co-operative Societies Others","16.01.2016","WORKING"]
[847,"KL0101I02083","Tvpm Commercial Development Co-Operative Society T 2083","other miscellaneous society","Thiruvananthapuram","Thiruvananthapuram","Taluk","Non Agricultural Co-operative Societies Others","10.02.2016","WORKING"]
[848,"KL0101I04500","All Kerala IT Dealers Co-operative Society Ltd. 4500","other miscellaneous society","Thiruvananthapuram","Thiruvananthapuram","More Than A District","Miscellaneous","24.1.2020","WORKING"]
[849,"KL0101I01213","Akkulam Co-Operative Society Ltd.T 1213","other miscellaneous society","Thiruvananthapuram","Thiruvananthapuram","Taluk","Miscellanious ","10.12.1992","WORKING"]
[850,"KL0101I01407","Thiruvananthapuram District Hoteliers Welfare Co-Operative Society Ltd. T 1407","other miscellaneous society","Thiruvananthapuram","Thiruvananthapuram","Taluk","Miscellaneous","14.12.1998","WORKING"]
[851,"KL0101I04430","Kerala State Cable Internet Development Co-Operative Society Ltd. 4430","other miscellaneous society","Thiruvananthapuram","Thiruvananthapuram","State Wide","Miscellaneous","3.1.2001","WORKING"]
[852,"KL0101I01733","Thiruvananthapuram District Mercantile Co-Operative Society Ltd. T 1733","other miscellaneous society","Thiruvananthapuram","Thiruvananthapuram","District","Miscellaneous","26.02.2011","WORKING"]
[853,"KL0101I01762","Venad Co-Operative Society Ltd.T 1762","other miscellaneous society","Thiruvananthapuram","Thiruvananthapuram","District","Miscellaneous","2.3.2012","WORKING"]
[854,"KL0101I02232","Njandoorkonam Karshikolpanna Ulpadaka Sambharana Samskarana Vipanana Co-Operative Society Ltd.T 2232","other miscellaneous society","Thiruvananthapuram","Thiruvananthapuram","Taluk","Miscellaneous","4.3.2020","WORKING"]
[855,"KL0101I04448","Kerala State Engineering And Infrastructure Services Co-Operative Society Ltd No  4448","Other Miscellaneous Society","Thiruvananthapuram","Thiruvananthapuram","State","Other Miscellaneous Society","22.09.2004","WORKING"]
[856,"KL0101I04428","Co-Operative Insurance Co-Operative Society Ltd No 4428 (Coins)","Other Miscellaneous Society","Thiruvananthapuram","Thiruvananthapuram","State","FEDERAL CO-OPERATIVE SOCIETIES","21.06.2000","WORKING"]
[857,"KL0101I04512","Kerala Sports Association Members Social Welfare Co-Operative Society 4512","Other Miscellaneous Society","Thiruvananthapuram","Thiruvananthapuram","State","Miscellanious ","24.11.2022","WORKING"]
[858,"KL0101E02197","Cherukida Vyavasaya Kshema Co-Operative Society ","Other Miscellaneous Society","Thiruvananthapuram","Thiruvananthapuram","Taluk","Other Miscellaneous Society","5.6.1991","WORKING"]
[859,"KL0101I04480","Kerala State Stage Performing and Technicians Welfare Cooperative Society Ltd (SPATCOS) 4480","Other Miscellaneous Society","Thiruvananthapuram","Thiruvananthapuram","State","Other Miscellaneous Society","18.08.2012","WORKING"]
[860,"KL0102V00961","Ananathapuram Co-operative Society T 184","Other Miscellaneous Society","Thiruvananthapuram","Thiruvananthapuram","Taluk","Primary Non Agrl.Credit Societies Others","17.01.1961","WORKING"]
[861,"KL0101I00915","Thaianad Co-operative Society 915","Other Miscellaneous Society","Thiruvananthapuram","Thiruvananthapuram","Taluk","Non Agricultural Co-operative Societies Others","26.4.1935","WORKING"]
[862,"KL0106G01628","Neyyatinkara Taluk Construction Workers Welfare Co-operative Society Ltd No.T.1628","Other Miscellaneous Society","Thiruvananthapuram","Kattakkada","Taluk","Social Co-op Societies","05.05.2006","WORKING"]
[863,"KL0106V00916","Amboori Grama Vikasana Co-operative Society Ltd No  T. 1999","Other Miscellaneous Society","Thiruvananthapuram","Kattakkada","Taluk","Social Co-op Societies","10.06.2015","WORKING"]
[864,"KL0106G01859","Aryancode Rural Co-operative Society Ltd No  T. 1859","Other Miscellaneous Society","Thiruvananthapuram","Kattakkada","Taluk","Social Co-op Societies","07.06.2013","WORKING"]
[865,"KL0106G01656","Maranalloor Gramavikasana Co-operative Society Ltd No  T.1656","Other Miscellaneous Society","Thiruvananthapuram","Kattakkada","Taluk","Social Co-op Societies","10.05.2006","WORKING"]
[866,"KL0103I01957","Nedumangad Taluk Cement Block Workers Co-operative Society Ltd  T.1957 ANAD P O","Other Miscellaneous Society","Thiruvananthapuram","Nedumangad","Taluk","Miscellaneous Society","01-09-2014","WORKING"]
[867,"KL0103I02065","Nedumangad Taluk Information Technology Skilld Workers Welfare Co-operative Society Ltd  T.2064","Other Miscellaneous Society","Thiruvananthapuram","Nedumangad","Taluk","Miscellaneous Society","3.2.2016","WORKING"]
[868,"KL0103I01647","Nedumangad Taluk Malayora Karshaka Co-operative Society Ltd  T. 1647 ARYANAD P O","Other Miscellaneous Society","Thiruvananthapuram","Nedumangad","Taluk","Miscellaneous Society","05-09-2006","WORKING"]
[869,"KL0103I00551","Nedumangad Taluk Malsya Vitharana Co-operative Society Ltd  T.551 NEDUMANGAD P O","Other Miscellaneous Society","Thiruvananthapuram","Nedumangad","Taluk","Miscellaneous Society","14-05-1976","WORKING"]
[870,"KL0103I01902","Nedumangad Taluk Ration Dealers Welfare Co-operative Society Ltd  T.2078 NEDUMAGAD","Other Miscellaneous Society","Thiruvananthapuram","Nedumangad","Taluk","Miscellaneous Society","02-08-2016","WORKING"]
[871,"KL0103I01285","Nedumangad Taluk Co-operative Society Ltd  T.1285 NEDUMANGAD P O","Other Miscellaneous Society","Thiruvananthapuram","Nedumangad","Taluk","Miscellaneous Society","20-04-1995","WORKING"]
[872,"KL0103E00382","Nedumangad Taluk Vyapara Vyavasayi Wel Co-operative Society Ltd  T.1601 NEDUMANGAD P O","Other Miscellaneous Society","Thiruvananthapuram","Nedumangad","Taluk","Miscellaneous Society","25-02-2006","WORKING"]
[873,"KL0103I02229","Panavoor Karshika Kshema Co-operative Society Ltd  T.2229 PANAVOOR P O","Other Miscellaneous Society","Thiruvananthapuram","Nedumangad","Taluk","Miscellaneous Society","25-01-2020","WORKING"]
[874,"KL0103I02047","Thiruvananthapuram Jilla Samyojitha Jaiva Karshaka Co-operative Society Ltd  T.2047 NEUMANGAD P O","Other Miscellaneous Society","Thiruvananthapuram","Nedumangad","Taluk","Miscellaneous Society","07-12-2015","WORKING"]
[875,"KL0103I02135","Thiruvananthapuram District Bhinnaseshi Vibhaga Kshema Co-operative Society Ltd  T.2135 P O","Social Welfare Miscellaneous Society","Thiruvananthapuram","Nedumangad","Taluk","Miscellaneous Society","26-11-2016","WORKING"]
[876,"KL0103I01905","Thiruvananthapuram District Construction And Building Workers Co-operative Society Ltd  T.1645 VENJARAMOOD P O","Other Miscellaneous Society","Thiruvananthapuram","Nedumangad","Taluk","Miscellaneous Society","05-09-2006","WORKING"]
[877,"KL0103I02156","Vembayam Welfare Co-operative Society Ltd  T.2156 vembayam p o","Other Miscellaneous Society","Thiruvananthapuram","Nedumangad","Taluk","Miscellaneous Society","23-11-2017","WORKING"]
[878,"KL0103I02079","Charupara Social Wel Co-operative Society Ltd  Ltd No.T 2079 vithura P O","Social Welfare Miscellaneous Society","Thiruvananthapuram","Nedumangad","Taluk","Miscellaneous Society","08-02-2016","WORKING"]
[879,"KL0103I01841","Karunakaran Memorial Rural Welfare Co-operative Society Ltd  T 1841 VITHURA P O","Other Miscellaneous Society","Thiruvananthapuram","Nedumangad","Taluk","Miscellaneous Society","12-03-2013","WORKING"]
[880,"KL0103I01541","Rajeev Gandhi Residents  Welfare Co-operative Society Ltd  T 1541 Mundela P O","Other Miscellaneous Society","Thiruvananthapuram","Nedumangad","Taluk","Miscellaneous Society","15-07-2004","WORKING"]
[881,"KL0103I01490","Nedumanagad Taluk Government Employees Welfare Co-operative Society Ltd  T 1490, Nedumangad P O","Other Miscellaneous Society","Thiruvananthapuram","Nedumangad","Taluk","Miscellaneous Society","10-05-2002","WORKING"]
[882,"KL0103I02103","Pathinaramkallu Social Wel Co-operative Society Ltd  T 2103 Pthnaramkallu P O","Other Miscellaneous Society","Thiruvananthapuram","Nedumangad","Taluk","Miscellaneous Society","04-03-2016","WORKING"]
[883,"KL0103I01709","Tholikkode Agriculturist Welfare Co-operative Society Ltd  T 1709 Tholicode PO","Other Miscellaneous Society","Thiruvananthapuram","Nedumangad","Taluk","Miscellaneous Society","23-02-2010","WORKING"]
[884,"KL0103I02021","Vellanad Block Panchayath Social Welfare Co-operative Society Ltd T. 2021 Companymukk vellanad P O","Other Miscellaneous Society","Thiruvananthapuram","Nedumangad","Taluk","Miscellaneous Society","31.08.2015","WORKING"]
[885,"KL0103I01832","Vithura Welfare  Co-operative Society Ltd  T1832 vithura P O","Other Miscellaneous Society","Thiruvananthapuram","Nedumangad","Taluk","Miscellaneous Society","30-01-2013","WORKING"]
[886,"KL0103G01851","Vellanad Grama Vikasana Co-operativeerative Society LtD No T 1851 Vellanad P O","Other Miscellaneous Society","Thiruvananthapuram","Nedumangad","Taluk","Miscellaneous Society","04-05-2013","WORKING"]
[887,"KL0103I01827","Vithura Rural Co-operative Society Ltd No.T 1827 VITHURA P O","Other Miscellaneous Society","Thiruvananthapuram","Nedumangad","Taluk","Miscellaneous Society","31-12-2012","WORKING"]
[888,"KL0103I02069"," Kallara Pazhayachantha Residence Welfare Co-operative Society Ltd T.2069, KALLARA P O","Other Miscellaneous Society","Thiruvananthapuram","Nedumangad","Taluk","Miscellaneous Society","05-02-2016","WORKING"]
[889,"KL0103I01820","Peringammala Grama Panchayath Social Welfare Co-operative Society Ltd T.1820 kollayil PO","Other Miscellaneous Society","Thiruvananthapuram","Nedumangad","Taluk","Miscellaneous Society","21-11-2012","WORKING"]
[890,"KL0102I02022","Gurumandiram Vamanapuram Farmers Social Welfare Co-operative Society Ltd T.2307 Bharathannoor P O","Other Miscellaneous Society","Thiruvananthapuram","Nedumangad","Taluk","Miscellaneous Society","19-08-2022","WORKING"]
[891,"KL0103I01905","T 1905 Thiruvananthapuram Jilla Construction& Quarry Workers Co-operative Society Ltd KALLARA P O","Other Miscellaneous Society","Thiruvananthapuram","Nedumangad","Taluk","Miscellaneous Society","12-02-2014","WORKING"]
[892,"KL0103I01693","Vanitha Kshema Co-operative Society Ltd  T.1693 BHARATHANNOOR","Other Miscellaneous Society","Thiruvananthapuram","Nedumangad","Taluk","Miscellaneous Society","26-03-2008","WORKING"]
[893,"KL0103I02065"," T 1968 Venkavila Residence Welfare Co-operative Society Ltd VENKAVILA P O","Other Miscellaneous Society","Thiruvananthapuram","Nedumangad","Taluk","Miscellaneous Society","05-08-2008","WORKING"]
[894,"KL0103I02079","T 1739 Anad Panchayath Social Welfare Co-operative Society Ltd VENKAVIL BLOCK JN P O","Other Miscellaneous Society","Thiruvananthapuram","Nedumangad","Taluk","Miscellaneous Society","29-09-2011","WORKING"]
[895,"KL0103I01871"," T 1871 Vamanapuram Block Motor Workers Social Welfare Co-operative Society Ltd KALLARA P O","Other Miscellaneous Society","Thiruvananthapuram","Nedumangad","Taluk","Miscellaneous Society","17-08-2013","WORKING"]
[896,"KL0105V01003","T 1764 Vamanapuram Farmers Welfare Co-operative Society Ltd KUTTIMOOD P O","Other Miscellaneous Society","Thiruvananthapuram","Nedumangad","Taluk","Miscellaneous Society","09-03-2012","WORKING"]
[897,"KL0102I02311","T 1817 Vamanapuram Gramapanchayath Residents Welfare Co-operative Society Ltd KALLARA P O","Other Miscellaneous Society","Thiruvananthapuram","Nedumangad","Taluk","Miscellaneous Society","19-11-2012","WORKING"]
[898,"KL0103I01937","T 1937 Vembayam Farmers Welfare Co-operative Society Ltd  KANYAKULANGARA","Other Miscellaneous Society","Thiruvananthapuram","Nedumangad","Taluk","Miscellaneous Society","18-06-2014","WORKING"]
[899,"KL0103I01558","Venjaramood Priyadarsini Rural Co-operative Society Ltd T.1558 venjaramood","Other Miscellaneous Society","Thiruvananthapuram","Nedumangad","Taluk","Miscellaneous Society","31-03-2005","WORKING"]
[900,"KL0103I01935","T1935 Nedumangad  Farmers Social Wefare Co-operative Society Ltd NEDUMANGAD P O","Other Miscellaneous Society","Thiruvananthapuram","Nedumangad","Taluk","Miscellaneous Society","16-06-2014","WORKING"]
[901,"KL0103I01902","Nedumangad Block Panchayath Residence Welfare Co-operative Society Ltd  Ltd T1902 NAGACHERY ANAD P O","Other Miscellaneous Society","Thiruvananthapuram","Nedumangad","Taluk","Miscellaneous Society","04-02-2014","WORKING"]
[902,"KL0103I01700","Travancore Welfare Co-operative Society Ltd  Ltd T1700 PAZHAKUTTY P O","Other Miscellaneous Society","Thiruvananthapuram","Nedumangad","Taluk","Miscellaneous Society","04-09-2008","WORKING"]
[903,"KL0103I02024","T 2024 Pulari Farmers Social Welfare Co-operative Society Ltd ANAD P O CHANDRAMANGALAM","Other Miscellaneous Society","Thiruvananthapuram","Nedumangad","Taluk","Miscellaneous Society","04-09-2015","WORKING"]
[904,"KL0106G01628","Aruvikkara Agriculturae Workers Welfare  Co-operative Society Ltd ltd No T1920 CHERIYAKONNI P O","Other Miscellaneous Society","Thiruvananthapuram","Nedumangad","Taluk","Miscellaneous Society","28-04-2014","WORKING"]
[905,"KL0103I01644","Karakulam Farmers Social Welfare Co-operative Society Ltd  Ltd No T.1644 KARAKULAM P O","Other Miscellaneous Society","Thiruvananthapuram","Nedumangad","Taluk","Miscellaneous Society","08-05-2006","WORKING"]
[906,"KL0103E02124","T1315 Thiruvananthapuram Merchant Labour Co-operative Society Ltd,  NEDUMANGAD P O","Other Primary Credit Society ","Thiruvananthapuram","Nedumangad","Taluk","Other Primary Credit Society ","02-04-1996","WORKING"]
[907,"KL0103I01242","Regional Motor And Autoriksaw Transport  Co-operative Society Ltd  Ltd No T1534 NEDUMANGAD P O","Other Miscellaneous Society","Thiruvananthapuram","Nedumangad","Taluk","MISCELLANEOUS SOCIETY","06.02.2004","WORKING"]
[908,"KL0103I01527","Thiruvananthapuram Jilla Automobile Workers And Owners Welfare Co-operative Society Ltd  Ltd No T1527 NEDUMANGAD P O","Other Miscellaneous Society","Thiruvananthapuram","Nedumangad","Taluk","MISCELLANEOUS SOCIETY","25-08-2003","WORKING"]
[909,"KL0103I02115","Peoples  Social  Welfare Co-operative Society Ltd  Ltd No T2115 NEDUMANGAD P O","Other Miscellaneous Society","Thiruvananthapuram","Nedumangad","Taluk","MISCELLANEOUS SOCIETY","04-03-2016","WORKING"]
[910,"KL0103I01084","Nedumangad Town Hotel Co-operative Society Ltd  Ltd No T1084 NEDUMANGAD P O","Other Miscellaneous Society","Thiruvananthapuram","Nedumangad","Taluk","MISCELLANEOUS SOCIETY","30-06-1991","WORKING"]
[911,"KL0103I01556","Aruvikkara Panchayath Residence Welfare Co-operative Society Ltd  Ltd  No T1556 ARUVIKKARA P O","Other Miscellaneous Society","Thiruvananthapuram","Nedumangad","Taluk","MISCELLANEOUS SOCIETY","15-03-2005","WORKING"]
[912,"KL0103I02079","T 1961 Palode Farmers Social Welfare co-operative society Nanniyode PACHA P O ","Other Miscellaneous Society","Thiruvananthapuram","Nedumangad","Taluk","MISCELLANEOUS SOCIETY","22-09-2014","WORKING"]
[913,"KL0103I01957"," T 1578 Nedumangad Taluk Buildng Workers Welfare Co-operative Society Ltd Nedumangad","Other Miscellaneous Society","Thiruvananthapuram","Nedumangad","Taluk","MISCELLANEOUS SOCIETY","07-06-2005","WORKING"]
[914,"KL0103I01841","T 2141 Karakulam Rural Welfare Co-operative Society Ltd karakulam P O","Other Primary Credit Society ","Thiruvananthapuram","Nedumangad","Taluk","MISCELLANEOUS SOCIETY","01-04-2017","WORKING"]
[915,"KL0103E02124","T 1771 Karippor Wefare Co-operative Society Ltd KARIPPOOR","Social Welfare Miscellaneous Society","Thiruvananthapuram","Nedumangad","Taluk","MISCELLANEOUS SOCIETY","16-04-2012","WORKING"]
[916,"KL0103I02065","T 1635 Nedumangad Construction Workers Welfare Co-operative Society Ltd KARIPPOOR P O","Social Welfare Miscellaneous Society","Thiruvananthapuram","Nedumangad","Taluk","MISCELLANEOUS SOCIETY","06-05-2006","WORKING"]
[917,"KL0103I02065","T 1521 Nedumangad Muncipal Residence Welfare Co-operative Society Ltd NEDUMANGAD P O","Other Miscellaneous Society","Thiruvananthapuram","Nedumangad","Taluk","MISCELLANEOUS SOCIETY","29-05-2003","WORKING"]
[918,"KL0105V01003","T 2237 Nedumangad Pachakkari Thozhilali Kshema Co-operative Society Ltd NEDUMANGAD  P O","Other Miscellaneous Society","Thiruvananthapuram","Nedumangad","Taluk","MISCELLANEOUS SOCIETY","17-03-2020","WORKING"]
[919,"KL0103I01983","T 1983 Punalal Social Welfare Co-operative Society Ltd KATTAKKADA P O","Other Miscellaneous Society","Thiruvananthapuram","Nedumangad","Taluk","MISCELLANEOUS SOCIETY","09-12-2014","WORKING"]
[920,"KL0103I01827","T 2215 Thachancode Social Welfare Co-operative Society Ltd ","Other Miscellaneous Society","Thiruvananthapuram","Nedumangad","Taluk","MISCELLANEOUS SOCIETY","9.27.2019","WORKING"]
[921,"KL0103I01804","T 1804 Uzhamalackal Panchayath Rural Welfarer Co-operative Society Ltd UZHAMALAKKAL P O","Other Miscellaneous Society","Thiruvananthapuram","Nedumangad","Taluk","MISCELLANEOUS SOCIETY","25-09-2012","WORKING"]
[922,"KL0105V01003","T 1613 Vellanadu Block Agricultural Workersr Welfare Co-operative Society Ltd vellanad P O","Other Miscellaneous Society","Thiruvananthapuram","Nedumangad","Taluk","MISCELLANEOUS SOCIETY","01-03-2006","WORKING"]
[923,"KL0103I02264","T 2264 Parackal Social Welfare Co-operative Society Ltd ANAD P O","Other Miscellaneous Society","Thiruvananthapuram","Nedumangad","Taluk","MISCELLANEOUS SOCIETY","18-01-2021","WORKING"]
[924,"KL0103I02195","Lead Regional Development And Welfare Co-operative Society Ltd t.2195 VELLANAD P O","Other Miscellaneous Society","Thiruvananthapuram","Nedumangad","Within Nedumangad Taluk","MISC.Co-operative Society Ltd ","15-12-2018","WORKING"]
[925,"KL0104G01716","Chirayinkil Taluk Anganvadi Workers & Helpers CS - Ltd No.T 1716  Kadakkavoor PO, Chirayinkeezhu 695306  ","Other Miscellaneous Society","Tvpm","Chirayinkeezhu","Taluk","Miscellaneous Society","18-06-2010","WORKING"]
[926,"KL0105V01018","Kattakkada Multi Purpose Co-operative Society Ltd No T.1923","Multi Purpose Co-op Societies","Thiruvananthapuram","Kattakkada","Taluk","Multi Purpose Co-op Societies","30.4.2014","WORKING"]